Workbook

Sheet Eingabe
B2: Zeitmessung Seifenkisten Derby Mettingen
B5: V9.6
C6: Bahn 1 PR | E6: Bahn 2 PB
B8: Lauf | C8: 6 | E8: 6
B10: Start-Nr | C10: 702 | D10: 517 | E10: 999
B12: Zeit | C12: 42.3 | E12: 38.97
C14: Hauptlauf / Endlauf ? | E14: Hauptlauf
B15: Hauptlauf-Daten übertragen und gespeichert
B17: =LOOKUP(C10,Gesamt!A4:A1000,Gesamt!B4:B1000) -> Open | F17: =LOOKUP(E10,Gesamt!A4:A1000,Gesamt!B4:B1000) -> 0
B19: =LOOKUP(C10,Gesamt!A4:A1000,Gesamt!E4:E1000) -> Robin | E19: =LOOKUP(E10,Gesamt!A4:A1000,Gesamt!E4:E1000) -> ! ! !
B20: =LOOKUP(C10,Gesamt!A4:A1000,Gesamt!D4:D1000) -> Neuhaus | E20: =LOOKUP(E10,Gesamt!A4:A1000,Gesamt!D4:D1000) -> Einzel | H20: Welcher Timer wird verwendet ?
B21: =LOOKUP(C10,Gesamt!A4:A1000,Gesamt!F4:F1000) -> Mettingen | E21: =LOOKUP(E10,Gesamt!A4:A1000,Gesamt!F4:F1000) -> Start | H21: 1 | I21: 1 = ALGE 2 = ZMM3
B22: 4402 PR 00:00:42.306 | E22: 4399 PB 00:00:38.974

Sheet Gesamt
G1: Hauptlauf | N1: Endlauf
E2: Bahn 1 | F2: Bahn 2 | G2: 1 | H2: 1 | I2: 1 | J2: 1 | K2: 1 | L2: 1 | M2: Lauf gewertet ? 0 oder 1 | N2: 1 | O2: 1 | P2: 1 | Q2: 1 | R2: 1 | S2: 1
A3: Star Nr | B3: Renn Klasse | C3: NRW Wertung | D3: Name | E3: Vorname | F3: Verein | G3: 1. Lauf | H3: 2. Lauf | I3: 3. Lauf | J3: 4. Lauf | K3: 5. Lauf | L3: 6. Lauf | M3: Summe | N3: 1. Endlauf | O3: 2. Endlauf | P3: 3. Endlauf | Q3: 4. Endlauf | R3: 5. Endlauf | S3: 6. Endlauf | T3: Summe
A4: 101 | B4: JUN | D4: Thiemann | E4: Jela | F4: Stromberg | G4: 37.98 | H4: 38.47 | I4: 38.34 | J4: 38.7 | K4: 38.26 | L4: 38.5 | M4: =(G4*$G$2 +H4*$H$2+I4*$I$2+J4*$J$2 +K4*$K$2+L4*$L$2) -> 230.25 | T4: =(N4*$N$2 +O4*$O$2+P4*$P$2+Q4*$Q$2 +R4*$R$2+S4*$S$2) -> 0
A5: 102 | B5: JUN | D5: Obermeyer | E5: Theo | F5: Mettingen | G5: 38.38 | H5: 38.83 | I5: 38.67 | J5: 39.06 | K5: 38.77 | L5: 38.65 | M5: =(G5*$G$2 +H5*$H$2+I5*$I$2+J5*$J$2 +K5*$K$2+L5*$L$2) -> 232.36 | T5: =(N5*$N$2 +O5*$O$2+P5*$P$2+Q5*$Q$2 +R5*$R$2+S5*$S$2) -> 0
A6: 103 | B6: JUN | D6: Farwig | E6: Alexander | F6: Mettingen | G6: 38.32 | H6: 38.61 | I6: 39.03 | J6: 39.04 | K6: 38.92 | L6: 39.06 | M6: 232.98 | T6: 0
A7: 104 | B7: JUN | D7: Rickard | E7: Julia | F7: Billerbeck | G7: 38.59 | H7: 38.86 | I7: 39.15 | J7: 39.15 | K7: 39.02 | L7: 38.93 | M7: 233.7 | T7: 0
A8: 105 | B8: JUN | D8: Averkamp | E8: Milan | F8: Billerbeck | G8: 38.5 | H8: 39.11 | I8: 39.17 | J8: 39.39 | K8: 38.86 | L8: 38.97 | M8: 234 | T8: 0
A9: 106 | B9: JUN | D9: Lange | E9: Peter | F9: Mettingen | M9: 0 | T9: 0
A10: 107 | B10: JUN | D10: Teeken | E10: Jorik | F10: Mettingen | M10: 0 | T10: 0
A11: 108 | B11: JUN | D11: Bednarski | E11: Frederik | F11: Mettingen | M11: 0 | T11: 0
A12: 109 | B12: JUN | D12: Lüttmann | E12: Merle | F12: Mettingen | M12: 0 | T12: 0
A13: 110 | B13: JUN | D13: Bauer | E13: Bella | F13: Stromberg | M13: 0 | T13: 0
A14: 111 | B14: JUN | D14: Lange | E14: Helene | F14: Mettingen | M14: 0 | T14: 0
A15: 112 | B15: JUN | D15: Teeken | E15: Lasse | F15: Mettingen | M15: 0 | T15: 0
A16: 113 | B16: JUN | D16: Runde | E16: Helga | F16: Mettingen | M16: 0 | T16: 0
A17: 114 | B17: JUN | D17: Wolff | E17: Sonja | F17: Overath | M17: 0 | T17: 0
A18: 115 | B18: JUN | D18: Schröder | E18: Alina | F18: Billerbeck | M18: 0 | T18: 0
A19: 116 | B19: JUN | D19: Tzschoekel | E19: Brian | F19: Mettingen | G19: 39.49 | H19: 39.77 | I19: 39.96 | J19: 39.83 | K19: 39.2 | L19: 39.26 | M19: 237.51 | T19: 0
A20: 117 | B20: JUN | D20: Tzschoekel | E20: Jolina | F20: Mettingen | G20: 39.17 | H20: 39.75 | I20: 39.4 | J20: 39.78 | K20: 39.32 | L20: 38.77 | M20: 236.19 | T20: 0
A21: 118 | B21: JUN | D21: Allendorf | E21: Lucie | F21: Billerbeck | G21: 38.88 | H21: 39.97 | I21: 39.89 | J21: 40.16 | K21: 39.69 | L21: 39.45 | M21: 238.04 | T21: 0
A22: 119 | B22: JUN | D22: Löher | E22: Sören | F22: Stromberg | G22: 43.84 | H22: 39.49 | I22: 38.99 | J22: 39.87 | K22: 99 | L22: 99 | M22: 360.19 | T22: 0
A23: 120 | B23: JUN | D23: Suthe | E23: Phil | F23: Mettingen | G23: 39.08 | H23: 38.89 | I23: 38.97 | J23: 39.01 | K23: 38.85 | L23: 38.98 | M23: 233.78 | T23: 0
A24: 121 | B24: JUN | D24: Teeken | E24: Lukas | F24: Mettingen | G24: 38.74 | H24: 38.8 | I24: 38.71 | J24: 39.07 | K24: 38.73 | L24: 38.97 | M24: 233.02 | T24: 0
A25: 122 | B25: JUN | M25: 0 | T25: 0
A26: 123 | B26: JUN | M26: 0 | T26: 0
A27: 124 | B27: JUN | M27: 0 | T27: 0
A28: 125 | B28: JUN | M28: 0 | T28: 0
A29: 126 | B29: JUN | M29: 0 | T29: 0
A30: 127 | B30: JUN | M30: 0 | T30: 0
A31: 128 | M31: 0 | T31: 0
A32: 129 | M32: 0 | T32: 0
A33: 130 | M33: 0 | T33: 0
A34: 131 | M34: 0 | T34: 0
A35: 132 | M35: 0 | T35: 0
A36: 133 | M36: 0 | T36: 0
A37: 134 | M37: 0 | T37: 0
A38: 135 | M38: 0 | T38: 0
A39: 136 | M39: 0 | T39: 0
A40: 137 | M40: 0 | T40: 0
A41: 138 | M41: 0 | T41: 0
A42: 139 | M42: 0 | T42: 0
A43: 140 | M43: 0 | T43: 0
A44: 141 | M44: 0 | T44: 0
A45: 142 | M45: 0 | T45: 0
A46: 143 | M46: 0 | T46: 0
A47: 144 | M47: 0 | T47: 0
A48: 145 | M48: 0 | T48: 0
A49: 146 | M49: 0 | T49: 0
A50: 147 | M50: 0 | T50: 0
A51: 148 | M51: 0 | T51: 0
A52: 149 | M52: 0 | T52: 0
A53: 150 | M53: 0 | T53: 0
A54: 151 | M54: 0 | T54: 0
A55: 152 | M55: 0 | T55: 0
A56: 153 | M56: 0 | T56: 0
A57: 154 | M57: 0 | T57: 0
A58: 155 | M58: 0 | T58: 0
A59: 156 | M59: 0 | T59: 0
A60: 157 | M60: 0 | T60: 0
A61: 158 | M61: 0 | T61: 0
A62: 159 | M62: 0 | T62: 0
A63: 160 | M63: 0 | T63: 0
A64: 161 | M64: 0 | T64: 0
A65: 162 | M65: 0 | T65: 0
A66: 163 | M66: 0 | T66: 0
A67: 164 | M67: 0 | T67: 0
A68: 165 | M68: 0 | T68: 0
A69: 166 | M69: =(G69*$G$2 +H69*$H$2+I69*$I$2+J69*$J$2 +K69*$K$2+L69*$L$2) -> 0 | T69: =(N69*$N$2 +O69*$O$2+P69*$P$2+Q69*$Q$2 +R69*$R$2+S69*$S$2) -> 0
A70: 167 | M70: 0 | T70: 0
A71: 168 | M71: 0 | T71: 0
A72: 169 | M72: 0 | T72: 0
A73: 170 | M73: 0 | T73: 0
A74: 171 | M74: 0 | T74: 0
A75: 172 | M75: 0 | T75: 0
A76: 173 | M76: 0 | T76: 0
A77: 174 | M77: 0 | T77: 0
A78: 175 | M78: 0 | T78: 0
A79: 176 | M79: 0 | T79: 0
A80: 177 | M80: 0 | T80: 0
A81: 178 | M81: 0 | T81: 0
A82: 179 | M82: 0 | T82: 0
A83: 180 | M83: 0 | T83: 0
A84: 181 | M84: 0 | T84: 0
A85: 182 | M85: 0 | T85: 0
A86: 183 | M86: 0 | T86: 0
A87: 184 | M87: 0 | T87: 0
A88: 185 | M88: 0 | T88: 0
A89: 186 | M89: 0 | T89: 0
A90: 187 | M90: 0 | T90: 0
A91: 188 | M91: 0 | T91: 0
A92: 189 | M92: 0 | T92: 0
A93: 190 | M93: 0 | T93: 0
A94: 191 | M94: 0 | T94: 0
A95: 192 | M95: 0 | T95: 0
A96: 193 | M96: 0 | T96: 0
A97: 194 | M97: 0 | T97: 0
A98: 195 | M98: 0 | T98: 0
A99: 196 | M99: 0 | T99: 0
A100: 197 | M100: 0 | T100: 0
A101: 198 | M101: 0 | T101: 0
A102: 199 | M102: 0 | T102: 0
A103: 200 | M103: 0 | T103: 0
A104: 201 | B104: Cup | D104: Klose 2 | G104: 48.11 | H104: 41 | I104: 41.37 | J104: 41.06 | K104: 40.72 | L104: 41.27 | M104: 253.53 | T104: 0
A105: 202 | B105: Cup | D105: Klose 1 | G105: 39.99 | H105: 39.94 | I105: 40.95 | J105: 40.74 | K105: 40.82 | L105: 40.92 | M105: 243.36 | T105: 0
A106: 203 | B106: Cup | D106: CDU Black Hawks | G106: 40.69 | H106: 40.24 | I106: 40.11 | J106: 40.46 | K106: 39.92 | L106: 41.2 | M106: 242.62 | T106: 0
A107: 204 | B107: Cup | D107: Schalker Freunde Mettingen | G107: 41.22 | H107: 40.27 | I107: 41.12 | J107: 40.15 | K107: 40.66 | L107: 40.67 | M107: 244.09 | T107: 0
A108: 205 | B108: Cup | D108: Seesterne 1 | G108: 40.84 | H108: 41.55 | I108: 41.28 | J108: 40.61 | K108: 41.43 | L108: 40.91 | M108: 246.62 | T108: 0
A109: 206 | B109: Cup | D109: Seesterne 2 | G109: 43.88 | H109: 41.57 | I109: 40.93 | J109: 41.25 | K109: 40.92 | L109: 40.82 | M109: 249.37 | T109: 0
A110: 207 | B110: Cup | D110: Kolping Racer | G110: 41.52 | H110: 41 | I110: 40.58 | J110: 40.6 | K110: 40.58 | L110: 40.73 | M110: 245.01 | T110: 0
A111: 208 | B111: Cup | D111: Doko Boys | G111: 41.63 | H111: 40.66 | I111: 41.02 | J111: 40.66 | K111: 41.2 | L111: 41.34 | M111: 246.51 | T111: 0
A112: 209 | B112: Cup | D112: Musikerstammtisch | G112: 41.71 | H112: 41.15 | I112: 41.28 | J112: 41.08 | K112: 41.02 | L112: 41.01 | M112: 247.25 | T112: 0
A113: 210 | B113: Cup | D113: Bürgermobil Mettingen | G113: 41.5 | H113: 40.9 | I113: 40.85 | J113: 41.62 | K113: 41.26 | L113: 41.69 | M113: 247.82 | T113: 0
A114: 211 | B114: Cup | D114: Eine Welt Mettingen | G114: 40.82 | H114: 41.73 | I114: 42.1 | J114: 40.89 | K114: 41.76 | L114: 41.82 | M114: 249.12 | T114: 0
A115: 212 | B115: Cup | D115: Die Schleichenden Handballer | G115: 41.04 | H115: 40.51 | I115: 41.22 | J115: 40.7 | K115: 40.28 | L115: 40.2 | M115: 243.95 | T115: 0
A116: 213 | B116: Cup | D116: Turbodüse | G116: 40.51 | H116: 41.15 | I116: 40.96 | J116: 41.5 | K116: 41.19 | L116: 40.82 | M116: 246.13 | T116: 0
A117: 214 | B117: Cup | D117: Brankolonski | G117: 40.65 | H117: 41.53 | I117: 40.98 | J117: 40.74 | K117: 40.31 | L117: 40.95 | M117: 245.16 | T117: 0
A118: 215 | B118: Cup | D118: Schwerkraftkrieger | G118: 40.54 | H118: 41.4 | I118: 40.89 | J118: 41.14 | K118: 41.02 | L118: 39.97 | M118: 244.96 | T118: 0
A119: 216 | B119: Cup | D119: Team 16 | M119: 0 | T119: 0
A120: 217 | B120: Cup | D120: Team 17 | M120: 0 | T120: 0
A121: 218 | B121: Cup | D121: Team 18 | M121: 0 | T121: 0
A122: 219 | B122: Cup | D122: Team 19 | M122: 0 | T122: 0
A123: 220 | B123: Cup | D123: Team 20 | M123: 0 | T123: 0
A124: 221 | B124: Cup | D124: Team 21 | M124: 0 | T124: 0
A125: 222 | B125: Cup | D125: Team 22 | M125: 0 | T125: 0
A126: 223 | B126: Cup | D126: Team 23 | M126: 0 | T126: 0
A127: 224 | B127: Cup | D127: Team 24 | M127: 0 | T127: 0
A128: 225 | B128: Cup | D128: Team 25 | M128: 0 | T128: 0
A129: 226 | B129: Cup | D129: Team 26 | M129: 0 | T129: 0
A130: 227 | B130: Cup | D130: Team 27 | M130: 0 | T130: 0
A131: 228 | B131: Cup | D131: Team 28 | M131: 0 | T131: 0
A132: 229 | B132: Cup | D132: Team 29 | M132: 0 | T132: 0
A133: 230 | B133: Cup | D133: Team 30 | M133: =(G133*$G$2 +H133*$H$2+I133*$I$2+J133*$J$2 +K133*$K$2+L133*$L$2) -> 0 | T133: =(N133*$N$2 +O133*$O$2+P133*$P$2+Q133*$Q$2 +R133*$R$2+S133*$S$2) -> 0
A134: 231 | B134: Cup | D134: Team 31 | M134: 0 | T134: 0
A135: 232 | B135: Cup | D135: Team 32 | M135: 0 | T135: 0
A136: 233 | B136: Cup | D136: Team 33 | M136: 0 | T136: 0
A137: 234 | B137: Cup | M137: 0 | T137: 0
A138: 235 | B138: Cup | M138: 0 | T138: 0
A139: 236 | M139: 0 | T139: 0
A140: 237 | M140: 0 | T140: 0
A141: 238 | M141: 0 | T141: 0
A142: 239 | M142: 0 | T142: 0
A143: 240 | M143: 0 | T143: 0
A144: 241 | M144: 0 | T144: 0
A145: 242 | M145: 0 | T145: 0
A146: 243 | M146: 0 | T146: 0
A147: 244 | M147: 0 | T147: 0
A148: 245 | M148: 0 | T148: 0
A149: 246 | M149: 0 | T149: 0
A150: 247 | M150: 0 | T150: 0
A151: 248 | M151: 0 | T151: 0
A152: 249 | M152: 0 | T152: 0
A153: 250 | M153: 0 | T153: 0
A154: 251 | M154: 0 | T154: 0
A155: 252 | M155: 0 | T155: 0
A156: 253 | M156: 0 | T156: 0
A157: 254 | M157: 0 | T157: 0
A158: 255 | M158: 0 | T158: 0
A159: 256 | M159: 0 | T159: 0
A160: 257 | M160: 0 | T160: 0
A161: 258 | M161: 0 | T161: 0
A162: 259 | M162: 0 | T162: 0
A163: 260 | M163: 0 | T163: 0
A164: 261 | M164: 0 | T164: 0
A165: 262 | M165: 0 | T165: 0
A166: 263 | M166: 0 | T166: 0
A167: 264 | M167: 0 | T167: 0
A168: 265 | M168: 0 | T168: 0
A169: 266 | M169: 0 | T169: 0
A170: 267 | M170: 0 | T170: 0
A171: 268 | M171: 0 | T171: 0
A172: 269 | M172: 0 | T172: 0
A173: 270 | M173: 0 | T173: 0
A174: 271 | M174: 0 | T174: 0
A175: 272 | M175: 0 | T175: 0
A176: 273 | M176: 0 | T176: 0
A177: 274 | M177: 0 | T177: 0
A178: 275 | M178: 0 | T178: 0
A179: 276 | M179: 0 | T179: 0
A180: 277 | M180: 0 | T180: 0
A181: 278 | M181: 0 | T181: 0
A182: 279 | M182: 0 | T182: 0
A183: 280 | M183: 0 | T183: 0
A184: 281 | M184: 0 | T184: 0
A185: 282 | M185: 0 | T185: 0
A186: 283 | M186: 0 | T186: 0
A187: 284 | M187: 0 | T187: 0
A188: 285 | M188: 0 | T188: 0
A189: 286 | M189: 0 | T189: 0
A190: 287 | M190: 0 | T190: 0
A191: 288 | M191: 0 | T191: 0
A192: 289 | M192: 0 | T192: 0
A193: 290 | M193: 0 | T193: 0
A194: 291 | M194: 0 | T194: 0
A195: 292 | M195: 0 | T195: 0
A196: 293 | M196: 0 | T196: 0
A197: 294 | M197: =(G197*$G$2 +H197*$H$2+I197*$I$2+J197*$J$2 +K197*$K$2+L197*$L$2) -> 0 | T197: =(N197*$N$2 +O197*$O$2+P197*$P$2+Q197*$Q$2 +R197*$R$2+S197*$S$2) -> 0
A198: 295 | M198: 0 | T198: 0
A199: 296 | M199: 0 | T199: 0
A200: 297 | M200: 0 | T200: 0
... 702 more rows

Sheet Ergebnis
B1: 09.06.2024 Derby in Mettingen
B2: NRW-Qualifikation Open - Klasse
G4: =Gesamt!G2 -> 1 | H4: =Gesamt!H2 -> 1 | I4: =Gesamt!I2 -> 1 | J4: =Gesamt!J2 -> 1 | K4: =Gesamt!K2 -> 1 | L4: =Gesamt!L2 -> 1 | M4: Blatt ist schreibgeschützt
G5: Wird der Lauf gewertet? dann 0 oder 1
A7: Start Nummer | B7: Gruppe | C7: NRW | D7: Name | E7: Vorname | F7: Verein | G7: Lauf 1 | H7: Lauf 2 | I7: Lauf 3 | J7: Lauf 4 | K7: Lauf 5 | L7: Lauf 6 | M7: Summe der gewerteten Läufe | O7: Platz | P7: Urkunde
A9: 701 | B9: =LOOKUP(A9,Gesamt!A$4:A$1000,Gesamt!B$4:B$1000) -> Open | C9: =LOOKUP(A9,Gesamt!A$4:A$1000,Gesamt!C$4:C$1000) -> 0 | D9: =LOOKUP(A9,Gesamt!A$4:A$1000,Gesamt!D$4:D$1000) -> 0 | E9: =LOOKUP(A9,Gesamt!A$4:A$1000,Gesamt!E$4:E$1000) -> 0 | F9: =LOOKUP(A9,Gesamt!A$4:A$1000,Gesamt!F$4:F$1000) -> 0 | G9: =LOOKUP(A9,Gesamt!A$4:A$1000,Gesamt!G$4:G$1000) -> 0 | H9: =LOOKUP(A9,Gesamt!A$4:A$1000,Gesamt!H$4:H$1000) -> 0 | I9: =LOOKUP(A9,Gesamt!A$4:A$1000,Gesamt!I$4:I$1000) -> 0 | J9: =LOOKUP(A9,Gesamt!A$4:A$1000,Gesamt!J$4:J$1000) -> 0 | K9: =LOOKUP(A9,Gesamt!A$4:A$1000,Gesamt!K$4:K$1000) -> 0 | L9: =LOOKUP(A9,Gesamt!A$4:A$1000,Gesamt!L$4:L$1000) -> 0 | M9: =LOOKUP(A9,Gesamt!A$4:A$1000,Gesamt!M$4:M$1000) -> 0 | N9: =IF(M9>0,M9*-1,-1000) -> -1000 | O9: =IF(M9>0,RANK(N9,N:N),0) -> 0
A10: 702 | B10: =LOOKUP(A10,Gesamt!A$4:A$1000,Gesamt!B$4:B$1000) -> Open | C10: =LOOKUP(A10,Gesamt!A$4:A$1000,Gesamt!C$4:C$1000) -> 0 | D10: =LOOKUP(A10,Gesamt!A$4:A$1000,Gesamt!D$4:D$1000) -> Neuhaus | E10: =LOOKUP(A10,Gesamt!A$4:A$1000,Gesamt!E$4:E$1000) -> Robin | F10: =LOOKUP(A10,Gesamt!A$4:A$1000,Gesamt!F$4:F$1000) -> Mettingen | G10: =LOOKUP(A10,Gesamt!A$4:A$1000,Gesamt!G$4:G$1000) -> 40.7 | H10: =LOOKUP(A10,Gesamt!A$4:A$1000,Gesamt!H$4:H$1000) -> 41.24 | I10: =LOOKUP(A10,Gesamt!A$4:A$1000,Gesamt!I$4:I$1000) -> 40.96 | J10: =LOOKUP(A10,Gesamt!A$4:A$1000,Gesamt!J$4:J$1000) -> 42 | K10: =LOOKUP(A10,Gesamt!A$4:A$1000,Gesamt!K$4:K$1000) -> 41.13 | L10: =LOOKUP(A10,Gesamt!A$4:A$1000,Gesamt!L$4:L$1000) -> 42.3 | M10: =LOOKUP(A10,Gesamt!A$4:A$1000,Gesamt!M$4:M$1000) -> 4.13 | N10: =IF(M10>0,M10*-1,-1000) -> -4.13 | O10: =IF(M10>0,RANK(N10,N:N),0) -> 1
A11: 703 | B11: =LOOKUP(A11,Gesamt!A$4:A$1000,Gesamt!B$4:B$1000) -> Open | C11: =LOOKUP(A11,Gesamt!A$4:A$1000,Gesamt!C$4:C$1000) -> 0 | D11: =LOOKUP(A11,Gesamt!A$4:A$1000,Gesamt!D$4:D$1000) -> 0 | E11: =LOOKUP(A11,Gesamt!A$4:A$1000,Gesamt!E$4:E$1000) -> 0 | F11: =LOOKUP(A11,Gesamt!A$4:A$1000,Gesamt!F$4:F$1000) -> 0 | G11: =LOOKUP(A11,Gesamt!A$4:A$1000,Gesamt!G$4:G$1000) -> 0 | H11: =LOOKUP(A11,Gesamt!A$4:A$1000,Gesamt!H$4:H$1000) -> 0 | I11: =LOOKUP(A11,Gesamt!A$4:A$1000,Gesamt!I$4:I$1000) -> 0 | J11: =LOOKUP(A11,Gesamt!A$4:A$1000,Gesamt!J$4:J$1000) -> 0 | K11: =LOOKUP(A11,Gesamt!A$4:A$1000,Gesamt!K$4:K$1000) -> 0 | L11: =LOOKUP(A11,Gesamt!A$4:A$1000,Gesamt!L$4:L$1000) -> 0 | M11: =LOOKUP(A11,Gesamt!A$4:A$1000,Gesamt!M$4:M$1000) -> 0 | N11: =IF(M11>0,M11*-1,-1000) -> -1000 | O11: =IF(M11>0,RANK(N11,N:N),0) -> 0
A12: 704 | B12: =LOOKUP(A12,Gesamt!A$4:A$1000,Gesamt!B$4:B$1000) -> Open | C12: =LOOKUP(A12,Gesamt!A$4:A$1000,Gesamt!C$4:C$1000) -> 0 | D12: =LOOKUP(A12,Gesamt!A$4:A$1000,Gesamt!D$4:D$1000) -> 0 | E12: =LOOKUP(A12,Gesamt!A$4:A$1000,Gesamt!E$4:E$1000) -> 0 | F12: =LOOKUP(A12,Gesamt!A$4:A$1000,Gesamt!F$4:F$1000) -> 0 | G12: =LOOKUP(A12,Gesamt!A$4:A$1000,Gesamt!G$4:G$1000) -> 0 | H12: =LOOKUP(A12,Gesamt!A$4:A$1000,Gesamt!H$4:H$1000) -> 0 | I12: =LOOKUP(A12,Gesamt!A$4:A$1000,Gesamt!I$4:I$1000) -> 0 | J12: =LOOKUP(A12,Gesamt!A$4:A$1000,Gesamt!J$4:J$1000) -> 0 | K12: =LOOKUP(A12,Gesamt!A$4:A$1000,Gesamt!K$4:K$1000) -> 0 | L12: =LOOKUP(A12,Gesamt!A$4:A$1000,Gesamt!L$4:L$1000) -> 0 | M12: =LOOKUP(A12,Gesamt!A$4:A$1000,Gesamt!M$4:M$1000) -> 0 | N12: =IF(M12>0,M12*-1,-1000) -> -1000 | O12: =IF(M12>0,RANK(N12,N:N),0) -> 0
A13: 705 | B13: =LOOKUP(A13,Gesamt!A$4:A$1000,Gesamt!B$4:B$1000) -> Open | C13: =LOOKUP(A13,Gesamt!A$4:A$1000,Gesamt!C$4:C$1000) -> 0 | D13: =LOOKUP(A13,Gesamt!A$4:A$1000,Gesamt!D$4:D$1000) -> 0 | E13: =LOOKUP(A13,Gesamt!A$4:A$1000,Gesamt!E$4:E$1000) -> 0 | F13: =LOOKUP(A13,Gesamt!A$4:A$1000,Gesamt!F$4:F$1000) -> 0 | G13: =LOOKUP(A13,Gesamt!A$4:A$1000,Gesamt!G$4:G$1000) -> 0 | H13: =LOOKUP(A13,Gesamt!A$4:A$1000,Gesamt!H$4:H$1000) -> 0 | I13: =LOOKUP(A13,Gesamt!A$4:A$1000,Gesamt!I$4:I$1000) -> 0 | J13: =LOOKUP(A13,Gesamt!A$4:A$1000,Gesamt!J$4:J$1000) -> 0 | K13: =LOOKUP(A13,Gesamt!A$4:A$1000,Gesamt!K$4:K$1000) -> 0 | L13: =LOOKUP(A13,Gesamt!A$4:A$1000,Gesamt!L$4:L$1000) -> 0 | M13: =LOOKUP(A13,Gesamt!A$4:A$1000,Gesamt!M$4:M$1000) -> 0 | N13: =IF(M13>0,M13*-1,-1000) -> -1000 | O13: =IF(M13>0,RANK(N13,N:N),0) -> 0
A14: 706 | B14: =LOOKUP(A14,Gesamt!A$4:A$1000,Gesamt!B$4:B$1000) -> Open | C14: =LOOKUP(A14,Gesamt!A$4:A$1000,Gesamt!C$4:C$1000) -> 0 | D14: =LOOKUP(A14,Gesamt!A$4:A$1000,Gesamt!D$4:D$1000) -> 0 | E14: =LOOKUP(A14,Gesamt!A$4:A$1000,Gesamt!E$4:E$1000) -> 0 | F14: =LOOKUP(A14,Gesamt!A$4:A$1000,Gesamt!F$4:F$1000) -> 0 | G14: =LOOKUP(A14,Gesamt!A$4:A$1000,Gesamt!G$4:G$1000) -> 0 | H14: =LOOKUP(A14,Gesamt!A$4:A$1000,Gesamt!H$4:H$1000) -> 0 | I14: =LOOKUP(A14,Gesamt!A$4:A$1000,Gesamt!I$4:I$1000) -> 0 | J14: =LOOKUP(A14,Gesamt!A$4:A$1000,Gesamt!J$4:J$1000) -> 0 | K14: =LOOKUP(A14,Gesamt!A$4:A$1000,Gesamt!K$4:K$1000) -> 0 | L14: =LOOKUP(A14,Gesamt!A$4:A$1000,Gesamt!L$4:L$1000) -> 0 | M14: =LOOKUP(A14,Gesamt!A$4:A$1000,Gesamt!M$4:M$1000) -> 0 | N14: =IF(M14>0,M14*-1,-1000) -> -1000 | O14: =IF(M14>0,RANK(N14,N:N),0) -> 0
A15: 707 | B15: =LOOKUP(A15,Gesamt!A$4:A$1000,Gesamt!B$4:B$1000) -> Open | C15: =LOOKUP(A15,Gesamt!A$4:A$1000,Gesamt!C$4:C$1000) -> 0 | D15: =LOOKUP(A15,Gesamt!A$4:A$1000,Gesamt!D$4:D$1000) -> 0 | E15: =LOOKUP(A15,Gesamt!A$4:A$1000,Gesamt!E$4:E$1000) -> 0 | F15: =LOOKUP(A15,Gesamt!A$4:A$1000,Gesamt!F$4:F$1000) -> 0 | G15: =LOOKUP(A15,Gesamt!A$4:A$1000,Gesamt!G$4:G$1000) -> 0 | H15: =LOOKUP(A15,Gesamt!A$4:A$1000,Gesamt!H$4:H$1000) -> 0 | I15: =LOOKUP(A15,Gesamt!A$4:A$1000,Gesamt!I$4:I$1000) -> 0 | J15: =LOOKUP(A15,Gesamt!A$4:A$1000,Gesamt!J$4:J$1000) -> 0 | K15: =LOOKUP(A15,Gesamt!A$4:A$1000,Gesamt!K$4:K$1000) -> 0 | L15: =LOOKUP(A15,Gesamt!A$4:A$1000,Gesamt!L$4:L$1000) -> 0 | M15: =LOOKUP(A15,Gesamt!A$4:A$1000,Gesamt!M$4:M$1000) -> 0 | N15: =IF(M15>0,M15*-1,-1000) -> -1000 | O15: =IF(M15>0,RANK(N15,N:N),0) -> 0
A16: 708 | B16: =LOOKUP(A16,Gesamt!A$4:A$1000,Gesamt!B$4:B$1000) -> Open | C16: =LOOKUP(A16,Gesamt!A$4:A$1000,Gesamt!C$4:C$1000) -> 0 | D16: =LOOKUP(A16,Gesamt!A$4:A$1000,Gesamt!D$4:D$1000) -> 0 | E16: =LOOKUP(A16,Gesamt!A$4:A$1000,Gesamt!E$4:E$1000) -> 0 | F16: =LOOKUP(A16,Gesamt!A$4:A$1000,Gesamt!F$4:F$1000) -> 0 | G16: =LOOKUP(A16,Gesamt!A$4:A$1000,Gesamt!G$4:G$1000) -> 0 | H16: =LOOKUP(A16,Gesamt!A$4:A$1000,Gesamt!H$4:H$1000) -> 0 | I16: =LOOKUP(A16,Gesamt!A$4:A$1000,Gesamt!I$4:I$1000) -> 0 | J16: =LOOKUP(A16,Gesamt!A$4:A$1000,Gesamt!J$4:J$1000) -> 0 | K16: =LOOKUP(A16,Gesamt!A$4:A$1000,Gesamt!K$4:K$1000) -> 0 | L16: =LOOKUP(A16,Gesamt!A$4:A$1000,Gesamt!L$4:L$1000) -> 0 | M16: =LOOKUP(A16,Gesamt!A$4:A$1000,Gesamt!M$4:M$1000) -> 0 | N16: =IF(M16>0,M16*-1,-1000) -> -1000 | O16: =IF(M16>0,RANK(N16,N:N),0) -> 0
A17: 709 | B17: =LOOKUP(A17,Gesamt!A$4:A$1000,Gesamt!B$4:B$1000) -> Open | C17: =LOOKUP(A17,Gesamt!A$4:A$1000,Gesamt!C$4:C$1000) -> 0 | D17: =LOOKUP(A17,Gesamt!A$4:A$1000,Gesamt!D$4:D$1000) -> 0 | E17: =LOOKUP(A17,Gesamt!A$4:A$1000,Gesamt!E$4:E$1000) -> 0 | F17: =LOOKUP(A17,Gesamt!A$4:A$1000,Gesamt!F$4:F$1000) -> 0 | G17: =LOOKUP(A17,Gesamt!A$4:A$1000,Gesamt!G$4:G$1000) -> 0 | H17: =LOOKUP(A17,Gesamt!A$4:A$1000,Gesamt!H$4:H$1000) -> 0 | I17: =LOOKUP(A17,Gesamt!A$4:A$1000,Gesamt!I$4:I$1000) -> 0 | J17: =LOOKUP(A17,Gesamt!A$4:A$1000,Gesamt!J$4:J$1000) -> 0 | K17: =LOOKUP(A17,Gesamt!A$4:A$1000,Gesamt!K$4:K$1000) -> 0 | L17: =LOOKUP(A17,Gesamt!A$4:A$1000,Gesamt!L$4:L$1000) -> 0 | M17: =LOOKUP(A17,Gesamt!A$4:A$1000,Gesamt!M$4:M$1000) -> 0 | N17: =IF(M17>0,M17*-1,-1000) -> -1000 | O17: =IF(M17>0,RANK(N17,N:N),0) -> 0
A18: 710 | B18: =LOOKUP(A18,Gesamt!A$4:A$1000,Gesamt!B$4:B$1000) -> Open | C18: =LOOKUP(A18,Gesamt!A$4:A$1000,Gesamt!C$4:C$1000) -> 0 | D18: =LOOKUP(A18,Gesamt!A$4:A$1000,Gesamt!D$4:D$1000) -> 0 | E18: =LOOKUP(A18,Gesamt!A$4:A$1000,Gesamt!E$4:E$1000) -> 0 | F18: =LOOKUP(A18,Gesamt!A$4:A$1000,Gesamt!F$4:F$1000) -> 0 | G18: =LOOKUP(A18,Gesamt!A$4:A$1000,Gesamt!G$4:G$1000) -> 0 | H18: =LOOKUP(A18,Gesamt!A$4:A$1000,Gesamt!H$4:H$1000) -> 0 | I18: =LOOKUP(A18,Gesamt!A$4:A$1000,Gesamt!I$4:I$1000) -> 0 | J18: =LOOKUP(A18,Gesamt!A$4:A$1000,Gesamt!J$4:J$1000) -> 0 | K18: =LOOKUP(A18,Gesamt!A$4:A$1000,Gesamt!K$4:K$1000) -> 0 | L18: =LOOKUP(A18,Gesamt!A$4:A$1000,Gesamt!L$4:L$1000) -> 0 | M18: =LOOKUP(A18,Gesamt!A$4:A$1000,Gesamt!M$4:M$1000) -> 0 | N18: =IF(M18>0,M18*-1,-1000) -> -1000 | O18: =IF(M18>0,RANK(N18,N:N),0) -> 0
A19: 711 | B19: =LOOKUP(A19,Gesamt!A$4:A$1000,Gesamt!B$4:B$1000) -> Open | C19: =LOOKUP(A19,Gesamt!A$4:A$1000,Gesamt!C$4:C$1000) -> 0 | D19: =LOOKUP(A19,Gesamt!A$4:A$1000,Gesamt!D$4:D$1000) -> 0 | E19: =LOOKUP(A19,Gesamt!A$4:A$1000,Gesamt!E$4:E$1000) -> 0 | F19: =LOOKUP(A19,Gesamt!A$4:A$1000,Gesamt!F$4:F$1000) -> 0 | G19: =LOOKUP(A19,Gesamt!A$4:A$1000,Gesamt!G$4:G$1000) -> 0 | H19: =LOOKUP(A19,Gesamt!A$4:A$1000,Gesamt!H$4:H$1000) -> 0 | I19: =LOOKUP(A19,Gesamt!A$4:A$1000,Gesamt!I$4:I$1000) -> 0 | J19: =LOOKUP(A19,Gesamt!A$4:A$1000,Gesamt!J$4:J$1000) -> 0 | K19: =LOOKUP(A19,Gesamt!A$4:A$1000,Gesamt!K$4:K$1000) -> 0 | L19: =LOOKUP(A19,Gesamt!A$4:A$1000,Gesamt!L$4:L$1000) -> 0 | M19: =LOOKUP(A19,Gesamt!A$4:A$1000,Gesamt!M$4:M$1000) -> 0 | N19: =IF(M19>0,M19*-1,-1000) -> -1000 | O19: =IF(M19>0,RANK(N19,N:N),0) -> 0
A20: 712 | B20: =LOOKUP(A20,Gesamt!A$4:A$1000,Gesamt!B$4:B$1000) -> Open | C20: =LOOKUP(A20,Gesamt!A$4:A$1000,Gesamt!C$4:C$1000) -> 0 | D20: =LOOKUP(A20,Gesamt!A$4:A$1000,Gesamt!D$4:D$1000) -> 0 | E20: =LOOKUP(A20,Gesamt!A$4:A$1000,Gesamt!E$4:E$1000) -> 0 | F20: =LOOKUP(A20,Gesamt!A$4:A$1000,Gesamt!F$4:F$1000) -> 0 | G20: =LOOKUP(A20,Gesamt!A$4:A$1000,Gesamt!G$4:G$1000) -> 0 | H20: =LOOKUP(A20,Gesamt!A$4:A$1000,Gesamt!H$4:H$1000) -> 0 | I20: =LOOKUP(A20,Gesamt!A$4:A$1000,Gesamt!I$4:I$1000) -> 0 | J20: =LOOKUP(A20,Gesamt!A$4:A$1000,Gesamt!J$4:J$1000) -> 0 | K20: =LOOKUP(A20,Gesamt!A$4:A$1000,Gesamt!K$4:K$1000) -> 0 | L20: =LOOKUP(A20,Gesamt!A$4:A$1000,Gesamt!L$4:L$1000) -> 0 | M20: =LOOKUP(A20,Gesamt!A$4:A$1000,Gesamt!M$4:M$1000) -> 0 | N20: =IF(M20>0,M20*-1,-1000) -> -1000 | O20: =IF(M20>0,RANK(N20,N:N),0) -> 0
A21: 713 | B21: =LOOKUP(A21,Gesamt!A$4:A$1000,Gesamt!B$4:B$1000) -> Open | C21: =LOOKUP(A21,Gesamt!A$4:A$1000,Gesamt!C$4:C$1000) -> 0 | D21: =LOOKUP(A21,Gesamt!A$4:A$1000,Gesamt!D$4:D$1000) -> 0 | E21: =LOOKUP(A21,Gesamt!A$4:A$1000,Gesamt!E$4:E$1000) -> 0 | F21: =LOOKUP(A21,Gesamt!A$4:A$1000,Gesamt!F$4:F$1000) -> 0 | G21: =LOOKUP(A21,Gesamt!A$4:A$1000,Gesamt!G$4:G$1000) -> 0 | H21: =LOOKUP(A21,Gesamt!A$4:A$1000,Gesamt!H$4:H$1000) -> 0 | I21: =LOOKUP(A21,Gesamt!A$4:A$1000,Gesamt!I$4:I$1000) -> 0 | J21: =LOOKUP(A21,Gesamt!A$4:A$1000,Gesamt!J$4:J$1000) -> 0 | K21: =LOOKUP(A21,Gesamt!A$4:A$1000,Gesamt!K$4:K$1000) -> 0 | L21: =LOOKUP(A21,Gesamt!A$4:A$1000,Gesamt!L$4:L$1000) -> 0 | M21: =LOOKUP(A21,Gesamt!A$4:A$1000,Gesamt!M$4:M$1000) -> 0 | N21: =IF(M21>0,M21*-1,-1000) -> -1000 | O21: =IF(M21>0,RANK(N21,N:N),0) -> 0
A22: 714 | B22: =LOOKUP(A22,Gesamt!A$4:A$1000,Gesamt!B$4:B$1000) -> Open | C22: =LOOKUP(A22,Gesamt!A$4:A$1000,Gesamt!C$4:C$1000) -> 0 | D22: =LOOKUP(A22,Gesamt!A$4:A$1000,Gesamt!D$4:D$1000) -> 0 | E22: =LOOKUP(A22,Gesamt!A$4:A$1000,Gesamt!E$4:E$1000) -> 0 | F22: =LOOKUP(A22,Gesamt!A$4:A$1000,Gesamt!F$4:F$1000) -> 0 | G22: =LOOKUP(A22,Gesamt!A$4:A$1000,Gesamt!G$4:G$1000) -> 0 | H22: =LOOKUP(A22,Gesamt!A$4:A$1000,Gesamt!H$4:H$1000) -> 0 | I22: =LOOKUP(A22,Gesamt!A$4:A$1000,Gesamt!I$4:I$1000) -> 0 | J22: =LOOKUP(A22,Gesamt!A$4:A$1000,Gesamt!J$4:J$1000) -> 0 | K22: =LOOKUP(A22,Gesamt!A$4:A$1000,Gesamt!K$4:K$1000) -> 0 | L22: =LOOKUP(A22,Gesamt!A$4:A$1000,Gesamt!L$4:L$1000) -> 0 | M22: =LOOKUP(A22,Gesamt!A$4:A$1000,Gesamt!M$4:M$1000) -> 0 | N22: =IF(M22>0,M22*-1,-1000) -> -1000 | O22: =IF(M22>0,RANK(N22,N:N),0) -> 0
A23: 715 | B23: =LOOKUP(A23,Gesamt!A$4:A$1000,Gesamt!B$4:B$1000) -> Open | C23: =LOOKUP(A23,Gesamt!A$4:A$1000,Gesamt!C$4:C$1000) -> 0 | D23: =LOOKUP(A23,Gesamt!A$4:A$1000,Gesamt!D$4:D$1000) -> 0 | E23: =LOOKUP(A23,Gesamt!A$4:A$1000,Gesamt!E$4:E$1000) -> 0 | F23: =LOOKUP(A23,Gesamt!A$4:A$1000,Gesamt!F$4:F$1000) -> 0 | G23: =LOOKUP(A23,Gesamt!A$4:A$1000,Gesamt!G$4:G$1000) -> 0 | H23: =LOOKUP(A23,Gesamt!A$4:A$1000,Gesamt!H$4:H$1000) -> 0 | I23: =LOOKUP(A23,Gesamt!A$4:A$1000,Gesamt!I$4:I$1000) -> 0 | J23: =LOOKUP(A23,Gesamt!A$4:A$1000,Gesamt!J$4:J$1000) -> 0 | K23: =LOOKUP(A23,Gesamt!A$4:A$1000,Gesamt!K$4:K$1000) -> 0 | L23: =LOOKUP(A23,Gesamt!A$4:A$1000,Gesamt!L$4:L$1000) -> 0 | M23: =LOOKUP(A23,Gesamt!A$4:A$1000,Gesamt!M$4:M$1000) -> 0 | N23: =IF(M23>0,M23*-1,-1000) -> -1000 | O23: =IF(M23>0,RANK(N23,N:N),0) -> 0
A24: 716 | B24: =LOOKUP(A24,Gesamt!A$4:A$1000,Gesamt!B$4:B$1000) -> Open | C24: =LOOKUP(A24,Gesamt!A$4:A$1000,Gesamt!C$4:C$1000) -> 0 | D24: =LOOKUP(A24,Gesamt!A$4:A$1000,Gesamt!D$4:D$1000) -> 0 | E24: =LOOKUP(A24,Gesamt!A$4:A$1000,Gesamt!E$4:E$1000) -> 0 | F24: =LOOKUP(A24,Gesamt!A$4:A$1000,Gesamt!F$4:F$1000) -> 0 | G24: =LOOKUP(A24,Gesamt!A$4:A$1000,Gesamt!G$4:G$1000) -> 0 | H24: =LOOKUP(A24,Gesamt!A$4:A$1000,Gesamt!H$4:H$1000) -> 0 | I24: =LOOKUP(A24,Gesamt!A$4:A$1000,Gesamt!I$4:I$1000) -> 0 | J24: =LOOKUP(A24,Gesamt!A$4:A$1000,Gesamt!J$4:J$1000) -> 0 | K24: =LOOKUP(A24,Gesamt!A$4:A$1000,Gesamt!K$4:K$1000) -> 0 | L24: =LOOKUP(A24,Gesamt!A$4:A$1000,Gesamt!L$4:L$1000) -> 0 | M24: =LOOKUP(A24,Gesamt!A$4:A$1000,Gesamt!M$4:M$1000) -> 0 | N24: =IF(M24>0,M24*-1,-1000) -> -1000 | O24: =IF(M24>0,RANK(N24,N:N),0) -> 0
A25: 717 | B25: =LOOKUP(A25,Gesamt!A$4:A$1000,Gesamt!B$4:B$1000) -> Open | C25: =LOOKUP(A25,Gesamt!A$4:A$1000,Gesamt!C$4:C$1000) -> 0 | D25: =LOOKUP(A25,Gesamt!A$4:A$1000,Gesamt!D$4:D$1000) -> 0 | E25: =LOOKUP(A25,Gesamt!A$4:A$1000,Gesamt!E$4:E$1000) -> 0 | F25: =LOOKUP(A25,Gesamt!A$4:A$1000,Gesamt!F$4:F$1000) -> 0 | G25: =LOOKUP(A25,Gesamt!A$4:A$1000,Gesamt!G$4:G$1000) -> 0 | H25: =LOOKUP(A25,Gesamt!A$4:A$1000,Gesamt!H$4:H$1000) -> 0 | I25: =LOOKUP(A25,Gesamt!A$4:A$1000,Gesamt!I$4:I$1000) -> 0 | J25: =LOOKUP(A25,Gesamt!A$4:A$1000,Gesamt!J$4:J$1000) -> 0 | K25: =LOOKUP(A25,Gesamt!A$4:A$1000,Gesamt!K$4:K$1000) -> 0 | L25: =LOOKUP(A25,Gesamt!A$4:A$1000,Gesamt!L$4:L$1000) -> 0 | M25: =LOOKUP(A25,Gesamt!A$4:A$1000,Gesamt!M$4:M$1000) -> 0 | N25: =IF(M25>0,M25*-1,-1000) -> -1000 | O25: =IF(M25>0,RANK(N25,N:N),0) -> 0
A26: 718 | B26: =LOOKUP(A26,Gesamt!A$4:A$1000,Gesamt!B$4:B$1000) -> Open | C26: =LOOKUP(A26,Gesamt!A$4:A$1000,Gesamt!C$4:C$1000) -> 0 | D26: =LOOKUP(A26,Gesamt!A$4:A$1000,Gesamt!D$4:D$1000) -> 0 | E26: =LOOKUP(A26,Gesamt!A$4:A$1000,Gesamt!E$4:E$1000) -> 0 | F26: =LOOKUP(A26,Gesamt!A$4:A$1000,Gesamt!F$4:F$1000) -> 0 | G26: =LOOKUP(A26,Gesamt!A$4:A$1000,Gesamt!G$4:G$1000) -> 0 | H26: =LOOKUP(A26,Gesamt!A$4:A$1000,Gesamt!H$4:H$1000) -> 0 | I26: =LOOKUP(A26,Gesamt!A$4:A$1000,Gesamt!I$4:I$1000) -> 0 | J26: =LOOKUP(A26,Gesamt!A$4:A$1000,Gesamt!J$4:J$1000) -> 0 | K26: =LOOKUP(A26,Gesamt!A$4:A$1000,Gesamt!K$4:K$1000) -> 0 | L26: =LOOKUP(A26,Gesamt!A$4:A$1000,Gesamt!L$4:L$1000) -> 0 | M26: =LOOKUP(A26,Gesamt!A$4:A$1000,Gesamt!M$4:M$1000) -> 0 | N26: =IF(M26>0,M26*-1,-1000) -> -1000 | O26: =IF(M26>0,RANK(N26,N:N),0) -> 0
A27: 719 | B27: =LOOKUP(A27,Gesamt!A$4:A$1000,Gesamt!B$4:B$1000) -> Open | C27: =LOOKUP(A27,Gesamt!A$4:A$1000,Gesamt!C$4:C$1000) -> 0 | D27: =LOOKUP(A27,Gesamt!A$4:A$1000,Gesamt!D$4:D$1000) -> 0 | E27: =LOOKUP(A27,Gesamt!A$4:A$1000,Gesamt!E$4:E$1000) -> 0 | F27: =LOOKUP(A27,Gesamt!A$4:A$1000,Gesamt!F$4:F$1000) -> 0 | G27: =LOOKUP(A27,Gesamt!A$4:A$1000,Gesamt!G$4:G$1000) -> 0 | H27: =LOOKUP(A27,Gesamt!A$4:A$1000,Gesamt!H$4:H$1000) -> 0 | I27: =LOOKUP(A27,Gesamt!A$4:A$1000,Gesamt!I$4:I$1000) -> 0 | J27: =LOOKUP(A27,Gesamt!A$4:A$1000,Gesamt!J$4:J$1000) -> 0 | K27: =LOOKUP(A27,Gesamt!A$4:A$1000,Gesamt!K$4:K$1000) -> 0 | L27: =LOOKUP(A27,Gesamt!A$4:A$1000,Gesamt!L$4:L$1000) -> 0 | M27: =LOOKUP(A27,Gesamt!A$4:A$1000,Gesamt!M$4:M$1000) -> 0 | N27: =IF(M27>0,M27*-1,-1000) -> -1000 | O27: =IF(M27>0,RANK(N27,N:N),0) -> 0
A28: 720 | B28: =LOOKUP(A28,Gesamt!A$4:A$1000,Gesamt!B$4:B$1000) -> 0 | C28: =LOOKUP(A28,Gesamt!A$4:A$1000,Gesamt!C$4:C$1000) -> 0 | D28: =LOOKUP(A28,Gesamt!A$4:A$1000,Gesamt!D$4:D$1000) -> 0 | E28: =LOOKUP(A28,Gesamt!A$4:A$1000,Gesamt!E$4:E$1000) -> 0 | F28: =LOOKUP(A28,Gesamt!A$4:A$1000,Gesamt!F$4:F$1000) -> 0 | G28: =LOOKUP(A28,Gesamt!A$4:A$1000,Gesamt!G$4:G$1000) -> 0 | H28: =LOOKUP(A28,Gesamt!A$4:A$1000,Gesamt!H$4:H$1000) -> 0 | I28: =LOOKUP(A28,Gesamt!A$4:A$1000,Gesamt!I$4:I$1000) -> 0 | J28: =LOOKUP(A28,Gesamt!A$4:A$1000,Gesamt!J$4:J$1000) -> 0 | K28: =LOOKUP(A28,Gesamt!A$4:A$1000,Gesamt!K$4:K$1000) -> 0 | L28: =LOOKUP(A28,Gesamt!A$4:A$1000,Gesamt!L$4:L$1000) -> 0 | M28: =LOOKUP(A28,Gesamt!A$4:A$1000,Gesamt!M$4:M$1000) -> 0 | N28: =IF(M28>0,M28*-1,-1000) -> -1000 | O28: =IF(M28>0,RANK(N28,N:N),0) -> 0
A29: 721 | B29: =LOOKUP(A29,Gesamt!A$4:A$1000,Gesamt!B$4:B$1000) -> 0 | C29: =LOOKUP(A29,Gesamt!A$4:A$1000,Gesamt!C$4:C$1000) -> 0 | D29: =LOOKUP(A29,Gesamt!A$4:A$1000,Gesamt!D$4:D$1000) -> 0 | E29: =LOOKUP(A29,Gesamt!A$4:A$1000,Gesamt!E$4:E$1000) -> 0 | F29: =LOOKUP(A29,Gesamt!A$4:A$1000,Gesamt!F$4:F$1000) -> 0 | G29: =LOOKUP(A29,Gesamt!A$4:A$1000,Gesamt!G$4:G$1000) -> 0 | H29: =LOOKUP(A29,Gesamt!A$4:A$1000,Gesamt!H$4:H$1000) -> 0 | I29: =LOOKUP(A29,Gesamt!A$4:A$1000,Gesamt!I$4:I$1000) -> 0 | J29: =LOOKUP(A29,Gesamt!A$4:A$1000,Gesamt!J$4:J$1000) -> 0 | K29: =LOOKUP(A29,Gesamt!A$4:A$1000,Gesamt!K$4:K$1000) -> 0 | L29: =LOOKUP(A29,Gesamt!A$4:A$1000,Gesamt!L$4:L$1000) -> 0 | M29: =LOOKUP(A29,Gesamt!A$4:A$1000,Gesamt!M$4:M$1000) -> 0 | N29: =IF(M29>0,M29*-1,-1000) -> -1000 | O29: =IF(M29>0,RANK(N29,N:N),0) -> 0
A30: 722 | B30: =LOOKUP(A30,Gesamt!A$4:A$1000,Gesamt!B$4:B$1000) -> 0 | C30: =LOOKUP(A30,Gesamt!A$4:A$1000,Gesamt!C$4:C$1000) -> 0 | D30: =LOOKUP(A30,Gesamt!A$4:A$1000,Gesamt!D$4:D$1000) -> 0 | E30: =LOOKUP(A30,Gesamt!A$4:A$1000,Gesamt!E$4:E$1000) -> 0 | F30: =LOOKUP(A30,Gesamt!A$4:A$1000,Gesamt!F$4:F$1000) -> 0 | G30: =LOOKUP(A30,Gesamt!A$4:A$1000,Gesamt!G$4:G$1000) -> 0 | H30: =LOOKUP(A30,Gesamt!A$4:A$1000,Gesamt!H$4:H$1000) -> 0 | I30: =LOOKUP(A30,Gesamt!A$4:A$1000,Gesamt!I$4:I$1000) -> 0 | J30: =LOOKUP(A30,Gesamt!A$4:A$1000,Gesamt!J$4:J$1000) -> 0 | K30: =LOOKUP(A30,Gesamt!A$4:A$1000,Gesamt!K$4:K$1000) -> 0 | L30: =LOOKUP(A30,Gesamt!A$4:A$1000,Gesamt!L$4:L$1000) -> 0 | M30: =LOOKUP(A30,Gesamt!A$4:A$1000,Gesamt!M$4:M$1000) -> 0 | N30: =IF(M30>0,M30*-1,-1000) -> -1000 | O30: =IF(M30>0,RANK(N30,N:N),0) -> 0
A31: 723 | B31: =LOOKUP(A31,Gesamt!A$4:A$1000,Gesamt!B$4:B$1000) -> 0 | C31: =LOOKUP(A31,Gesamt!A$4:A$1000,Gesamt!C$4:C$1000) -> 0 | D31: =LOOKUP(A31,Gesamt!A$4:A$1000,Gesamt!D$4:D$1000) -> 0 | E31: =LOOKUP(A31,Gesamt!A$4:A$1000,Gesamt!E$4:E$1000) -> 0 | F31: =LOOKUP(A31,Gesamt!A$4:A$1000,Gesamt!F$4:F$1000) -> 0 | G31: =LOOKUP(A31,Gesamt!A$4:A$1000,Gesamt!G$4:G$1000) -> 0 | H31: =LOOKUP(A31,Gesamt!A$4:A$1000,Gesamt!H$4:H$1000) -> 0 | I31: =LOOKUP(A31,Gesamt!A$4:A$1000,Gesamt!I$4:I$1000) -> 0 | J31: =LOOKUP(A31,Gesamt!A$4:A$1000,Gesamt!J$4:J$1000) -> 0 | K31: =LOOKUP(A31,Gesamt!A$4:A$1000,Gesamt!K$4:K$1000) -> 0 | L31: =LOOKUP(A31,Gesamt!A$4:A$1000,Gesamt!L$4:L$1000) -> 0 | M31: =LOOKUP(A31,Gesamt!A$4:A$1000,Gesamt!M$4:M$1000) -> 0 | N31: =IF(M31>0,M31*-1,-1000) -> -1000 | O31: =IF(M31>0,RANK(N31,N:N),0) -> 0
A32: 724 | B32: =LOOKUP(A32,Gesamt!A$4:A$1000,Gesamt!B$4:B$1000) -> 0 | C32: =LOOKUP(A32,Gesamt!A$4:A$1000,Gesamt!C$4:C$1000) -> 0 | D32: =LOOKUP(A32,Gesamt!A$4:A$1000,Gesamt!D$4:D$1000) -> 0 | E32: =LOOKUP(A32,Gesamt!A$4:A$1000,Gesamt!E$4:E$1000) -> 0 | F32: =LOOKUP(A32,Gesamt!A$4:A$1000,Gesamt!F$4:F$1000) -> 0 | G32: =LOOKUP(A32,Gesamt!A$4:A$1000,Gesamt!G$4:G$1000) -> 0 | H32: =LOOKUP(A32,Gesamt!A$4:A$1000,Gesamt!H$4:H$1000) -> 0 | I32: =LOOKUP(A32,Gesamt!A$4:A$1000,Gesamt!I$4:I$1000) -> 0 | J32: =LOOKUP(A32,Gesamt!A$4:A$1000,Gesamt!J$4:J$1000) -> 0 | K32: =LOOKUP(A32,Gesamt!A$4:A$1000,Gesamt!K$4:K$1000) -> 0 | L32: =LOOKUP(A32,Gesamt!A$4:A$1000,Gesamt!L$4:L$1000) -> 0 | M32: =LOOKUP(A32,Gesamt!A$4:A$1000,Gesamt!M$4:M$1000) -> 0 | N32: =IF(M32>0,M32*-1,-1000) -> -1000 | O32: =IF(M32>0,RANK(N32,N:N),0) -> 0
A33: 725 | B33: =LOOKUP(A33,Gesamt!A$4:A$1000,Gesamt!B$4:B$1000) -> 0 | C33: =LOOKUP(A33,Gesamt!A$4:A$1000,Gesamt!C$4:C$1000) -> 0 | D33: =LOOKUP(A33,Gesamt!A$4:A$1000,Gesamt!D$4:D$1000) -> 0 | E33: =LOOKUP(A33,Gesamt!A$4:A$1000,Gesamt!E$4:E$1000) -> 0 | F33: =LOOKUP(A33,Gesamt!A$4:A$1000,Gesamt!F$4:F$1000) -> 0 | G33: =LOOKUP(A33,Gesamt!A$4:A$1000,Gesamt!G$4:G$1000) -> 0 | H33: =LOOKUP(A33,Gesamt!A$4:A$1000,Gesamt!H$4:H$1000) -> 0 | I33: =LOOKUP(A33,Gesamt!A$4:A$1000,Gesamt!I$4:I$1000) -> 0 | J33: =LOOKUP(A33,Gesamt!A$4:A$1000,Gesamt!J$4:J$1000) -> 0 | K33: =LOOKUP(A33,Gesamt!A$4:A$1000,Gesamt!K$4:K$1000) -> 0 | L33: =LOOKUP(A33,Gesamt!A$4:A$1000,Gesamt!L$4:L$1000) -> 0 | M33: =LOOKUP(A33,Gesamt!A$4:A$1000,Gesamt!M$4:M$1000) -> 0 | N33: =IF(M33>0,M33*-1,-1000) -> -1000 | O33: =IF(M33>0,RANK(N33,N:N),0) -> 0
A34: 726 | B34: =LOOKUP(A34,Gesamt!A$4:A$1000,Gesamt!B$4:B$1000) -> 0 | C34: =LOOKUP(A34,Gesamt!A$4:A$1000,Gesamt!C$4:C$1000) -> 0 | D34: =LOOKUP(A34,Gesamt!A$4:A$1000,Gesamt!D$4:D$1000) -> 0 | E34: =LOOKUP(A34,Gesamt!A$4:A$1000,Gesamt!E$4:E$1000) -> 0 | F34: =LOOKUP(A34,Gesamt!A$4:A$1000,Gesamt!F$4:F$1000) -> 0 | G34: =LOOKUP(A34,Gesamt!A$4:A$1000,Gesamt!G$4:G$1000) -> 0 | H34: =LOOKUP(A34,Gesamt!A$4:A$1000,Gesamt!H$4:H$1000) -> 0 | I34: =LOOKUP(A34,Gesamt!A$4:A$1000,Gesamt!I$4:I$1000) -> 0 | J34: =LOOKUP(A34,Gesamt!A$4:A$1000,Gesamt!J$4:J$1000) -> 0 | K34: =LOOKUP(A34,Gesamt!A$4:A$1000,Gesamt!K$4:K$1000) -> 0 | L34: =LOOKUP(A34,Gesamt!A$4:A$1000,Gesamt!L$4:L$1000) -> 0 | M34: =LOOKUP(A34,Gesamt!A$4:A$1000,Gesamt!M$4:M$1000) -> 0 | N34: =IF(M34>0,M34*-1,-1000) -> -1000 | O34: =IF(M34>0,RANK(N34,N:N),0) -> 0
A35: 727 | B35: =LOOKUP(A35,Gesamt!A$4:A$1000,Gesamt!B$4:B$1000) -> 0 | C35: =LOOKUP(A35,Gesamt!A$4:A$1000,Gesamt!C$4:C$1000) -> 0 | D35: =LOOKUP(A35,Gesamt!A$4:A$1000,Gesamt!D$4:D$1000) -> 0 | E35: =LOOKUP(A35,Gesamt!A$4:A$1000,Gesamt!E$4:E$1000) -> 0 | F35: =LOOKUP(A35,Gesamt!A$4:A$1000,Gesamt!F$4:F$1000) -> 0 | G35: =LOOKUP(A35,Gesamt!A$4:A$1000,Gesamt!G$4:G$1000) -> 0 | H35: =LOOKUP(A35,Gesamt!A$4:A$1000,Gesamt!H$4:H$1000) -> 0 | I35: =LOOKUP(A35,Gesamt!A$4:A$1000,Gesamt!I$4:I$1000) -> 0 | J35: =LOOKUP(A35,Gesamt!A$4:A$1000,Gesamt!J$4:J$1000) -> 0 | K35: =LOOKUP(A35,Gesamt!A$4:A$1000,Gesamt!K$4:K$1000) -> 0 | L35: =LOOKUP(A35,Gesamt!A$4:A$1000,Gesamt!L$4:L$1000) -> 0 | M35: =LOOKUP(A35,Gesamt!A$4:A$1000,Gesamt!M$4:M$1000) -> 0 | N35: =IF(M35>0,M35*-1,-1000) -> -1000 | O35: =IF(M35>0,RANK(N35,N:N),0) -> 0
A36: 728 | B36: =LOOKUP(A36,Gesamt!A$4:A$1000,Gesamt!B$4:B$1000) -> 0 | C36: =LOOKUP(A36,Gesamt!A$4:A$1000,Gesamt!C$4:C$1000) -> 0 | D36: =LOOKUP(A36,Gesamt!A$4:A$1000,Gesamt!D$4:D$1000) -> 0 | E36: =LOOKUP(A36,Gesamt!A$4:A$1000,Gesamt!E$4:E$1000) -> 0 | F36: =LOOKUP(A36,Gesamt!A$4:A$1000,Gesamt!F$4:F$1000) -> 0 | G36: =LOOKUP(A36,Gesamt!A$4:A$1000,Gesamt!G$4:G$1000) -> 0 | H36: =LOOKUP(A36,Gesamt!A$4:A$1000,Gesamt!H$4:H$1000) -> 0 | I36: =LOOKUP(A36,Gesamt!A$4:A$1000,Gesamt!I$4:I$1000) -> 0 | J36: =LOOKUP(A36,Gesamt!A$4:A$1000,Gesamt!J$4:J$1000) -> 0 | K36: =LOOKUP(A36,Gesamt!A$4:A$1000,Gesamt!K$4:K$1000) -> 0 | L36: =LOOKUP(A36,Gesamt!A$4:A$1000,Gesamt!L$4:L$1000) -> 0 | M36: =LOOKUP(A36,Gesamt!A$4:A$1000,Gesamt!M$4:M$1000) -> 0 | N36: =IF(M36>0,M36*-1,-1000) -> -1000 | O36: =IF(M36>0,RANK(N36,N:N),0) -> 0
A37: 729 | B37: =LOOKUP(A37,Gesamt!A$4:A$1000,Gesamt!B$4:B$1000) -> 0 | C37: =LOOKUP(A37,Gesamt!A$4:A$1000,Gesamt!C$4:C$1000) -> 0 | D37: =LOOKUP(A37,Gesamt!A$4:A$1000,Gesamt!D$4:D$1000) -> 0 | E37: =LOOKUP(A37,Gesamt!A$4:A$1000,Gesamt!E$4:E$1000) -> 0 | F37: =LOOKUP(A37,Gesamt!A$4:A$1000,Gesamt!F$4:F$1000) -> 0 | G37: =LOOKUP(A37,Gesamt!A$4:A$1000,Gesamt!G$4:G$1000) -> 0 | H37: =LOOKUP(A37,Gesamt!A$4:A$1000,Gesamt!H$4:H$1000) -> 0 | I37: =LOOKUP(A37,Gesamt!A$4:A$1000,Gesamt!I$4:I$1000) -> 0 | J37: =LOOKUP(A37,Gesamt!A$4:A$1000,Gesamt!J$4:J$1000) -> 0 | K37: =LOOKUP(A37,Gesamt!A$4:A$1000,Gesamt!K$4:K$1000) -> 0 | L37: =LOOKUP(A37,Gesamt!A$4:A$1000,Gesamt!L$4:L$1000) -> 0 | M37: =LOOKUP(A37,Gesamt!A$4:A$1000,Gesamt!M$4:M$1000) -> 0 | N37: =IF(M37>0,M37*-1,-1000) -> -1000 | O37: =IF(M37>0,RANK(N37,N:N),0) -> 0
A38: 730 | B38: =LOOKUP(A38,Gesamt!A$4:A$1000,Gesamt!B$4:B$1000) -> 0 | C38: =LOOKUP(A38,Gesamt!A$4:A$1000,Gesamt!C$4:C$1000) -> 0 | D38: =LOOKUP(A38,Gesamt!A$4:A$1000,Gesamt!D$4:D$1000) -> 0 | E38: =LOOKUP(A38,Gesamt!A$4:A$1000,Gesamt!E$4:E$1000) -> 0 | F38: =LOOKUP(A38,Gesamt!A$4:A$1000,Gesamt!F$4:F$1000) -> 0 | G38: =LOOKUP(A38,Gesamt!A$4:A$1000,Gesamt!G$4:G$1000) -> 0 | H38: =LOOKUP(A38,Gesamt!A$4:A$1000,Gesamt!H$4:H$1000) -> 0 | I38: =LOOKUP(A38,Gesamt!A$4:A$1000,Gesamt!I$4:I$1000) -> 0 | J38: =LOOKUP(A38,Gesamt!A$4:A$1000,Gesamt!J$4:J$1000) -> 0 | K38: =LOOKUP(A38,Gesamt!A$4:A$1000,Gesamt!K$4:K$1000) -> 0 | L38: =LOOKUP(A38,Gesamt!A$4:A$1000,Gesamt!L$4:L$1000) -> 0 | M38: =LOOKUP(A38,Gesamt!A$4:A$1000,Gesamt!M$4:M$1000) -> 0 | N38: =IF(M38>0,M38*-1,-1000) -> -1000 | O38: =IF(M38>0,RANK(N38,N:N),0) -> 0
A39: 731 | B39: =LOOKUP(A39,Gesamt!A$4:A$1000,Gesamt!B$4:B$1000) -> 0 | C39: =LOOKUP(A39,Gesamt!A$4:A$1000,Gesamt!C$4:C$1000) -> 0 | D39: =LOOKUP(A39,Gesamt!A$4:A$1000,Gesamt!D$4:D$1000) -> 0 | E39: =LOOKUP(A39,Gesamt!A$4:A$1000,Gesamt!E$4:E$1000) -> 0 | F39: =LOOKUP(A39,Gesamt!A$4:A$1000,Gesamt!F$4:F$1000) -> 0 | G39: =LOOKUP(A39,Gesamt!A$4:A$1000,Gesamt!G$4:G$1000) -> 0 | H39: =LOOKUP(A39,Gesamt!A$4:A$1000,Gesamt!H$4:H$1000) -> 0 | I39: =LOOKUP(A39,Gesamt!A$4:A$1000,Gesamt!I$4:I$1000) -> 0 | J39: =LOOKUP(A39,Gesamt!A$4:A$1000,Gesamt!J$4:J$1000) -> 0 | K39: =LOOKUP(A39,Gesamt!A$4:A$1000,Gesamt!K$4:K$1000) -> 0 | L39: =LOOKUP(A39,Gesamt!A$4:A$1000,Gesamt!L$4:L$1000) -> 0 | M39: =LOOKUP(A39,Gesamt!A$4:A$1000,Gesamt!M$4:M$1000) -> 0 | N39: =IF(M39>0,M39*-1,-1000) -> -1000 | O39: =IF(M39>0,RANK(N39,N:N),0) -> 0
A40: 732 | B40: =LOOKUP(A40,Gesamt!A$4:A$1000,Gesamt!B$4:B$1000) -> 0 | C40: =LOOKUP(A40,Gesamt!A$4:A$1000,Gesamt!C$4:C$1000) -> 0 | D40: =LOOKUP(A40,Gesamt!A$4:A$1000,Gesamt!D$4:D$1000) -> 0 | E40: =LOOKUP(A40,Gesamt!A$4:A$1000,Gesamt!E$4:E$1000) -> 0 | F40: =LOOKUP(A40,Gesamt!A$4:A$1000,Gesamt!F$4:F$1000) -> 0 | G40: =LOOKUP(A40,Gesamt!A$4:A$1000,Gesamt!G$4:G$1000) -> 0 | H40: =LOOKUP(A40,Gesamt!A$4:A$1000,Gesamt!H$4:H$1000) -> 0 | I40: =LOOKUP(A40,Gesamt!A$4:A$1000,Gesamt!I$4:I$1000) -> 0 | J40: =LOOKUP(A40,Gesamt!A$4:A$1000,Gesamt!J$4:J$1000) -> 0 | K40: =LOOKUP(A40,Gesamt!A$4:A$1000,Gesamt!K$4:K$1000) -> 0 | L40: =LOOKUP(A40,Gesamt!A$4:A$1000,Gesamt!L$4:L$1000) -> 0 | M40: =LOOKUP(A40,Gesamt!A$4:A$1000,Gesamt!M$4:M$1000) -> 0 | N40: =IF(M40>0,M40*-1,-1000) -> -1000 | O40: =IF(M40>0,RANK(N40,N:N),0) -> 0
A41: 733 | B41: =LOOKUP(A41,Gesamt!A$4:A$1000,Gesamt!B$4:B$1000) -> 0 | C41: =LOOKUP(A41,Gesamt!A$4:A$1000,Gesamt!C$4:C$1000) -> 0 | D41: =LOOKUP(A41,Gesamt!A$4:A$1000,Gesamt!D$4:D$1000) -> 0 | E41: =LOOKUP(A41,Gesamt!A$4:A$1000,Gesamt!E$4:E$1000) -> 0 | F41: =LOOKUP(A41,Gesamt!A$4:A$1000,Gesamt!F$4:F$1000) -> 0 | G41: =LOOKUP(A41,Gesamt!A$4:A$1000,Gesamt!G$4:G$1000) -> 0 | H41: =LOOKUP(A41,Gesamt!A$4:A$1000,Gesamt!H$4:H$1000) -> 0 | I41: =LOOKUP(A41,Gesamt!A$4:A$1000,Gesamt!I$4:I$1000) -> 0 | J41: =LOOKUP(A41,Gesamt!A$4:A$1000,Gesamt!J$4:J$1000) -> 0 | K41: =LOOKUP(A41,Gesamt!A$4:A$1000,Gesamt!K$4:K$1000) -> 0 | L41: =LOOKUP(A41,Gesamt!A$4:A$1000,Gesamt!L$4:L$1000) -> 0 | M41: =LOOKUP(A41,Gesamt!A$4:A$1000,Gesamt!M$4:M$1000) -> 0 | N41: =IF(M41>0,M41*-1,-1000) -> -1000 | O41: =IF(M41>0,RANK(N41,N:N),0) -> 0
A42: 734 | B42: =LOOKUP(A42,Gesamt!A$4:A$1000,Gesamt!B$4:B$1000) -> 0 | C42: =LOOKUP(A42,Gesamt!A$4:A$1000,Gesamt!C$4:C$1000) -> 0 | D42: =LOOKUP(A42,Gesamt!A$4:A$1000,Gesamt!D$4:D$1000) -> 0 | E42: =LOOKUP(A42,Gesamt!A$4:A$1000,Gesamt!E$4:E$1000) -> 0 | F42: =LOOKUP(A42,Gesamt!A$4:A$1000,Gesamt!F$4:F$1000) -> 0 | G42: =LOOKUP(A42,Gesamt!A$4:A$1000,Gesamt!G$4:G$1000) -> 0 | H42: =LOOKUP(A42,Gesamt!A$4:A$1000,Gesamt!H$4:H$1000) -> 0 | I42: =LOOKUP(A42,Gesamt!A$4:A$1000,Gesamt!I$4:I$1000) -> 0 | J42: =LOOKUP(A42,Gesamt!A$4:A$1000,Gesamt!J$4:J$1000) -> 0 | K42: =LOOKUP(A42,Gesamt!A$4:A$1000,Gesamt!K$4:K$1000) -> 0 | L42: =LOOKUP(A42,Gesamt!A$4:A$1000,Gesamt!L$4:L$1000) -> 0 | M42: =LOOKUP(A42,Gesamt!A$4:A$1000,Gesamt!M$4:M$1000) -> 0 | N42: =IF(M42>0,M42*-1,-1000) -> -1000 | O42: =IF(M42>0,RANK(N42,N:N),0) -> 0
A43: 735 | B43: =LOOKUP(A43,Gesamt!A$4:A$1000,Gesamt!B$4:B$1000) -> 0 | C43: =LOOKUP(A43,Gesamt!A$4:A$1000,Gesamt!C$4:C$1000) -> 0 | D43: =LOOKUP(A43,Gesamt!A$4:A$1000,Gesamt!D$4:D$1000) -> 0 | E43: =LOOKUP(A43,Gesamt!A$4:A$1000,Gesamt!E$4:E$1000) -> 0 | F43: =LOOKUP(A43,Gesamt!A$4:A$1000,Gesamt!F$4:F$1000) -> 0 | G43: =LOOKUP(A43,Gesamt!A$4:A$1000,Gesamt!G$4:G$1000) -> 0 | H43: =LOOKUP(A43,Gesamt!A$4:A$1000,Gesamt!H$4:H$1000) -> 0 | I43: =LOOKUP(A43,Gesamt!A$4:A$1000,Gesamt!I$4:I$1000) -> 0 | J43: =LOOKUP(A43,Gesamt!A$4:A$1000,Gesamt!J$4:J$1000) -> 0 | K43: =LOOKUP(A43,Gesamt!A$4:A$1000,Gesamt!K$4:K$1000) -> 0 | L43: =LOOKUP(A43,Gesamt!A$4:A$1000,Gesamt!L$4:L$1000) -> 0 | M43: =LOOKUP(A43,Gesamt!A$4:A$1000,Gesamt!M$4:M$1000) -> 0 | N43: =IF(M43>0,M43*-1,-1000) -> -1000 | O43: =IF(M43>0,RANK(N43,N:N),0) -> 0
A44: 736 | B44: =LOOKUP(A44,Gesamt!A$4:A$1000,Gesamt!B$4:B$1000) -> 0 | C44: =LOOKUP(A44,Gesamt!A$4:A$1000,Gesamt!C$4:C$1000) -> 0 | D44: =LOOKUP(A44,Gesamt!A$4:A$1000,Gesamt!D$4:D$1000) -> 0 | E44: =LOOKUP(A44,Gesamt!A$4:A$1000,Gesamt!E$4:E$1000) -> 0 | F44: =LOOKUP(A44,Gesamt!A$4:A$1000,Gesamt!F$4:F$1000) -> 0 | G44: =LOOKUP(A44,Gesamt!A$4:A$1000,Gesamt!G$4:G$1000) -> 0 | H44: =LOOKUP(A44,Gesamt!A$4:A$1000,Gesamt!H$4:H$1000) -> 0 | I44: =LOOKUP(A44,Gesamt!A$4:A$1000,Gesamt!I$4:I$1000) -> 0 | J44: =LOOKUP(A44,Gesamt!A$4:A$1000,Gesamt!J$4:J$1000) -> 0 | K44: =LOOKUP(A44,Gesamt!A$4:A$1000,Gesamt!K$4:K$1000) -> 0 | L44: =LOOKUP(A44,Gesamt!A$4:A$1000,Gesamt!L$4:L$1000) -> 0 | M44: =LOOKUP(A44,Gesamt!A$4:A$1000,Gesamt!M$4:M$1000) -> 0 | N44: =IF(M44>0,M44*-1,-1000) -> -1000 | O44: =IF(M44>0,RANK(N44,N:N),0) -> 0
A45: 737 | B45: =LOOKUP(A45,Gesamt!A$4:A$1000,Gesamt!B$4:B$1000) -> 0 | C45: =LOOKUP(A45,Gesamt!A$4:A$1000,Gesamt!C$4:C$1000) -> 0 | D45: =LOOKUP(A45,Gesamt!A$4:A$1000,Gesamt!D$4:D$1000) -> 0 | E45: =LOOKUP(A45,Gesamt!A$4:A$1000,Gesamt!E$4:E$1000) -> 0 | F45: =LOOKUP(A45,Gesamt!A$4:A$1000,Gesamt!F$4:F$1000) -> 0 | G45: =LOOKUP(A45,Gesamt!A$4:A$1000,Gesamt!G$4:G$1000) -> 0 | H45: =LOOKUP(A45,Gesamt!A$4:A$1000,Gesamt!H$4:H$1000) -> 0 | I45: =LOOKUP(A45,Gesamt!A$4:A$1000,Gesamt!I$4:I$1000) -> 0 | J45: =LOOKUP(A45,Gesamt!A$4:A$1000,Gesamt!J$4:J$1000) -> 0 | K45: =LOOKUP(A45,Gesamt!A$4:A$1000,Gesamt!K$4:K$1000) -> 0 | L45: =LOOKUP(A45,Gesamt!A$4:A$1000,Gesamt!L$4:L$1000) -> 0 | M45: =LOOKUP(A45,Gesamt!A$4:A$1000,Gesamt!M$4:M$1000) -> 0 | N45: =IF(M45>0,M45*-1,-1000) -> -1000 | O45: =IF(M45>0,RANK(N45,N:N),0) -> 0
A46: 738 | B46: =LOOKUP(A46,Gesamt!A$4:A$1000,Gesamt!B$4:B$1000) -> 0 | C46: =LOOKUP(A46,Gesamt!A$4:A$1000,Gesamt!C$4:C$1000) -> 0 | D46: =LOOKUP(A46,Gesamt!A$4:A$1000,Gesamt!D$4:D$1000) -> 0 | E46: =LOOKUP(A46,Gesamt!A$4:A$1000,Gesamt!E$4:E$1000) -> 0 | F46: =LOOKUP(A46,Gesamt!A$4:A$1000,Gesamt!F$4:F$1000) -> 0 | G46: =LOOKUP(A46,Gesamt!A$4:A$1000,Gesamt!G$4:G$1000) -> 0 | H46: =LOOKUP(A46,Gesamt!A$4:A$1000,Gesamt!H$4:H$1000) -> 0 | I46: =LOOKUP(A46,Gesamt!A$4:A$1000,Gesamt!I$4:I$1000) -> 0 | J46: =LOOKUP(A46,Gesamt!A$4:A$1000,Gesamt!J$4:J$1000) -> 0 | K46: =LOOKUP(A46,Gesamt!A$4:A$1000,Gesamt!K$4:K$1000) -> 0 | L46: =LOOKUP(A46,Gesamt!A$4:A$1000,Gesamt!L$4:L$1000) -> 0 | M46: =LOOKUP(A46,Gesamt!A$4:A$1000,Gesamt!M$4:M$1000) -> 0 | N46: =IF(M46>0,M46*-1,-1000) -> -1000 | O46: =IF(M46>0,RANK(N46,N:N),0) -> 0
A47: 739 | B47: =LOOKUP(A47,Gesamt!A$4:A$1000,Gesamt!B$4:B$1000) -> 0 | C47: =LOOKUP(A47,Gesamt!A$4:A$1000,Gesamt!C$4:C$1000) -> 0 | D47: =LOOKUP(A47,Gesamt!A$4:A$1000,Gesamt!D$4:D$1000) -> 0 | E47: =LOOKUP(A47,Gesamt!A$4:A$1000,Gesamt!E$4:E$1000) -> 0 | F47: =LOOKUP(A47,Gesamt!A$4:A$1000,Gesamt!F$4:F$1000) -> 0 | G47: =LOOKUP(A47,Gesamt!A$4:A$1000,Gesamt!G$4:G$1000) -> 0 | H47: =LOOKUP(A47,Gesamt!A$4:A$1000,Gesamt!H$4:H$1000) -> 0 | I47: =LOOKUP(A47,Gesamt!A$4:A$1000,Gesamt!I$4:I$1000) -> 0 | J47: =LOOKUP(A47,Gesamt!A$4:A$1000,Gesamt!J$4:J$1000) -> 0 | K47: =LOOKUP(A47,Gesamt!A$4:A$1000,Gesamt!K$4:K$1000) -> 0 | L47: =LOOKUP(A47,Gesamt!A$4:A$1000,Gesamt!L$4:L$1000) -> 0 | M47: =LOOKUP(A47,Gesamt!A$4:A$1000,Gesamt!M$4:M$1000) -> 0 | N47: =IF(M47>0,M47*-1,-1000) -> -1000 | O47: =IF(M47>0,RANK(N47,N:N),0) -> 0
A48: 740 | B48: =LOOKUP(A48,Gesamt!A$4:A$1000,Gesamt!B$4:B$1000) -> 0 | C48: =LOOKUP(A48,Gesamt!A$4:A$1000,Gesamt!C$4:C$1000) -> 0 | D48: =LOOKUP(A48,Gesamt!A$4:A$1000,Gesamt!D$4:D$1000) -> 0 | E48: =LOOKUP(A48,Gesamt!A$4:A$1000,Gesamt!E$4:E$1000) -> 0 | F48: =LOOKUP(A48,Gesamt!A$4:A$1000,Gesamt!F$4:F$1000) -> 0 | G48: =LOOKUP(A48,Gesamt!A$4:A$1000,Gesamt!G$4:G$1000) -> 0 | H48: =LOOKUP(A48,Gesamt!A$4:A$1000,Gesamt!H$4:H$1000) -> 0 | I48: =LOOKUP(A48,Gesamt!A$4:A$1000,Gesamt!I$4:I$1000) -> 0 | J48: =LOOKUP(A48,Gesamt!A$4:A$1000,Gesamt!J$4:J$1000) -> 0 | K48: =LOOKUP(A48,Gesamt!A$4:A$1000,Gesamt!K$4:K$1000) -> 0 | L48: =LOOKUP(A48,Gesamt!A$4:A$1000,Gesamt!L$4:L$1000) -> 0 | M48: =LOOKUP(A48,Gesamt!A$4:A$1000,Gesamt!M$4:M$1000) -> 0 | N48: =IF(M48>0,M48*-1,-1000) -> -1000 | O48: =IF(M48>0,RANK(N48,N:N),0) -> 0
A49: 741 | B49: =LOOKUP(A49,Gesamt!A$4:A$1000,Gesamt!B$4:B$1000) -> 0 | C49: =LOOKUP(A49,Gesamt!A$4:A$1000,Gesamt!C$4:C$1000) -> 0 | D49: =LOOKUP(A49,Gesamt!A$4:A$1000,Gesamt!D$4:D$1000) -> 0 | E49: =LOOKUP(A49,Gesamt!A$4:A$1000,Gesamt!E$4:E$1000) -> 0 | F49: =LOOKUP(A49,Gesamt!A$4:A$1000,Gesamt!F$4:F$1000) -> 0 | G49: =LOOKUP(A49,Gesamt!A$4:A$1000,Gesamt!G$4:G$1000) -> 0 | H49: =LOOKUP(A49,Gesamt!A$4:A$1000,Gesamt!H$4:H$1000) -> 0 | I49: =LOOKUP(A49,Gesamt!A$4:A$1000,Gesamt!I$4:I$1000) -> 0 | J49: =LOOKUP(A49,Gesamt!A$4:A$1000,Gesamt!J$4:J$1000) -> 0 | K49: =LOOKUP(A49,Gesamt!A$4:A$1000,Gesamt!K$4:K$1000) -> 0 | L49: =LOOKUP(A49,Gesamt!A$4:A$1000,Gesamt!L$4:L$1000) -> 0 | M49: =LOOKUP(A49,Gesamt!A$4:A$1000,Gesamt!M$4:M$1000) -> 0 | N49: =IF(M49>0,M49*-1,-1000) -> -1000 | O49: =IF(M49>0,RANK(N49,N:N),0) -> 0
A50: 742 | B50: =LOOKUP(A50,Gesamt!A$4:A$1000,Gesamt!B$4:B$1000) -> 0 | C50: =LOOKUP(A50,Gesamt!A$4:A$1000,Gesamt!C$4:C$1000) -> 0 | D50: =LOOKUP(A50,Gesamt!A$4:A$1000,Gesamt!D$4:D$1000) -> 0 | E50: =LOOKUP(A50,Gesamt!A$4:A$1000,Gesamt!E$4:E$1000) -> 0 | F50: =LOOKUP(A50,Gesamt!A$4:A$1000,Gesamt!F$4:F$1000) -> 0 | G50: =LOOKUP(A50,Gesamt!A$4:A$1000,Gesamt!G$4:G$1000) -> 0 | H50: =LOOKUP(A50,Gesamt!A$4:A$1000,Gesamt!H$4:H$1000) -> 0 | I50: =LOOKUP(A50,Gesamt!A$4:A$1000,Gesamt!I$4:I$1000) -> 0 | J50: =LOOKUP(A50,Gesamt!A$4:A$1000,Gesamt!J$4:J$1000) -> 0 | K50: =LOOKUP(A50,Gesamt!A$4:A$1000,Gesamt!K$4:K$1000) -> 0 | L50: =LOOKUP(A50,Gesamt!A$4:A$1000,Gesamt!L$4:L$1000) -> 0 | M50: =LOOKUP(A50,Gesamt!A$4:A$1000,Gesamt!M$4:M$1000) -> 0 | N50: =IF(M50>0,M50*-1,-1000) -> -1000 | O50: =IF(M50>0,RANK(N50,N:N),0) -> 0
A51: 743 | B51: =LOOKUP(A51,Gesamt!A$4:A$1000,Gesamt!B$4:B$1000) -> 0 | C51: =LOOKUP(A51,Gesamt!A$4:A$1000,Gesamt!C$4:C$1000) -> 0 | D51: =LOOKUP(A51,Gesamt!A$4:A$1000,Gesamt!D$4:D$1000) -> 0 | E51: =LOOKUP(A51,Gesamt!A$4:A$1000,Gesamt!E$4:E$1000) -> 0 | F51: =LOOKUP(A51,Gesamt!A$4:A$1000,Gesamt!F$4:F$1000) -> 0 | G51: =LOOKUP(A51,Gesamt!A$4:A$1000,Gesamt!G$4:G$1000) -> 0 | H51: =LOOKUP(A51,Gesamt!A$4:A$1000,Gesamt!H$4:H$1000) -> 0 | I51: =LOOKUP(A51,Gesamt!A$4:A$1000,Gesamt!I$4:I$1000) -> 0 | J51: =LOOKUP(A51,Gesamt!A$4:A$1000,Gesamt!J$4:J$1000) -> 0 | K51: =LOOKUP(A51,Gesamt!A$4:A$1000,Gesamt!K$4:K$1000) -> 0 | L51: =LOOKUP(A51,Gesamt!A$4:A$1000,Gesamt!L$4:L$1000) -> 0 | M51: =LOOKUP(A51,Gesamt!A$4:A$1000,Gesamt!M$4:M$1000) -> 0 | N51: =IF(M51>0,M51*-1,-1000) -> -1000 | O51: =IF(M51>0,RANK(N51,N:N),0) -> 0
A52: 744 | B52: =LOOKUP(A52,Gesamt!A$4:A$1000,Gesamt!B$4:B$1000) -> 0 | C52: =LOOKUP(A52,Gesamt!A$4:A$1000,Gesamt!C$4:C$1000) -> 0 | D52: =LOOKUP(A52,Gesamt!A$4:A$1000,Gesamt!D$4:D$1000) -> 0 | E52: =LOOKUP(A52,Gesamt!A$4:A$1000,Gesamt!E$4:E$1000) -> 0 | F52: =LOOKUP(A52,Gesamt!A$4:A$1000,Gesamt!F$4:F$1000) -> 0 | G52: =LOOKUP(A52,Gesamt!A$4:A$1000,Gesamt!G$4:G$1000) -> 0 | H52: =LOOKUP(A52,Gesamt!A$4:A$1000,Gesamt!H$4:H$1000) -> 0 | I52: =LOOKUP(A52,Gesamt!A$4:A$1000,Gesamt!I$4:I$1000) -> 0 | J52: =LOOKUP(A52,Gesamt!A$4:A$1000,Gesamt!J$4:J$1000) -> 0 | K52: =LOOKUP(A52,Gesamt!A$4:A$1000,Gesamt!K$4:K$1000) -> 0 | L52: =LOOKUP(A52,Gesamt!A$4:A$1000,Gesamt!L$4:L$1000) -> 0 | M52: =LOOKUP(A52,Gesamt!A$4:A$1000,Gesamt!M$4:M$1000) -> 0 | N52: =IF(M52>0,M52*-1,-1000) -> -1000 | O52: =IF(M52>0,RANK(N52,N:N),0) -> 0
A53: 745 | B53: =LOOKUP(A53,Gesamt!A$4:A$1000,Gesamt!B$4:B$1000) -> 0 | C53: =LOOKUP(A53,Gesamt!A$4:A$1000,Gesamt!C$4:C$1000) -> 0 | D53: =LOOKUP(A53,Gesamt!A$4:A$1000,Gesamt!D$4:D$1000) -> 0 | E53: =LOOKUP(A53,Gesamt!A$4:A$1000,Gesamt!E$4:E$1000) -> 0 | F53: =LOOKUP(A53,Gesamt!A$4:A$1000,Gesamt!F$4:F$1000) -> 0 | G53: =LOOKUP(A53,Gesamt!A$4:A$1000,Gesamt!G$4:G$1000) -> 0 | H53: =LOOKUP(A53,Gesamt!A$4:A$1000,Gesamt!H$4:H$1000) -> 0 | I53: =LOOKUP(A53,Gesamt!A$4:A$1000,Gesamt!I$4:I$1000) -> 0 | J53: =LOOKUP(A53,Gesamt!A$4:A$1000,Gesamt!J$4:J$1000) -> 0 | K53: =LOOKUP(A53,Gesamt!A$4:A$1000,Gesamt!K$4:K$1000) -> 0 | L53: =LOOKUP(A53,Gesamt!A$4:A$1000,Gesamt!L$4:L$1000) -> 0 | M53: =LOOKUP(A53,Gesamt!A$4:A$1000,Gesamt!M$4:M$1000) -> 0 | N53: =IF(M53>0,M53*-1,-1000) -> -1000 | O53: =IF(M53>0,RANK(N53,N:N),0) -> 0
A54: 746 | B54: =LOOKUP(A54,Gesamt!A$4:A$1000,Gesamt!B$4:B$1000) -> 0 | C54: =LOOKUP(A54,Gesamt!A$4:A$1000,Gesamt!C$4:C$1000) -> 0 | D54: =LOOKUP(A54,Gesamt!A$4:A$1000,Gesamt!D$4:D$1000) -> 0 | E54: =LOOKUP(A54,Gesamt!A$4:A$1000,Gesamt!E$4:E$1000) -> 0 | F54: =LOOKUP(A54,Gesamt!A$4:A$1000,Gesamt!F$4:F$1000) -> 0 | G54: =LOOKUP(A54,Gesamt!A$4:A$1000,Gesamt!G$4:G$1000) -> 0 | H54: =LOOKUP(A54,Gesamt!A$4:A$1000,Gesamt!H$4:H$1000) -> 0 | I54: =LOOKUP(A54,Gesamt!A$4:A$1000,Gesamt!I$4:I$1000) -> 0 | J54: =LOOKUP(A54,Gesamt!A$4:A$1000,Gesamt!J$4:J$1000) -> 0 | K54: =LOOKUP(A54,Gesamt!A$4:A$1000,Gesamt!K$4:K$1000) -> 0 | L54: =LOOKUP(A54,Gesamt!A$4:A$1000,Gesamt!L$4:L$1000) -> 0 | M54: =LOOKUP(A54,Gesamt!A$4:A$1000,Gesamt!M$4:M$1000) -> 0 | N54: =IF(M54>0,M54*-1,-1000) -> -1000 | O54: =IF(M54>0,RANK(N54,N:N),0) -> 0
A55: 747 | B55: =LOOKUP(A55,Gesamt!A$4:A$1000,Gesamt!B$4:B$1000) -> 0 | C55: =LOOKUP(A55,Gesamt!A$4:A$1000,Gesamt!C$4:C$1000) -> 0 | D55: =LOOKUP(A55,Gesamt!A$4:A$1000,Gesamt!D$4:D$1000) -> 0 | E55: =LOOKUP(A55,Gesamt!A$4:A$1000,Gesamt!E$4:E$1000) -> 0 | F55: =LOOKUP(A55,Gesamt!A$4:A$1000,Gesamt!F$4:F$1000) -> 0 | G55: =LOOKUP(A55,Gesamt!A$4:A$1000,Gesamt!G$4:G$1000) -> 0 | H55: =LOOKUP(A55,Gesamt!A$4:A$1000,Gesamt!H$4:H$1000) -> 0 | I55: =LOOKUP(A55,Gesamt!A$4:A$1000,Gesamt!I$4:I$1000) -> 0 | J55: =LOOKUP(A55,Gesamt!A$4:A$1000,Gesamt!J$4:J$1000) -> 0 | K55: =LOOKUP(A55,Gesamt!A$4:A$1000,Gesamt!K$4:K$1000) -> 0 | L55: =LOOKUP(A55,Gesamt!A$4:A$1000,Gesamt!L$4:L$1000) -> 0 | M55: =LOOKUP(A55,Gesamt!A$4:A$1000,Gesamt!M$4:M$1000) -> 0 | N55: =IF(M55>0,M55*-1,-1000) -> -1000 | O55: =IF(M55>0,RANK(N55,N:N),0) -> 0
A56: 748 | B56: =LOOKUP(A56,Gesamt!A$4:A$1000,Gesamt!B$4:B$1000) -> 0 | C56: =LOOKUP(A56,Gesamt!A$4:A$1000,Gesamt!C$4:C$1000) -> 0 | D56: =LOOKUP(A56,Gesamt!A$4:A$1000,Gesamt!D$4:D$1000) -> 0 | E56: =LOOKUP(A56,Gesamt!A$4:A$1000,Gesamt!E$4:E$1000) -> 0 | F56: =LOOKUP(A56,Gesamt!A$4:A$1000,Gesamt!F$4:F$1000) -> 0 | G56: =LOOKUP(A56,Gesamt!A$4:A$1000,Gesamt!G$4:G$1000) -> 0 | H56: =LOOKUP(A56,Gesamt!A$4:A$1000,Gesamt!H$4:H$1000) -> 0 | I56: =LOOKUP(A56,Gesamt!A$4:A$1000,Gesamt!I$4:I$1000) -> 0 | J56: =LOOKUP(A56,Gesamt!A$4:A$1000,Gesamt!J$4:J$1000) -> 0 | K56: =LOOKUP(A56,Gesamt!A$4:A$1000,Gesamt!K$4:K$1000) -> 0 | L56: =LOOKUP(A56,Gesamt!A$4:A$1000,Gesamt!L$4:L$1000) -> 0 | M56: =LOOKUP(A56,Gesamt!A$4:A$1000,Gesamt!M$4:M$1000) -> 0 | N56: =IF(M56>0,M56*-1,-1000) -> -1000 | O56: =IF(M56>0,RANK(N56,N:N),0) -> 0
A57: 749 | B57: =LOOKUP(A57,Gesamt!A$4:A$1000,Gesamt!B$4:B$1000) -> 0 | C57: =LOOKUP(A57,Gesamt!A$4:A$1000,Gesamt!C$4:C$1000) -> 0 | D57: =LOOKUP(A57,Gesamt!A$4:A$1000,Gesamt!D$4:D$1000) -> 0 | E57: =LOOKUP(A57,Gesamt!A$4:A$1000,Gesamt!E$4:E$1000) -> 0 | F57: =LOOKUP(A57,Gesamt!A$4:A$1000,Gesamt!F$4:F$1000) -> 0 | G57: =LOOKUP(A57,Gesamt!A$4:A$1000,Gesamt!G$4:G$1000) -> 0 | H57: =LOOKUP(A57,Gesamt!A$4:A$1000,Gesamt!H$4:H$1000) -> 0 | I57: =LOOKUP(A57,Gesamt!A$4:A$1000,Gesamt!I$4:I$1000) -> 0 | J57: =LOOKUP(A57,Gesamt!A$4:A$1000,Gesamt!J$4:J$1000) -> 0 | K57: =LOOKUP(A57,Gesamt!A$4:A$1000,Gesamt!K$4:K$1000) -> 0 | L57: =LOOKUP(A57,Gesamt!A$4:A$1000,Gesamt!L$4:L$1000) -> 0 | M57: =LOOKUP(A57,Gesamt!A$4:A$1000,Gesamt!M$4:M$1000) -> 0 | N57: =IF(M57>0,M57*-1,-1000) -> -1000 | O57: =IF(M57>0,RANK(N57,N:N),0) -> 0
A58: 750 | B58: =LOOKUP(A58,Gesamt!A$4:A$1000,Gesamt!B$4:B$1000) -> 0 | C58: =LOOKUP(A58,Gesamt!A$4:A$1000,Gesamt!C$4:C$1000) -> 0 | D58: =LOOKUP(A58,Gesamt!A$4:A$1000,Gesamt!D$4:D$1000) -> 0 | E58: =LOOKUP(A58,Gesamt!A$4:A$1000,Gesamt!E$4:E$1000) -> 0 | F58: =LOOKUP(A58,Gesamt!A$4:A$1000,Gesamt!F$4:F$1000) -> 0 | G58: =LOOKUP(A58,Gesamt!A$4:A$1000,Gesamt!G$4:G$1000) -> 0 | H58: =LOOKUP(A58,Gesamt!A$4:A$1000,Gesamt!H$4:H$1000) -> 0 | I58: =LOOKUP(A58,Gesamt!A$4:A$1000,Gesamt!I$4:I$1000) -> 0 | J58: =LOOKUP(A58,Gesamt!A$4:A$1000,Gesamt!J$4:J$1000) -> 0 | K58: =LOOKUP(A58,Gesamt!A$4:A$1000,Gesamt!K$4:K$1000) -> 0 | L58: =LOOKUP(A58,Gesamt!A$4:A$1000,Gesamt!L$4:L$1000) -> 0 | M58: =LOOKUP(A58,Gesamt!A$4:A$1000,Gesamt!M$4:M$1000) -> 0 | N58: =IF(M58>0,M58*-1,-1000) -> -1000 | O58: =IF(M58>0,RANK(N58,N:N),0) -> 0
A59: 751 | B59: =LOOKUP(A59,Gesamt!A$4:A$1000,Gesamt!B$4:B$1000) -> 0 | C59: =LOOKUP(A59,Gesamt!A$4:A$1000,Gesamt!C$4:C$1000) -> 0 | D59: =LOOKUP(A59,Gesamt!A$4:A$1000,Gesamt!D$4:D$1000) -> 0 | E59: =LOOKUP(A59,Gesamt!A$4:A$1000,Gesamt!E$4:E$1000) -> 0 | F59: =LOOKUP(A59,Gesamt!A$4:A$1000,Gesamt!F$4:F$1000) -> 0 | G59: =LOOKUP(A59,Gesamt!A$4:A$1000,Gesamt!G$4:G$1000) -> 0 | H59: =LOOKUP(A59,Gesamt!A$4:A$1000,Gesamt!H$4:H$1000) -> 0 | I59: =LOOKUP(A59,Gesamt!A$4:A$1000,Gesamt!I$4:I$1000) -> 0 | J59: =LOOKUP(A59,Gesamt!A$4:A$1000,Gesamt!J$4:J$1000) -> 0 | K59: =LOOKUP(A59,Gesamt!A$4:A$1000,Gesamt!K$4:K$1000) -> 0 | L59: =LOOKUP(A59,Gesamt!A$4:A$1000,Gesamt!L$4:L$1000) -> 0 | M59: =LOOKUP(A59,Gesamt!A$4:A$1000,Gesamt!M$4:M$1000) -> 0 | N59: =IF(M59>0,M59*-1,-1000) -> -1000 | O59: =IF(M59>0,RANK(N59,N:N),0) -> 0
A60: 752 | B60: =LOOKUP(A60,Gesamt!A$4:A$1000,Gesamt!B$4:B$1000) -> 0 | C60: =LOOKUP(A60,Gesamt!A$4:A$1000,Gesamt!C$4:C$1000) -> 0 | D60: =LOOKUP(A60,Gesamt!A$4:A$1000,Gesamt!D$4:D$1000) -> 0 | E60: =LOOKUP(A60,Gesamt!A$4:A$1000,Gesamt!E$4:E$1000) -> 0 | F60: =LOOKUP(A60,Gesamt!A$4:A$1000,Gesamt!F$4:F$1000) -> 0 | G60: =LOOKUP(A60,Gesamt!A$4:A$1000,Gesamt!G$4:G$1000) -> 0 | H60: =LOOKUP(A60,Gesamt!A$4:A$1000,Gesamt!H$4:H$1000) -> 0 | I60: =LOOKUP(A60,Gesamt!A$4:A$1000,Gesamt!I$4:I$1000) -> 0 | J60: =LOOKUP(A60,Gesamt!A$4:A$1000,Gesamt!J$4:J$1000) -> 0 | K60: =LOOKUP(A60,Gesamt!A$4:A$1000,Gesamt!K$4:K$1000) -> 0 | L60: =LOOKUP(A60,Gesamt!A$4:A$1000,Gesamt!L$4:L$1000) -> 0 | M60: =LOOKUP(A60,Gesamt!A$4:A$1000,Gesamt!M$4:M$1000) -> 0 | N60: =IF(M60>0,M60*-1,-1000) -> -1000 | O60: =IF(M60>0,RANK(N60,N:N),0) -> 0
A61: 753 | B61: =LOOKUP(A61,Gesamt!A$4:A$1000,Gesamt!B$4:B$1000) -> 0 | C61: =LOOKUP(A61,Gesamt!A$4:A$1000,Gesamt!C$4:C$1000) -> 0 | D61: =LOOKUP(A61,Gesamt!A$4:A$1000,Gesamt!D$4:D$1000) -> 0 | E61: =LOOKUP(A61,Gesamt!A$4:A$1000,Gesamt!E$4:E$1000) -> 0 | F61: =LOOKUP(A61,Gesamt!A$4:A$1000,Gesamt!F$4:F$1000) -> 0 | G61: =LOOKUP(A61,Gesamt!A$4:A$1000,Gesamt!G$4:G$1000) -> 0 | H61: =LOOKUP(A61,Gesamt!A$4:A$1000,Gesamt!H$4:H$1000) -> 0 | I61: =LOOKUP(A61,Gesamt!A$4:A$1000,Gesamt!I$4:I$1000) -> 0 | J61: =LOOKUP(A61,Gesamt!A$4:A$1000,Gesamt!J$4:J$1000) -> 0 | K61: =LOOKUP(A61,Gesamt!A$4:A$1000,Gesamt!K$4:K$1000) -> 0 | L61: =LOOKUP(A61,Gesamt!A$4:A$1000,Gesamt!L$4:L$1000) -> 0 | M61: =LOOKUP(A61,Gesamt!A$4:A$1000,Gesamt!M$4:M$1000) -> 0 | N61: =IF(M61>0,M61*-1,-1000) -> -1000 | O61: =IF(M61>0,RANK(N61,N:N),0) -> 0
A62: 754 | B62: =LOOKUP(A62,Gesamt!A$4:A$1000,Gesamt!B$4:B$1000) -> 0 | C62: =LOOKUP(A62,Gesamt!A$4:A$1000,Gesamt!C$4:C$1000) -> 0 | D62: =LOOKUP(A62,Gesamt!A$4:A$1000,Gesamt!D$4:D$1000) -> 0 | E62: =LOOKUP(A62,Gesamt!A$4:A$1000,Gesamt!E$4:E$1000) -> 0 | F62: =LOOKUP(A62,Gesamt!A$4:A$1000,Gesamt!F$4:F$1000) -> 0 | G62: =LOOKUP(A62,Gesamt!A$4:A$1000,Gesamt!G$4:G$1000) -> 0 | H62: =LOOKUP(A62,Gesamt!A$4:A$1000,Gesamt!H$4:H$1000) -> 0 | I62: =LOOKUP(A62,Gesamt!A$4:A$1000,Gesamt!I$4:I$1000) -> 0 | J62: =LOOKUP(A62,Gesamt!A$4:A$1000,Gesamt!J$4:J$1000) -> 0 | K62: =LOOKUP(A62,Gesamt!A$4:A$1000,Gesamt!K$4:K$1000) -> 0 | L62: =LOOKUP(A62,Gesamt!A$4:A$1000,Gesamt!L$4:L$1000) -> 0 | M62: =LOOKUP(A62,Gesamt!A$4:A$1000,Gesamt!M$4:M$1000) -> 0 | N62: =IF(M62>0,M62*-1,-1000) -> -1000 | O62: =IF(M62>0,RANK(N62,N:N),0) -> 0
A63: 755 | B63: =LOOKUP(A63,Gesamt!A$4:A$1000,Gesamt!B$4:B$1000) -> 0 | C63: =LOOKUP(A63,Gesamt!A$4:A$1000,Gesamt!C$4:C$1000) -> 0 | D63: =LOOKUP(A63,Gesamt!A$4:A$1000,Gesamt!D$4:D$1000) -> 0 | E63: =LOOKUP(A63,Gesamt!A$4:A$1000,Gesamt!E$4:E$1000) -> 0 | F63: =LOOKUP(A63,Gesamt!A$4:A$1000,Gesamt!F$4:F$1000) -> 0 | G63: =LOOKUP(A63,Gesamt!A$4:A$1000,Gesamt!G$4:G$1000) -> 0 | H63: =LOOKUP(A63,Gesamt!A$4:A$1000,Gesamt!H$4:H$1000) -> 0 | I63: =LOOKUP(A63,Gesamt!A$4:A$1000,Gesamt!I$4:I$1000) -> 0 | J63: =LOOKUP(A63,Gesamt!A$4:A$1000,Gesamt!J$4:J$1000) -> 0 | K63: =LOOKUP(A63,Gesamt!A$4:A$1000,Gesamt!K$4:K$1000) -> 0 | L63: =LOOKUP(A63,Gesamt!A$4:A$1000,Gesamt!L$4:L$1000) -> 0 | M63: =LOOKUP(A63,Gesamt!A$4:A$1000,Gesamt!M$4:M$1000) -> 0 | N63: =IF(M63>0,M63*-1,-1000) -> -1000 | O63: =IF(M63>0,RANK(N63,N:N),0) -> 0
A64: 756 | B64: =LOOKUP(A64,Gesamt!A$4:A$1000,Gesamt!B$4:B$1000) -> 0 | C64: =LOOKUP(A64,Gesamt!A$4:A$1000,Gesamt!C$4:C$1000) -> 0 | D64: =LOOKUP(A64,Gesamt!A$4:A$1000,Gesamt!D$4:D$1000) -> 0 | E64: =LOOKUP(A64,Gesamt!A$4:A$1000,Gesamt!E$4:E$1000) -> 0 | F64: =LOOKUP(A64,Gesamt!A$4:A$1000,Gesamt!F$4:F$1000) -> 0 | G64: =LOOKUP(A64,Gesamt!A$4:A$1000,Gesamt!G$4:G$1000) -> 0 | H64: =LOOKUP(A64,Gesamt!A$4:A$1000,Gesamt!H$4:H$1000) -> 0 | I64: =LOOKUP(A64,Gesamt!A$4:A$1000,Gesamt!I$4:I$1000) -> 0 | J64: =LOOKUP(A64,Gesamt!A$4:A$1000,Gesamt!J$4:J$1000) -> 0 | K64: =LOOKUP(A64,Gesamt!A$4:A$1000,Gesamt!K$4:K$1000) -> 0 | L64: =LOOKUP(A64,Gesamt!A$4:A$1000,Gesamt!L$4:L$1000) -> 0 | M64: =LOOKUP(A64,Gesamt!A$4:A$1000,Gesamt!M$4:M$1000) -> 0 | N64: =IF(M64>0,M64*-1,-1000) -> -1000 | O64: =IF(M64>0,RANK(N64,N:N),0) -> 0
A65: 757 | B65: =LOOKUP(A65,Gesamt!A$4:A$1000,Gesamt!B$4:B$1000) -> 0 | C65: =LOOKUP(A65,Gesamt!A$4:A$1000,Gesamt!C$4:C$1000) -> 0 | D65: =LOOKUP(A65,Gesamt!A$4:A$1000,Gesamt!D$4:D$1000) -> 0 | E65: =LOOKUP(A65,Gesamt!A$4:A$1000,Gesamt!E$4:E$1000) -> 0 | F65: =LOOKUP(A65,Gesamt!A$4:A$1000,Gesamt!F$4:F$1000) -> 0 | G65: =LOOKUP(A65,Gesamt!A$4:A$1000,Gesamt!G$4:G$1000) -> 0 | H65: =LOOKUP(A65,Gesamt!A$4:A$1000,Gesamt!H$4:H$1000) -> 0 | I65: =LOOKUP(A65,Gesamt!A$4:A$1000,Gesamt!I$4:I$1000) -> 0 | J65: =LOOKUP(A65,Gesamt!A$4:A$1000,Gesamt!J$4:J$1000) -> 0 | K65: =LOOKUP(A65,Gesamt!A$4:A$1000,Gesamt!K$4:K$1000) -> 0 | L65: =LOOKUP(A65,Gesamt!A$4:A$1000,Gesamt!L$4:L$1000) -> 0 | M65: =LOOKUP(A65,Gesamt!A$4:A$1000,Gesamt!M$4:M$1000) -> 0 | N65: =IF(M65>0,M65*-1,-1000) -> -1000 | O65: =IF(M65>0,RANK(N65,N:N),0) -> 0
A66: 758 | B66: =LOOKUP(A66,Gesamt!A$4:A$1000,Gesamt!B$4:B$1000) -> 0 | C66: =LOOKUP(A66,Gesamt!A$4:A$1000,Gesamt!C$4:C$1000) -> 0 | D66: =LOOKUP(A66,Gesamt!A$4:A$1000,Gesamt!D$4:D$1000) -> 0 | E66: =LOOKUP(A66,Gesamt!A$4:A$1000,Gesamt!E$4:E$1000) -> 0 | F66: =LOOKUP(A66,Gesamt!A$4:A$1000,Gesamt!F$4:F$1000) -> 0 | G66: =LOOKUP(A66,Gesamt!A$4:A$1000,Gesamt!G$4:G$1000) -> 0 | H66: =LOOKUP(A66,Gesamt!A$4:A$1000,Gesamt!H$4:H$1000) -> 0 | I66: =LOOKUP(A66,Gesamt!A$4:A$1000,Gesamt!I$4:I$1000) -> 0 | J66: =LOOKUP(A66,Gesamt!A$4:A$1000,Gesamt!J$4:J$1000) -> 0 | K66: =LOOKUP(A66,Gesamt!A$4:A$1000,Gesamt!K$4:K$1000) -> 0 | L66: =LOOKUP(A66,Gesamt!A$4:A$1000,Gesamt!L$4:L$1000) -> 0 | M66: =LOOKUP(A66,Gesamt!A$4:A$1000,Gesamt!M$4:M$1000) -> 0 | N66: =IF(M66>0,M66*-1,-1000) -> -1000 | O66: =IF(M66>0,RANK(N66,N:N),0) -> 0
A67: 759 | B67: =LOOKUP(A67,Gesamt!A$4:A$1000,Gesamt!B$4:B$1000) -> 0 | C67: =LOOKUP(A67,Gesamt!A$4:A$1000,Gesamt!C$4:C$1000) -> 0 | D67: =LOOKUP(A67,Gesamt!A$4:A$1000,Gesamt!D$4:D$1000) -> 0 | E67: =LOOKUP(A67,Gesamt!A$4:A$1000,Gesamt!E$4:E$1000) -> 0 | F67: =LOOKUP(A67,Gesamt!A$4:A$1000,Gesamt!F$4:F$1000) -> 0 | G67: =LOOKUP(A67,Gesamt!A$4:A$1000,Gesamt!G$4:G$1000) -> 0 | H67: =LOOKUP(A67,Gesamt!A$4:A$1000,Gesamt!H$4:H$1000) -> 0 | I67: =LOOKUP(A67,Gesamt!A$4:A$1000,Gesamt!I$4:I$1000) -> 0 | J67: =LOOKUP(A67,Gesamt!A$4:A$1000,Gesamt!J$4:J$1000) -> 0 | K67: =LOOKUP(A67,Gesamt!A$4:A$1000,Gesamt!K$4:K$1000) -> 0 | L67: =LOOKUP(A67,Gesamt!A$4:A$1000,Gesamt!L$4:L$1000) -> 0 | M67: =LOOKUP(A67,Gesamt!A$4:A$1000,Gesamt!M$4:M$1000) -> 0 | N67: =IF(M67>0,M67*-1,-1000) -> -1000 | O67: =IF(M67>0,RANK(N67,N:N),0) -> 0
A68: 760 | B68: =LOOKUP(A68,Gesamt!A$4:A$1000,Gesamt!B$4:B$1000) -> 0 | C68: =LOOKUP(A68,Gesamt!A$4:A$1000,Gesamt!C$4:C$1000) -> 0 | D68: =LOOKUP(A68,Gesamt!A$4:A$1000,Gesamt!D$4:D$1000) -> 0 | E68: =LOOKUP(A68,Gesamt!A$4:A$1000,Gesamt!E$4:E$1000) -> 0 | F68: =LOOKUP(A68,Gesamt!A$4:A$1000,Gesamt!F$4:F$1000) -> 0 | G68: =LOOKUP(A68,Gesamt!A$4:A$1000,Gesamt!G$4:G$1000) -> 0 | H68: =LOOKUP(A68,Gesamt!A$4:A$1000,Gesamt!H$4:H$1000) -> 0 | I68: =LOOKUP(A68,Gesamt!A$4:A$1000,Gesamt!I$4:I$1000) -> 0 | J68: =LOOKUP(A68,Gesamt!A$4:A$1000,Gesamt!J$4:J$1000) -> 0 | K68: =LOOKUP(A68,Gesamt!A$4:A$1000,Gesamt!K$4:K$1000) -> 0 | L68: =LOOKUP(A68,Gesamt!A$4:A$1000,Gesamt!L$4:L$1000) -> 0 | M68: =LOOKUP(A68,Gesamt!A$4:A$1000,Gesamt!M$4:M$1000) -> 0 | N68: =IF(M68>0,M68*-1,-1000) -> -1000 | O68: =IF(M68>0,RANK(N68,N:N),0) -> 0
A69: 761 | B69: =LOOKUP(A69,Gesamt!A$4:A$1000,Gesamt!B$4:B$1000) -> 0 | C69: =LOOKUP(A69,Gesamt!A$4:A$1000,Gesamt!C$4:C$1000) -> 0 | D69: =LOOKUP(A69,Gesamt!A$4:A$1000,Gesamt!D$4:D$1000) -> 0 | E69: =LOOKUP(A69,Gesamt!A$4:A$1000,Gesamt!E$4:E$1000) -> 0 | F69: =LOOKUP(A69,Gesamt!A$4:A$1000,Gesamt!F$4:F$1000) -> 0 | G69: =LOOKUP(A69,Gesamt!A$4:A$1000,Gesamt!G$4:G$1000) -> 0 | H69: =LOOKUP(A69,Gesamt!A$4:A$1000,Gesamt!H$4:H$1000) -> 0 | I69: =LOOKUP(A69,Gesamt!A$4:A$1000,Gesamt!I$4:I$1000) -> 0 | J69: =LOOKUP(A69,Gesamt!A$4:A$1000,Gesamt!J$4:J$1000) -> 0 | K69: =LOOKUP(A69,Gesamt!A$4:A$1000,Gesamt!K$4:K$1000) -> 0 | L69: =LOOKUP(A69,Gesamt!A$4:A$1000,Gesamt!L$4:L$1000) -> 0 | M69: =LOOKUP(A69,Gesamt!A$4:A$1000,Gesamt!M$4:M$1000) -> 0 | N69: =IF(M69>0,M69*-1,-1000) -> -1000 | O69: =IF(M69>0,RANK(N69,N:N),0) -> 0
A70: 762 | B70: =LOOKUP(A70,Gesamt!A$4:A$1000,Gesamt!B$4:B$1000) -> 0 | C70: =LOOKUP(A70,Gesamt!A$4:A$1000,Gesamt!C$4:C$1000) -> 0 | D70: =LOOKUP(A70,Gesamt!A$4:A$1000,Gesamt!D$4:D$1000) -> 0 | E70: =LOOKUP(A70,Gesamt!A$4:A$1000,Gesamt!E$4:E$1000) -> 0 | F70: =LOOKUP(A70,Gesamt!A$4:A$1000,Gesamt!F$4:F$1000) -> 0 | G70: =LOOKUP(A70,Gesamt!A$4:A$1000,Gesamt!G$4:G$1000) -> 0 | H70: =LOOKUP(A70,Gesamt!A$4:A$1000,Gesamt!H$4:H$1000) -> 0 | I70: =LOOKUP(A70,Gesamt!A$4:A$1000,Gesamt!I$4:I$1000) -> 0 | J70: =LOOKUP(A70,Gesamt!A$4:A$1000,Gesamt!J$4:J$1000) -> 0 | K70: =LOOKUP(A70,Gesamt!A$4:A$1000,Gesamt!K$4:K$1000) -> 0 | L70: =LOOKUP(A70,Gesamt!A$4:A$1000,Gesamt!L$4:L$1000) -> 0 | M70: =LOOKUP(A70,Gesamt!A$4:A$1000,Gesamt!M$4:M$1000) -> 0 | N70: =IF(M70>0,M70*-1,-1000) -> -1000 | O70: =IF(M70>0,RANK(N70,N:N),0) -> 0
A71: 763 | B71: =LOOKUP(A71,Gesamt!A$4:A$1000,Gesamt!B$4:B$1000) -> 0 | C71: =LOOKUP(A71,Gesamt!A$4:A$1000,Gesamt!C$4:C$1000) -> 0 | D71: =LOOKUP(A71,Gesamt!A$4:A$1000,Gesamt!D$4:D$1000) -> 0 | E71: =LOOKUP(A71,Gesamt!A$4:A$1000,Gesamt!E$4:E$1000) -> 0 | F71: =LOOKUP(A71,Gesamt!A$4:A$1000,Gesamt!F$4:F$1000) -> 0 | G71: =LOOKUP(A71,Gesamt!A$4:A$1000,Gesamt!G$4:G$1000) -> 0 | H71: =LOOKUP(A71,Gesamt!A$4:A$1000,Gesamt!H$4:H$1000) -> 0 | I71: =LOOKUP(A71,Gesamt!A$4:A$1000,Gesamt!I$4:I$1000) -> 0 | J71: =LOOKUP(A71,Gesamt!A$4:A$1000,Gesamt!J$4:J$1000) -> 0 | K71: =LOOKUP(A71,Gesamt!A$4:A$1000,Gesamt!K$4:K$1000) -> 0 | L71: =LOOKUP(A71,Gesamt!A$4:A$1000,Gesamt!L$4:L$1000) -> 0 | M71: =LOOKUP(A71,Gesamt!A$4:A$1000,Gesamt!M$4:M$1000) -> 0 | N71: =IF(M71>0,M71*-1,-1000) -> -1000 | O71: =IF(M71>0,RANK(N71,N:N),0) -> 0
A72: 764 | B72: =LOOKUP(A72,Gesamt!A$4:A$1000,Gesamt!B$4:B$1000) -> 0 | C72: =LOOKUP(A72,Gesamt!A$4:A$1000,Gesamt!C$4:C$1000) -> 0 | D72: =LOOKUP(A72,Gesamt!A$4:A$1000,Gesamt!D$4:D$1000) -> 0 | E72: =LOOKUP(A72,Gesamt!A$4:A$1000,Gesamt!E$4:E$1000) -> 0 | F72: =LOOKUP(A72,Gesamt!A$4:A$1000,Gesamt!F$4:F$1000) -> 0 | G72: =LOOKUP(A72,Gesamt!A$4:A$1000,Gesamt!G$4:G$1000) -> 0 | H72: =LOOKUP(A72,Gesamt!A$4:A$1000,Gesamt!H$4:H$1000) -> 0 | I72: =LOOKUP(A72,Gesamt!A$4:A$1000,Gesamt!I$4:I$1000) -> 0 | J72: =LOOKUP(A72,Gesamt!A$4:A$1000,Gesamt!J$4:J$1000) -> 0 | K72: =LOOKUP(A72,Gesamt!A$4:A$1000,Gesamt!K$4:K$1000) -> 0 | L72: =LOOKUP(A72,Gesamt!A$4:A$1000,Gesamt!L$4:L$1000) -> 0 | M72: =LOOKUP(A72,Gesamt!A$4:A$1000,Gesamt!M$4:M$1000) -> 0 | N72: =IF(M72>0,M72*-1,-1000) -> -1000 | O72: =IF(M72>0,RANK(N72,N:N),0) -> 0
A73: 765 | B73: =LOOKUP(A73,Gesamt!A$4:A$1000,Gesamt!B$4:B$1000) -> 0 | C73: =LOOKUP(A73,Gesamt!A$4:A$1000,Gesamt!C$4:C$1000) -> 0 | D73: =LOOKUP(A73,Gesamt!A$4:A$1000,Gesamt!D$4:D$1000) -> 0 | E73: =LOOKUP(A73,Gesamt!A$4:A$1000,Gesamt!E$4:E$1000) -> 0 | F73: =LOOKUP(A73,Gesamt!A$4:A$1000,Gesamt!F$4:F$1000) -> 0 | G73: =LOOKUP(A73,Gesamt!A$4:A$1000,Gesamt!G$4:G$1000) -> 0 | H73: =LOOKUP(A73,Gesamt!A$4:A$1000,Gesamt!H$4:H$1000) -> 0 | I73: =LOOKUP(A73,Gesamt!A$4:A$1000,Gesamt!I$4:I$1000) -> 0 | J73: =LOOKUP(A73,Gesamt!A$4:A$1000,Gesamt!J$4:J$1000) -> 0 | K73: =LOOKUP(A73,Gesamt!A$4:A$1000,Gesamt!K$4:K$1000) -> 0 | L73: =LOOKUP(A73,Gesamt!A$4:A$1000,Gesamt!L$4:L$1000) -> 0 | M73: =LOOKUP(A73,Gesamt!A$4:A$1000,Gesamt!M$4:M$1000) -> 0 | N73: =IF(M73>0,M73*-1,-1000) -> -1000 | O73: =IF(M73>0,RANK(N73,N:N),0) -> 0
A74: 766 | B74: =LOOKUP(A74,Gesamt!A$4:A$1000,Gesamt!B$4:B$1000) -> 0 | C74: =LOOKUP(A74,Gesamt!A$4:A$1000,Gesamt!C$4:C$1000) -> 0 | D74: =LOOKUP(A74,Gesamt!A$4:A$1000,Gesamt!D$4:D$1000) -> 0 | E74: =LOOKUP(A74,Gesamt!A$4:A$1000,Gesamt!E$4:E$1000) -> 0 | F74: =LOOKUP(A74,Gesamt!A$4:A$1000,Gesamt!F$4:F$1000) -> 0 | G74: =LOOKUP(A74,Gesamt!A$4:A$1000,Gesamt!G$4:G$1000) -> 0 | H74: =LOOKUP(A74,Gesamt!A$4:A$1000,Gesamt!H$4:H$1000) -> 0 | I74: =LOOKUP(A74,Gesamt!A$4:A$1000,Gesamt!I$4:I$1000) -> 0 | J74: =LOOKUP(A74,Gesamt!A$4:A$1000,Gesamt!J$4:J$1000) -> 0 | K74: =LOOKUP(A74,Gesamt!A$4:A$1000,Gesamt!K$4:K$1000) -> 0 | L74: =LOOKUP(A74,Gesamt!A$4:A$1000,Gesamt!L$4:L$1000) -> 0 | M74: =LOOKUP(A74,Gesamt!A$4:A$1000,Gesamt!M$4:M$1000) -> 0 | N74: =IF(M74>0,M74*-1,-1000) -> -1000 | O74: =IF(M74>0,RANK(N74,N:N),0) -> 0
A75: 767 | B75: =LOOKUP(A75,Gesamt!A$4:A$1000,Gesamt!B$4:B$1000) -> 0 | C75: =LOOKUP(A75,Gesamt!A$4:A$1000,Gesamt!C$4:C$1000) -> 0 | D75: =LOOKUP(A75,Gesamt!A$4:A$1000,Gesamt!D$4:D$1000) -> 0 | E75: =LOOKUP(A75,Gesamt!A$4:A$1000,Gesamt!E$4:E$1000) -> 0 | F75: =LOOKUP(A75,Gesamt!A$4:A$1000,Gesamt!F$4:F$1000) -> 0 | G75: =LOOKUP(A75,Gesamt!A$4:A$1000,Gesamt!G$4:G$1000) -> 0 | H75: =LOOKUP(A75,Gesamt!A$4:A$1000,Gesamt!H$4:H$1000) -> 0 | I75: =LOOKUP(A75,Gesamt!A$4:A$1000,Gesamt!I$4:I$1000) -> 0 | J75: =LOOKUP(A75,Gesamt!A$4:A$1000,Gesamt!J$4:J$1000) -> 0 | K75: =LOOKUP(A75,Gesamt!A$4:A$1000,Gesamt!K$4:K$1000) -> 0 | L75: =LOOKUP(A75,Gesamt!A$4:A$1000,Gesamt!L$4:L$1000) -> 0 | M75: =LOOKUP(A75,Gesamt!A$4:A$1000,Gesamt!M$4:M$1000) -> 0 | N75: =IF(M75>0,M75*-1,-1000) -> -1000 | O75: =IF(M75>0,RANK(N75,N:N),0) -> 0
A76: 768 | B76: =LOOKUP(A76,Gesamt!A$4:A$1000,Gesamt!B$4:B$1000) -> 0 | C76: =LOOKUP(A76,Gesamt!A$4:A$1000,Gesamt!C$4:C$1000) -> 0 | D76: =LOOKUP(A76,Gesamt!A$4:A$1000,Gesamt!D$4:D$1000) -> 0 | E76: =LOOKUP(A76,Gesamt!A$4:A$1000,Gesamt!E$4:E$1000) -> 0 | F76: =LOOKUP(A76,Gesamt!A$4:A$1000,Gesamt!F$4:F$1000) -> 0 | G76: =LOOKUP(A76,Gesamt!A$4:A$1000,Gesamt!G$4:G$1000) -> 0 | H76: =LOOKUP(A76,Gesamt!A$4:A$1000,Gesamt!H$4:H$1000) -> 0 | I76: =LOOKUP(A76,Gesamt!A$4:A$1000,Gesamt!I$4:I$1000) -> 0 | J76: =LOOKUP(A76,Gesamt!A$4:A$1000,Gesamt!J$4:J$1000) -> 0 | K76: =LOOKUP(A76,Gesamt!A$4:A$1000,Gesamt!K$4:K$1000) -> 0 | L76: =LOOKUP(A76,Gesamt!A$4:A$1000,Gesamt!L$4:L$1000) -> 0 | M76: =LOOKUP(A76,Gesamt!A$4:A$1000,Gesamt!M$4:M$1000) -> 0 | N76: =IF(M76>0,M76*-1,-1000) -> -1000 | O76: =IF(M76>0,RANK(N76,N:N),0) -> 0
A77: 769 | B77: =LOOKUP(A77,Gesamt!A$4:A$1000,Gesamt!B$4:B$1000) -> 0 | C77: =LOOKUP(A77,Gesamt!A$4:A$1000,Gesamt!C$4:C$1000) -> 0 | D77: =LOOKUP(A77,Gesamt!A$4:A$1000,Gesamt!D$4:D$1000) -> 0 | E77: =LOOKUP(A77,Gesamt!A$4:A$1000,Gesamt!E$4:E$1000) -> 0 | F77: =LOOKUP(A77,Gesamt!A$4:A$1000,Gesamt!F$4:F$1000) -> 0 | G77: =LOOKUP(A77,Gesamt!A$4:A$1000,Gesamt!G$4:G$1000) -> 0 | H77: =LOOKUP(A77,Gesamt!A$4:A$1000,Gesamt!H$4:H$1000) -> 0 | I77: =LOOKUP(A77,Gesamt!A$4:A$1000,Gesamt!I$4:I$1000) -> 0 | J77: =LOOKUP(A77,Gesamt!A$4:A$1000,Gesamt!J$4:J$1000) -> 0 | K77: =LOOKUP(A77,Gesamt!A$4:A$1000,Gesamt!K$4:K$1000) -> 0 | L77: =LOOKUP(A77,Gesamt!A$4:A$1000,Gesamt!L$4:L$1000) -> 0 | M77: =LOOKUP(A77,Gesamt!A$4:A$1000,Gesamt!M$4:M$1000) -> 0 | N77: =IF(M77>0,M77*-1,-1000) -> -1000 | O77: =IF(M77>0,RANK(N77,N:N),0) -> 0
A78: 770 | B78: =LOOKUP(A78,Gesamt!A$4:A$1000,Gesamt!B$4:B$1000) -> 0 | C78: =LOOKUP(A78,Gesamt!A$4:A$1000,Gesamt!C$4:C$1000) -> 0 | D78: =LOOKUP(A78,Gesamt!A$4:A$1000,Gesamt!D$4:D$1000) -> 0 | E78: =LOOKUP(A78,Gesamt!A$4:A$1000,Gesamt!E$4:E$1000) -> 0 | F78: =LOOKUP(A78,Gesamt!A$4:A$1000,Gesamt!F$4:F$1000) -> 0 | G78: =LOOKUP(A78,Gesamt!A$4:A$1000,Gesamt!G$4:G$1000) -> 0 | H78: =LOOKUP(A78,Gesamt!A$4:A$1000,Gesamt!H$4:H$1000) -> 0 | I78: =LOOKUP(A78,Gesamt!A$4:A$1000,Gesamt!I$4:I$1000) -> 0 | J78: =LOOKUP(A78,Gesamt!A$4:A$1000,Gesamt!J$4:J$1000) -> 0 | K78: =LOOKUP(A78,Gesamt!A$4:A$1000,Gesamt!K$4:K$1000) -> 0 | L78: =LOOKUP(A78,Gesamt!A$4:A$1000,Gesamt!L$4:L$1000) -> 0 | M78: =LOOKUP(A78,Gesamt!A$4:A$1000,Gesamt!M$4:M$1000) -> 0 | N78: =IF(M78>0,M78*-1,-1000) -> -1000 | O78: =IF(M78>0,RANK(N78,N:N),0) -> 0
A79: 771 | B79: =LOOKUP(A79,Gesamt!A$4:A$1000,Gesamt!B$4:B$1000) -> 0 | C79: =LOOKUP(A79,Gesamt!A$4:A$1000,Gesamt!C$4:C$1000) -> 0 | D79: =LOOKUP(A79,Gesamt!A$4:A$1000,Gesamt!D$4:D$1000) -> 0 | E79: =LOOKUP(A79,Gesamt!A$4:A$1000,Gesamt!E$4:E$1000) -> 0 | F79: =LOOKUP(A79,Gesamt!A$4:A$1000,Gesamt!F$4:F$1000) -> 0 | G79: =LOOKUP(A79,Gesamt!A$4:A$1000,Gesamt!G$4:G$1000) -> 0 | H79: =LOOKUP(A79,Gesamt!A$4:A$1000,Gesamt!H$4:H$1000) -> 0 | I79: =LOOKUP(A79,Gesamt!A$4:A$1000,Gesamt!I$4:I$1000) -> 0 | J79: =LOOKUP(A79,Gesamt!A$4:A$1000,Gesamt!J$4:J$1000) -> 0 | K79: =LOOKUP(A79,Gesamt!A$4:A$1000,Gesamt!K$4:K$1000) -> 0 | L79: =LOOKUP(A79,Gesamt!A$4:A$1000,Gesamt!L$4:L$1000) -> 0 | M79: =LOOKUP(A79,Gesamt!A$4:A$1000,Gesamt!M$4:M$1000) -> 0 | N79: =IF(M79>0,M79*-1,-1000) -> -1000 | O79: =IF(M79>0,RANK(N79,N:N),0) -> 0
A80: 772 | B80: =LOOKUP(A80,Gesamt!A$4:A$1000,Gesamt!B$4:B$1000) -> 0 | C80: =LOOKUP(A80,Gesamt!A$4:A$1000,Gesamt!C$4:C$1000) -> 0 | D80: =LOOKUP(A80,Gesamt!A$4:A$1000,Gesamt!D$4:D$1000) -> 0 | E80: =LOOKUP(A80,Gesamt!A$4:A$1000,Gesamt!E$4:E$1000) -> 0 | F80: =LOOKUP(A80,Gesamt!A$4:A$1000,Gesamt!F$4:F$1000) -> 0 | G80: =LOOKUP(A80,Gesamt!A$4:A$1000,Gesamt!G$4:G$1000) -> 0 | H80: =LOOKUP(A80,Gesamt!A$4:A$1000,Gesamt!H$4:H$1000) -> 0 | I80: =LOOKUP(A80,Gesamt!A$4:A$1000,Gesamt!I$4:I$1000) -> 0 | J80: =LOOKUP(A80,Gesamt!A$4:A$1000,Gesamt!J$4:J$1000) -> 0 | K80: =LOOKUP(A80,Gesamt!A$4:A$1000,Gesamt!K$4:K$1000) -> 0 | L80: =LOOKUP(A80,Gesamt!A$4:A$1000,Gesamt!L$4:L$1000) -> 0 | M80: =LOOKUP(A80,Gesamt!A$4:A$1000,Gesamt!M$4:M$1000) -> 0 | N80: =IF(M80>0,M80*-1,-1000) -> -1000 | O80: =IF(M80>0,RANK(N80,N:N),0) -> 0
A81: 773 | B81: =LOOKUP(A81,Gesamt!A$4:A$1000,Gesamt!B$4:B$1000) -> 0 | C81: =LOOKUP(A81,Gesamt!A$4:A$1000,Gesamt!C$4:C$1000) -> 0 | D81: =LOOKUP(A81,Gesamt!A$4:A$1000,Gesamt!D$4:D$1000) -> 0 | E81: =LOOKUP(A81,Gesamt!A$4:A$1000,Gesamt!E$4:E$1000) -> 0 | F81: =LOOKUP(A81,Gesamt!A$4:A$1000,Gesamt!F$4:F$1000) -> 0 | G81: =LOOKUP(A81,Gesamt!A$4:A$1000,Gesamt!G$4:G$1000) -> 0 | H81: =LOOKUP(A81,Gesamt!A$4:A$1000,Gesamt!H$4:H$1000) -> 0 | I81: =LOOKUP(A81,Gesamt!A$4:A$1000,Gesamt!I$4:I$1000) -> 0 | J81: =LOOKUP(A81,Gesamt!A$4:A$1000,Gesamt!J$4:J$1000) -> 0 | K81: =LOOKUP(A81,Gesamt!A$4:A$1000,Gesamt!K$4:K$1000) -> 0 | L81: =LOOKUP(A81,Gesamt!A$4:A$1000,Gesamt!L$4:L$1000) -> 0 | M81: =LOOKUP(A81,Gesamt!A$4:A$1000,Gesamt!M$4:M$1000) -> 0 | N81: =IF(M81>0,M81*-1,-1000) -> -1000 | O81: =IF(M81>0,RANK(N81,N:N),0) -> 0
A82: 774 | B82: =LOOKUP(A82,Gesamt!A$4:A$1000,Gesamt!B$4:B$1000) -> 0 | C82: =LOOKUP(A82,Gesamt!A$4:A$1000,Gesamt!C$4:C$1000) -> 0 | D82: =LOOKUP(A82,Gesamt!A$4:A$1000,Gesamt!D$4:D$1000) -> 0 | E82: =LOOKUP(A82,Gesamt!A$4:A$1000,Gesamt!E$4:E$1000) -> 0 | F82: =LOOKUP(A82,Gesamt!A$4:A$1000,Gesamt!F$4:F$1000) -> 0 | G82: =LOOKUP(A82,Gesamt!A$4:A$1000,Gesamt!G$4:G$1000) -> 0 | H82: =LOOKUP(A82,Gesamt!A$4:A$1000,Gesamt!H$4:H$1000) -> 0 | I82: =LOOKUP(A82,Gesamt!A$4:A$1000,Gesamt!I$4:I$1000) -> 0 | J82: =LOOKUP(A82,Gesamt!A$4:A$1000,Gesamt!J$4:J$1000) -> 0 | K82: =LOOKUP(A82,Gesamt!A$4:A$1000,Gesamt!K$4:K$1000) -> 0 | L82: =LOOKUP(A82,Gesamt!A$4:A$1000,Gesamt!L$4:L$1000) -> 0 | M82: =LOOKUP(A82,Gesamt!A$4:A$1000,Gesamt!M$4:M$1000) -> 0 | N82: =IF(M82>0,M82*-1,-1000) -> -1000 | O82: =IF(M82>0,RANK(N82,N:N),0) -> 0
A83: 775 | B83: =LOOKUP(A83,Gesamt!A$4:A$1000,Gesamt!B$4:B$1000) -> 0 | C83: =LOOKUP(A83,Gesamt!A$4:A$1000,Gesamt!C$4:C$1000) -> 0 | D83: =LOOKUP(A83,Gesamt!A$4:A$1000,Gesamt!D$4:D$1000) -> 0 | E83: =LOOKUP(A83,Gesamt!A$4:A$1000,Gesamt!E$4:E$1000) -> 0 | F83: =LOOKUP(A83,Gesamt!A$4:A$1000,Gesamt!F$4:F$1000) -> 0 | G83: =LOOKUP(A83,Gesamt!A$4:A$1000,Gesamt!G$4:G$1000) -> 0 | H83: =LOOKUP(A83,Gesamt!A$4:A$1000,Gesamt!H$4:H$1000) -> 0 | I83: =LOOKUP(A83,Gesamt!A$4:A$1000,Gesamt!I$4:I$1000) -> 0 | J83: =LOOKUP(A83,Gesamt!A$4:A$1000,Gesamt!J$4:J$1000) -> 0 | K83: =LOOKUP(A83,Gesamt!A$4:A$1000,Gesamt!K$4:K$1000) -> 0 | L83: =LOOKUP(A83,Gesamt!A$4:A$1000,Gesamt!L$4:L$1000) -> 0 | M83: =LOOKUP(A83,Gesamt!A$4:A$1000,Gesamt!M$4:M$1000) -> 0 | N83: =IF(M83>0,M83*-1,-1000) -> -1000 | O83: =IF(M83>0,RANK(N83,N:N),0) -> 0
A84: 776 | B84: =LOOKUP(A84,Gesamt!A$4:A$1000,Gesamt!B$4:B$1000) -> 0 | C84: =LOOKUP(A84,Gesamt!A$4:A$1000,Gesamt!C$4:C$1000) -> 0 | D84: =LOOKUP(A84,Gesamt!A$4:A$1000,Gesamt!D$4:D$1000) -> 0 | E84: =LOOKUP(A84,Gesamt!A$4:A$1000,Gesamt!E$4:E$1000) -> 0 | F84: =LOOKUP(A84,Gesamt!A$4:A$1000,Gesamt!F$4:F$1000) -> 0 | G84: =LOOKUP(A84,Gesamt!A$4:A$1000,Gesamt!G$4:G$1000) -> 0 | H84: =LOOKUP(A84,Gesamt!A$4:A$1000,Gesamt!H$4:H$1000) -> 0 | I84: =LOOKUP(A84,Gesamt!A$4:A$1000,Gesamt!I$4:I$1000) -> 0 | J84: =LOOKUP(A84,Gesamt!A$4:A$1000,Gesamt!J$4:J$1000) -> 0 | K84: =LOOKUP(A84,Gesamt!A$4:A$1000,Gesamt!K$4:K$1000) -> 0 | L84: =LOOKUP(A84,Gesamt!A$4:A$1000,Gesamt!L$4:L$1000) -> 0 | M84: =LOOKUP(A84,Gesamt!A$4:A$1000,Gesamt!M$4:M$1000) -> 0 | N84: =IF(M84>0,M84*-1,-1000) -> -1000 | O84: =IF(M84>0,RANK(N84,N:N),0) -> 0
A85: 777 | B85: =LOOKUP(A85,Gesamt!A$4:A$1000,Gesamt!B$4:B$1000) -> 0 | C85: =LOOKUP(A85,Gesamt!A$4:A$1000,Gesamt!C$4:C$1000) -> 0 | D85: =LOOKUP(A85,Gesamt!A$4:A$1000,Gesamt!D$4:D$1000) -> 0 | E85: =LOOKUP(A85,Gesamt!A$4:A$1000,Gesamt!E$4:E$1000) -> 0 | F85: =LOOKUP(A85,Gesamt!A$4:A$1000,Gesamt!F$4:F$1000) -> 0 | G85: =LOOKUP(A85,Gesamt!A$4:A$1000,Gesamt!G$4:G$1000) -> 0 | H85: =LOOKUP(A85,Gesamt!A$4:A$1000,Gesamt!H$4:H$1000) -> 0 | I85: =LOOKUP(A85,Gesamt!A$4:A$1000,Gesamt!I$4:I$1000) -> 0 | J85: =LOOKUP(A85,Gesamt!A$4:A$1000,Gesamt!J$4:J$1000) -> 0 | K85: =LOOKUP(A85,Gesamt!A$4:A$1000,Gesamt!K$4:K$1000) -> 0 | L85: =LOOKUP(A85,Gesamt!A$4:A$1000,Gesamt!L$4:L$1000) -> 0 | M85: =LOOKUP(A85,Gesamt!A$4:A$1000,Gesamt!M$4:M$1000) -> 0 | N85: =IF(M85>0,M85*-1,-1000) -> -1000 | O85: =IF(M85>0,RANK(N85,N:N),0) -> 0
A86: 778 | B86: =LOOKUP(A86,Gesamt!A$4:A$1000,Gesamt!B$4:B$1000) -> 0 | C86: =LOOKUP(A86,Gesamt!A$4:A$1000,Gesamt!C$4:C$1000) -> 0 | D86: =LOOKUP(A86,Gesamt!A$4:A$1000,Gesamt!D$4:D$1000) -> 0 | E86: =LOOKUP(A86,Gesamt!A$4:A$1000,Gesamt!E$4:E$1000) -> 0 | F86: =LOOKUP(A86,Gesamt!A$4:A$1000,Gesamt!F$4:F$1000) -> 0 | G86: =LOOKUP(A86,Gesamt!A$4:A$1000,Gesamt!G$4:G$1000) -> 0 | H86: =LOOKUP(A86,Gesamt!A$4:A$1000,Gesamt!H$4:H$1000) -> 0 | I86: =LOOKUP(A86,Gesamt!A$4:A$1000,Gesamt!I$4:I$1000) -> 0 | J86: =LOOKUP(A86,Gesamt!A$4:A$1000,Gesamt!J$4:J$1000) -> 0 | K86: =LOOKUP(A86,Gesamt!A$4:A$1000,Gesamt!K$4:K$1000) -> 0 | L86: =LOOKUP(A86,Gesamt!A$4:A$1000,Gesamt!L$4:L$1000) -> 0 | M86: =LOOKUP(A86,Gesamt!A$4:A$1000,Gesamt!M$4:M$1000) -> 0 | N86: =IF(M86>0,M86*-1,-1000) -> -1000 | O86: =IF(M86>0,RANK(N86,N:N),0) -> 0
A87: 779 | B87: =LOOKUP(A87,Gesamt!A$4:A$1000,Gesamt!B$4:B$1000) -> 0 | C87: =LOOKUP(A87,Gesamt!A$4:A$1000,Gesamt!C$4:C$1000) -> 0 | D87: =LOOKUP(A87,Gesamt!A$4:A$1000,Gesamt!D$4:D$1000) -> 0 | E87: =LOOKUP(A87,Gesamt!A$4:A$1000,Gesamt!E$4:E$1000) -> 0 | F87: =LOOKUP(A87,Gesamt!A$4:A$1000,Gesamt!F$4:F$1000) -> 0 | G87: =LOOKUP(A87,Gesamt!A$4:A$1000,Gesamt!G$4:G$1000) -> 0 | H87: =LOOKUP(A87,Gesamt!A$4:A$1000,Gesamt!H$4:H$1000) -> 0 | I87: =LOOKUP(A87,Gesamt!A$4:A$1000,Gesamt!I$4:I$1000) -> 0 | J87: =LOOKUP(A87,Gesamt!A$4:A$1000,Gesamt!J$4:J$1000) -> 0 | K87: =LOOKUP(A87,Gesamt!A$4:A$1000,Gesamt!K$4:K$1000) -> 0 | L87: =LOOKUP(A87,Gesamt!A$4:A$1000,Gesamt!L$4:L$1000) -> 0 | M87: =LOOKUP(A87,Gesamt!A$4:A$1000,Gesamt!M$4:M$1000) -> 0 | N87: =IF(M87>0,M87*-1,-1000) -> -1000 | O87: =IF(M87>0,RANK(N87,N:N),0) -> 0
A88: 780 | B88: =LOOKUP(A88,Gesamt!A$4:A$1000,Gesamt!B$4:B$1000) -> 0 | C88: =LOOKUP(A88,Gesamt!A$4:A$1000,Gesamt!C$4:C$1000) -> 0 | D88: =LOOKUP(A88,Gesamt!A$4:A$1000,Gesamt!D$4:D$1000) -> 0 | E88: =LOOKUP(A88,Gesamt!A$4:A$1000,Gesamt!E$4:E$1000) -> 0 | F88: =LOOKUP(A88,Gesamt!A$4:A$1000,Gesamt!F$4:F$1000) -> 0 | G88: =LOOKUP(A88,Gesamt!A$4:A$1000,Gesamt!G$4:G$1000) -> 0 | H88: =LOOKUP(A88,Gesamt!A$4:A$1000,Gesamt!H$4:H$1000) -> 0 | I88: =LOOKUP(A88,Gesamt!A$4:A$1000,Gesamt!I$4:I$1000) -> 0 | J88: =LOOKUP(A88,Gesamt!A$4:A$1000,Gesamt!J$4:J$1000) -> 0 | K88: =LOOKUP(A88,Gesamt!A$4:A$1000,Gesamt!K$4:K$1000) -> 0 | L88: =LOOKUP(A88,Gesamt!A$4:A$1000,Gesamt!L$4:L$1000) -> 0 | M88: =LOOKUP(A88,Gesamt!A$4:A$1000,Gesamt!M$4:M$1000) -> 0 | N88: =IF(M88>0,M88*-1,-1000) -> -1000 | O88: =IF(M88>0,RANK(N88,N:N),0) -> 0
A89: 781 | B89: =LOOKUP(A89,Gesamt!A$4:A$1000,Gesamt!B$4:B$1000) -> 0 | C89: =LOOKUP(A89,Gesamt!A$4:A$1000,Gesamt!C$4:C$1000) -> 0 | D89: =LOOKUP(A89,Gesamt!A$4:A$1000,Gesamt!D$4:D$1000) -> 0 | E89: =LOOKUP(A89,Gesamt!A$4:A$1000,Gesamt!E$4:E$1000) -> 0 | F89: =LOOKUP(A89,Gesamt!A$4:A$1000,Gesamt!F$4:F$1000) -> 0 | G89: =LOOKUP(A89,Gesamt!A$4:A$1000,Gesamt!G$4:G$1000) -> 0 | H89: =LOOKUP(A89,Gesamt!A$4:A$1000,Gesamt!H$4:H$1000) -> 0 | I89: =LOOKUP(A89,Gesamt!A$4:A$1000,Gesamt!I$4:I$1000) -> 0 | J89: =LOOKUP(A89,Gesamt!A$4:A$1000,Gesamt!J$4:J$1000) -> 0 | K89: =LOOKUP(A89,Gesamt!A$4:A$1000,Gesamt!K$4:K$1000) -> 0 | L89: =LOOKUP(A89,Gesamt!A$4:A$1000,Gesamt!L$4:L$1000) -> 0 | M89: =LOOKUP(A89,Gesamt!A$4:A$1000,Gesamt!M$4:M$1000) -> 0 | N89: =IF(M89>0,M89*-1,-1000) -> -1000 | O89: =IF(M89>0,RANK(N89,N:N),0) -> 0
A90: 782 | B90: =LOOKUP(A90,Gesamt!A$4:A$1000,Gesamt!B$4:B$1000) -> 0 | C90: =LOOKUP(A90,Gesamt!A$4:A$1000,Gesamt!C$4:C$1000) -> 0 | D90: =LOOKUP(A90,Gesamt!A$4:A$1000,Gesamt!D$4:D$1000) -> 0 | E90: =LOOKUP(A90,Gesamt!A$4:A$1000,Gesamt!E$4:E$1000) -> 0 | F90: =LOOKUP(A90,Gesamt!A$4:A$1000,Gesamt!F$4:F$1000) -> 0 | G90: =LOOKUP(A90,Gesamt!A$4:A$1000,Gesamt!G$4:G$1000) -> 0 | H90: =LOOKUP(A90,Gesamt!A$4:A$1000,Gesamt!H$4:H$1000) -> 0 | I90: =LOOKUP(A90,Gesamt!A$4:A$1000,Gesamt!I$4:I$1000) -> 0 | J90: =LOOKUP(A90,Gesamt!A$4:A$1000,Gesamt!J$4:J$1000) -> 0 | K90: =LOOKUP(A90,Gesamt!A$4:A$1000,Gesamt!K$4:K$1000) -> 0 | L90: =LOOKUP(A90,Gesamt!A$4:A$1000,Gesamt!L$4:L$1000) -> 0 | M90: =LOOKUP(A90,Gesamt!A$4:A$1000,Gesamt!M$4:M$1000) -> 0 | N90: =IF(M90>0,M90*-1,-1000) -> -1000 | O90: =IF(M90>0,RANK(N90,N:N),0) -> 0
A91: 783 | B91: =LOOKUP(A91,Gesamt!A$4:A$1000,Gesamt!B$4:B$1000) -> 0 | C91: =LOOKUP(A91,Gesamt!A$4:A$1000,Gesamt!C$4:C$1000) -> 0 | D91: =LOOKUP(A91,Gesamt!A$4:A$1000,Gesamt!D$4:D$1000) -> 0 | E91: =LOOKUP(A91,Gesamt!A$4:A$1000,Gesamt!E$4:E$1000) -> 0 | F91: =LOOKUP(A91,Gesamt!A$4:A$1000,Gesamt!F$4:F$1000) -> 0 | G91: =LOOKUP(A91,Gesamt!A$4:A$1000,Gesamt!G$4:G$1000) -> 0 | H91: =LOOKUP(A91,Gesamt!A$4:A$1000,Gesamt!H$4:H$1000) -> 0 | I91: =LOOKUP(A91,Gesamt!A$4:A$1000,Gesamt!I$4:I$1000) -> 0 | J91: =LOOKUP(A91,Gesamt!A$4:A$1000,Gesamt!J$4:J$1000) -> 0 | K91: =LOOKUP(A91,Gesamt!A$4:A$1000,Gesamt!K$4:K$1000) -> 0 | L91: =LOOKUP(A91,Gesamt!A$4:A$1000,Gesamt!L$4:L$1000) -> 0 | M91: =LOOKUP(A91,Gesamt!A$4:A$1000,Gesamt!M$4:M$1000) -> 0 | N91: =IF(M91>0,M91*-1,-1000) -> -1000 | O91: =IF(M91>0,RANK(N91,N:N),0) -> 0
A92: 784 | B92: =LOOKUP(A92,Gesamt!A$4:A$1000,Gesamt!B$4:B$1000) -> 0 | C92: =LOOKUP(A92,Gesamt!A$4:A$1000,Gesamt!C$4:C$1000) -> 0 | D92: =LOOKUP(A92,Gesamt!A$4:A$1000,Gesamt!D$4:D$1000) -> 0 | E92: =LOOKUP(A92,Gesamt!A$4:A$1000,Gesamt!E$4:E$1000) -> 0 | F92: =LOOKUP(A92,Gesamt!A$4:A$1000,Gesamt!F$4:F$1000) -> 0 | G92: =LOOKUP(A92,Gesamt!A$4:A$1000,Gesamt!G$4:G$1000) -> 0 | H92: =LOOKUP(A92,Gesamt!A$4:A$1000,Gesamt!H$4:H$1000) -> 0 | I92: =LOOKUP(A92,Gesamt!A$4:A$1000,Gesamt!I$4:I$1000) -> 0 | J92: =LOOKUP(A92,Gesamt!A$4:A$1000,Gesamt!J$4:J$1000) -> 0 | K92: =LOOKUP(A92,Gesamt!A$4:A$1000,Gesamt!K$4:K$1000) -> 0 | L92: =LOOKUP(A92,Gesamt!A$4:A$1000,Gesamt!L$4:L$1000) -> 0 | M92: =LOOKUP(A92,Gesamt!A$4:A$1000,Gesamt!M$4:M$1000) -> 0 | N92: =IF(M92>0,M92*-1,-1000) -> -1000 | O92: =IF(M92>0,RANK(N92,N:N),0) -> 0
A93: 785 | B93: =LOOKUP(A93,Gesamt!A$4:A$1000,Gesamt!B$4:B$1000) -> 0 | C93: =LOOKUP(A93,Gesamt!A$4:A$1000,Gesamt!C$4:C$1000) -> 0 | D93: =LOOKUP(A93,Gesamt!A$4:A$1000,Gesamt!D$4:D$1000) -> 0 | E93: =LOOKUP(A93,Gesamt!A$4:A$1000,Gesamt!E$4:E$1000) -> 0 | F93: =LOOKUP(A93,Gesamt!A$4:A$1000,Gesamt!F$4:F$1000) -> 0 | G93: =LOOKUP(A93,Gesamt!A$4:A$1000,Gesamt!G$4:G$1000) -> 0 | H93: =LOOKUP(A93,Gesamt!A$4:A$1000,Gesamt!H$4:H$1000) -> 0 | I93: =LOOKUP(A93,Gesamt!A$4:A$1000,Gesamt!I$4:I$1000) -> 0 | J93: =LOOKUP(A93,Gesamt!A$4:A$1000,Gesamt!J$4:J$1000) -> 0 | K93: =LOOKUP(A93,Gesamt!A$4:A$1000,Gesamt!K$4:K$1000) -> 0 | L93: =LOOKUP(A93,Gesamt!A$4:A$1000,Gesamt!L$4:L$1000) -> 0 | M93: =LOOKUP(A93,Gesamt!A$4:A$1000,Gesamt!M$4:M$1000) -> 0 | N93: =IF(M93>0,M93*-1,-1000) -> -1000 | O93: =IF(M93>0,RANK(N93,N:N),0) -> 0
A94: 786 | B94: =LOOKUP(A94,Gesamt!A$4:A$1000,Gesamt!B$4:B$1000) -> 0 | C94: =LOOKUP(A94,Gesamt!A$4:A$1000,Gesamt!C$4:C$1000) -> 0 | D94: =LOOKUP(A94,Gesamt!A$4:A$1000,Gesamt!D$4:D$1000) -> 0 | E94: =LOOKUP(A94,Gesamt!A$4:A$1000,Gesamt!E$4:E$1000) -> 0 | F94: =LOOKUP(A94,Gesamt!A$4:A$1000,Gesamt!F$4:F$1000) -> 0 | G94: =LOOKUP(A94,Gesamt!A$4:A$1000,Gesamt!G$4:G$1000) -> 0 | H94: =LOOKUP(A94,Gesamt!A$4:A$1000,Gesamt!H$4:H$1000) -> 0 | I94: =LOOKUP(A94,Gesamt!A$4:A$1000,Gesamt!I$4:I$1000) -> 0 | J94: =LOOKUP(A94,Gesamt!A$4:A$1000,Gesamt!J$4:J$1000) -> 0 | K94: =LOOKUP(A94,Gesamt!A$4:A$1000,Gesamt!K$4:K$1000) -> 0 | L94: =LOOKUP(A94,Gesamt!A$4:A$1000,Gesamt!L$4:L$1000) -> 0 | M94: =LOOKUP(A94,Gesamt!A$4:A$1000,Gesamt!M$4:M$1000) -> 0 | N94: =IF(M94>0,M94*-1,-1000) -> -1000 | O94: =IF(M94>0,RANK(N94,N:N),0) -> 0
A95: 787 | B95: =LOOKUP(A95,Gesamt!A$4:A$1000,Gesamt!B$4:B$1000) -> 0 | C95: =LOOKUP(A95,Gesamt!A$4:A$1000,Gesamt!C$4:C$1000) -> 0 | D95: =LOOKUP(A95,Gesamt!A$4:A$1000,Gesamt!D$4:D$1000) -> 0 | E95: =LOOKUP(A95,Gesamt!A$4:A$1000,Gesamt!E$4:E$1000) -> 0 | F95: =LOOKUP(A95,Gesamt!A$4:A$1000,Gesamt!F$4:F$1000) -> 0 | G95: =LOOKUP(A95,Gesamt!A$4:A$1000,Gesamt!G$4:G$1000) -> 0 | H95: =LOOKUP(A95,Gesamt!A$4:A$1000,Gesamt!H$4:H$1000) -> 0 | I95: =LOOKUP(A95,Gesamt!A$4:A$1000,Gesamt!I$4:I$1000) -> 0 | J95: =LOOKUP(A95,Gesamt!A$4:A$1000,Gesamt!J$4:J$1000) -> 0 | K95: =LOOKUP(A95,Gesamt!A$4:A$1000,Gesamt!K$4:K$1000) -> 0 | L95: =LOOKUP(A95,Gesamt!A$4:A$1000,Gesamt!L$4:L$1000) -> 0 | M95: =LOOKUP(A95,Gesamt!A$4:A$1000,Gesamt!M$4:M$1000) -> 0 | N95: =IF(M95>0,M95*-1,-1000) -> -1000 | O95: =IF(M95>0,RANK(N95,N:N),0) -> 0
A96: 788 | B96: =LOOKUP(A96,Gesamt!A$4:A$1000,Gesamt!B$4:B$1000) -> 0 | C96: =LOOKUP(A96,Gesamt!A$4:A$1000,Gesamt!C$4:C$1000) -> 0 | D96: =LOOKUP(A96,Gesamt!A$4:A$1000,Gesamt!D$4:D$1000) -> 0 | E96: =LOOKUP(A96,Gesamt!A$4:A$1000,Gesamt!E$4:E$1000) -> 0 | F96: =LOOKUP(A96,Gesamt!A$4:A$1000,Gesamt!F$4:F$1000) -> 0 | G96: =LOOKUP(A96,Gesamt!A$4:A$1000,Gesamt!G$4:G$1000) -> 0 | H96: =LOOKUP(A96,Gesamt!A$4:A$1000,Gesamt!H$4:H$1000) -> 0 | I96: =LOOKUP(A96,Gesamt!A$4:A$1000,Gesamt!I$4:I$1000) -> 0 | J96: =LOOKUP(A96,Gesamt!A$4:A$1000,Gesamt!J$4:J$1000) -> 0 | K96: =LOOKUP(A96,Gesamt!A$4:A$1000,Gesamt!K$4:K$1000) -> 0 | L96: =LOOKUP(A96,Gesamt!A$4:A$1000,Gesamt!L$4:L$1000) -> 0 | M96: =LOOKUP(A96,Gesamt!A$4:A$1000,Gesamt!M$4:M$1000) -> 0 | N96: =IF(M96>0,M96*-1,-1000) -> -1000 | O96: =IF(M96>0,RANK(N96,N:N),0) -> 0
A97: 789 | B97: =LOOKUP(A97,Gesamt!A$4:A$1000,Gesamt!B$4:B$1000) -> 0 | C97: =LOOKUP(A97,Gesamt!A$4:A$1000,Gesamt!C$4:C$1000) -> 0 | D97: =LOOKUP(A97,Gesamt!A$4:A$1000,Gesamt!D$4:D$1000) -> 0 | E97: =LOOKUP(A97,Gesamt!A$4:A$1000,Gesamt!E$4:E$1000) -> 0 | F97: =LOOKUP(A97,Gesamt!A$4:A$1000,Gesamt!F$4:F$1000) -> 0 | G97: =LOOKUP(A97,Gesamt!A$4:A$1000,Gesamt!G$4:G$1000) -> 0 | H97: =LOOKUP(A97,Gesamt!A$4:A$1000,Gesamt!H$4:H$1000) -> 0 | I97: =LOOKUP(A97,Gesamt!A$4:A$1000,Gesamt!I$4:I$1000) -> 0 | J97: =LOOKUP(A97,Gesamt!A$4:A$1000,Gesamt!J$4:J$1000) -> 0 | K97: =LOOKUP(A97,Gesamt!A$4:A$1000,Gesamt!K$4:K$1000) -> 0 | L97: =LOOKUP(A97,Gesamt!A$4:A$1000,Gesamt!L$4:L$1000) -> 0 | M97: =LOOKUP(A97,Gesamt!A$4:A$1000,Gesamt!M$4:M$1000) -> 0 | N97: =IF(M97>0,M97*-1,-1000) -> -1000 | O97: =IF(M97>0,RANK(N97,N:N),0) -> 0
A98: 790 | B98: =LOOKUP(A98,Gesamt!A$4:A$1000,Gesamt!B$4:B$1000) -> 0 | C98: =LOOKUP(A98,Gesamt!A$4:A$1000,Gesamt!C$4:C$1000) -> 0 | D98: =LOOKUP(A98,Gesamt!A$4:A$1000,Gesamt!D$4:D$1000) -> 0 | E98: =LOOKUP(A98,Gesamt!A$4:A$1000,Gesamt!E$4:E$1000) -> 0 | F98: =LOOKUP(A98,Gesamt!A$4:A$1000,Gesamt!F$4:F$1000) -> 0 | G98: =LOOKUP(A98,Gesamt!A$4:A$1000,Gesamt!G$4:G$1000) -> 0 | H98: =LOOKUP(A98,Gesamt!A$4:A$1000,Gesamt!H$4:H$1000) -> 0 | I98: =LOOKUP(A98,Gesamt!A$4:A$1000,Gesamt!I$4:I$1000) -> 0 | J98: =LOOKUP(A98,Gesamt!A$4:A$1000,Gesamt!J$4:J$1000) -> 0 | K98: =LOOKUP(A98,Gesamt!A$4:A$1000,Gesamt!K$4:K$1000) -> 0 | L98: =LOOKUP(A98,Gesamt!A$4:A$1000,Gesamt!L$4:L$1000) -> 0 | M98: =LOOKUP(A98,Gesamt!A$4:A$1000,Gesamt!M$4:M$1000) -> 0 | N98: =IF(M98>0,M98*-1,-1000) -> -1000 | O98: =IF(M98>0,RANK(N98,N:N),0) -> 0
A99: 791 | B99: =LOOKUP(A99,Gesamt!A$4:A$1000,Gesamt!B$4:B$1000) -> 0 | C99: =LOOKUP(A99,Gesamt!A$4:A$1000,Gesamt!C$4:C$1000) -> 0 | D99: =LOOKUP(A99,Gesamt!A$4:A$1000,Gesamt!D$4:D$1000) -> 0 | E99: =LOOKUP(A99,Gesamt!A$4:A$1000,Gesamt!E$4:E$1000) -> 0 | F99: =LOOKUP(A99,Gesamt!A$4:A$1000,Gesamt!F$4:F$1000) -> 0 | G99: =LOOKUP(A99,Gesamt!A$4:A$1000,Gesamt!G$4:G$1000) -> 0 | H99: =LOOKUP(A99,Gesamt!A$4:A$1000,Gesamt!H$4:H$1000) -> 0 | I99: =LOOKUP(A99,Gesamt!A$4:A$1000,Gesamt!I$4:I$1000) -> 0 | J99: =LOOKUP(A99,Gesamt!A$4:A$1000,Gesamt!J$4:J$1000) -> 0 | K99: =LOOKUP(A99,Gesamt!A$4:A$1000,Gesamt!K$4:K$1000) -> 0 | L99: =LOOKUP(A99,Gesamt!A$4:A$1000,Gesamt!L$4:L$1000) -> 0 | M99: =LOOKUP(A99,Gesamt!A$4:A$1000,Gesamt!M$4:M$1000) -> 0 | N99: =IF(M99>0,M99*-1,-1000) -> -1000 | O99: =IF(M99>0,RANK(N99,N:N),0) -> 0
A100: 792 | B100: =LOOKUP(A100,Gesamt!A$4:A$1000,Gesamt!B$4:B$1000) -> 0 | C100: =LOOKUP(A100,Gesamt!A$4:A$1000,Gesamt!C$4:C$1000) -> 0 | D100: =LOOKUP(A100,Gesamt!A$4:A$1000,Gesamt!D$4:D$1000) -> 0 | E100: =LOOKUP(A100,Gesamt!A$4:A$1000,Gesamt!E$4:E$1000) -> 0 | F100: =LOOKUP(A100,Gesamt!A$4:A$1000,Gesamt!F$4:F$1000) -> 0 | G100: =LOOKUP(A100,Gesamt!A$4:A$1000,Gesamt!G$4:G$1000) -> 0 | H100: =LOOKUP(A100,Gesamt!A$4:A$1000,Gesamt!H$4:H$1000) -> 0 | I100: =LOOKUP(A100,Gesamt!A$4:A$1000,Gesamt!I$4:I$1000) -> 0 | J100: =LOOKUP(A100,Gesamt!A$4:A$1000,Gesamt!J$4:J$1000) -> 0 | K100: =LOOKUP(A100,Gesamt!A$4:A$1000,Gesamt!K$4:K$1000) -> 0 | L100: =LOOKUP(A100,Gesamt!A$4:A$1000,Gesamt!L$4:L$1000) -> 0 | M100: =LOOKUP(A100,Gesamt!A$4:A$1000,Gesamt!M$4:M$1000) -> 0 | N100: =IF(M100>0,M100*-1,-1000) -> -1000 | O100: =IF(M100>0,RANK(N100,N:N),0) -> 0
A101: 793 | B101: =LOOKUP(A101,Gesamt!A$4:A$1000,Gesamt!B$4:B$1000) -> 0 | C101: =LOOKUP(A101,Gesamt!A$4:A$1000,Gesamt!C$4:C$1000) -> 0 | D101: =LOOKUP(A101,Gesamt!A$4:A$1000,Gesamt!D$4:D$1000) -> 0 | E101: =LOOKUP(A101,Gesamt!A$4:A$1000,Gesamt!E$4:E$1000) -> 0 | F101: =LOOKUP(A101,Gesamt!A$4:A$1000,Gesamt!F$4:F$1000) -> 0 | G101: =LOOKUP(A101,Gesamt!A$4:A$1000,Gesamt!G$4:G$1000) -> 0 | H101: =LOOKUP(A101,Gesamt!A$4:A$1000,Gesamt!H$4:H$1000) -> 0 | I101: =LOOKUP(A101,Gesamt!A$4:A$1000,Gesamt!I$4:I$1000) -> 0 | J101: =LOOKUP(A101,Gesamt!A$4:A$1000,Gesamt!J$4:J$1000) -> 0 | K101: =LOOKUP(A101,Gesamt!A$4:A$1000,Gesamt!K$4:K$1000) -> 0 | L101: =LOOKUP(A101,Gesamt!A$4:A$1000,Gesamt!L$4:L$1000) -> 0 | M101: =LOOKUP(A101,Gesamt!A$4:A$1000,Gesamt!M$4:M$1000) -> 0 | N101: =IF(M101>0,M101*-1,-1000) -> -1000 | O101: =IF(M101>0,RANK(N101,N:N),0) -> 0
A102: 794 | B102: =LOOKUP(A102,Gesamt!A$4:A$1000,Gesamt!B$4:B$1000) -> 0 | C102: =LOOKUP(A102,Gesamt!A$4:A$1000,Gesamt!C$4:C$1000) -> 0 | D102: =LOOKUP(A102,Gesamt!A$4:A$1000,Gesamt!D$4:D$1000) -> 0 | E102: =LOOKUP(A102,Gesamt!A$4:A$1000,Gesamt!E$4:E$1000) -> 0 | F102: =LOOKUP(A102,Gesamt!A$4:A$1000,Gesamt!F$4:F$1000) -> 0 | G102: =LOOKUP(A102,Gesamt!A$4:A$1000,Gesamt!G$4:G$1000) -> 0 | H102: =LOOKUP(A102,Gesamt!A$4:A$1000,Gesamt!H$4:H$1000) -> 0 | I102: =LOOKUP(A102,Gesamt!A$4:A$1000,Gesamt!I$4:I$1000) -> 0 | J102: =LOOKUP(A102,Gesamt!A$4:A$1000,Gesamt!J$4:J$1000) -> 0 | K102: =LOOKUP(A102,Gesamt!A$4:A$1000,Gesamt!K$4:K$1000) -> 0 | L102: =LOOKUP(A102,Gesamt!A$4:A$1000,Gesamt!L$4:L$1000) -> 0 | M102: =LOOKUP(A102,Gesamt!A$4:A$1000,Gesamt!M$4:M$1000) -> 0 | N102: =IF(M102>0,M102*-1,-1000) -> -1000 | O102: =IF(M102>0,RANK(N102,N:N),0) -> 0
A103: 795 | B103: =LOOKUP(A103,Gesamt!A$4:A$1000,Gesamt!B$4:B$1000) -> 0 | C103: =LOOKUP(A103,Gesamt!A$4:A$1000,Gesamt!C$4:C$1000) -> 0 | D103: =LOOKUP(A103,Gesamt!A$4:A$1000,Gesamt!D$4:D$1000) -> 0 | E103: =LOOKUP(A103,Gesamt!A$4:A$1000,Gesamt!E$4:E$1000) -> 0 | F103: =LOOKUP(A103,Gesamt!A$4:A$1000,Gesamt!F$4:F$1000) -> 0 | G103: =LOOKUP(A103,Gesamt!A$4:A$1000,Gesamt!G$4:G$1000) -> 0 | H103: =LOOKUP(A103,Gesamt!A$4:A$1000,Gesamt!H$4:H$1000) -> 0 | I103: =LOOKUP(A103,Gesamt!A$4:A$1000,Gesamt!I$4:I$1000) -> 0 | J103: =LOOKUP(A103,Gesamt!A$4:A$1000,Gesamt!J$4:J$1000) -> 0 | K103: =LOOKUP(A103,Gesamt!A$4:A$1000,Gesamt!K$4:K$1000) -> 0 | L103: =LOOKUP(A103,Gesamt!A$4:A$1000,Gesamt!L$4:L$1000) -> 0 | M103: =LOOKUP(A103,Gesamt!A$4:A$1000,Gesamt!M$4:M$1000) -> 0 | N103: =IF(M103>0,M103*-1,-1000) -> -1000 | O103: =IF(M103>0,RANK(N103,N:N),0) -> 0
A104: 796 | B104: =LOOKUP(A104,Gesamt!A$4:A$1000,Gesamt!B$4:B$1000) -> 0 | C104: =LOOKUP(A104,Gesamt!A$4:A$1000,Gesamt!C$4:C$1000) -> 0 | D104: =LOOKUP(A104,Gesamt!A$4:A$1000,Gesamt!D$4:D$1000) -> 0 | E104: =LOOKUP(A104,Gesamt!A$4:A$1000,Gesamt!E$4:E$1000) -> 0 | F104: =LOOKUP(A104,Gesamt!A$4:A$1000,Gesamt!F$4:F$1000) -> 0 | G104: =LOOKUP(A104,Gesamt!A$4:A$1000,Gesamt!G$4:G$1000) -> 0 | H104: =LOOKUP(A104,Gesamt!A$4:A$1000,Gesamt!H$4:H$1000) -> 0 | I104: =LOOKUP(A104,Gesamt!A$4:A$1000,Gesamt!I$4:I$1000) -> 0 | J104: =LOOKUP(A104,Gesamt!A$4:A$1000,Gesamt!J$4:J$1000) -> 0 | K104: =LOOKUP(A104,Gesamt!A$4:A$1000,Gesamt!K$4:K$1000) -> 0 | L104: =LOOKUP(A104,Gesamt!A$4:A$1000,Gesamt!L$4:L$1000) -> 0 | M104: =LOOKUP(A104,Gesamt!A$4:A$1000,Gesamt!M$4:M$1000) -> 0 | N104: =IF(M104>0,M104*-1,-1000) -> -1000 | O104: =IF(M104>0,RANK(N104,N:N),0) -> 0
A105: 797 | B105: =LOOKUP(A105,Gesamt!A$4:A$1000,Gesamt!B$4:B$1000) -> 0 | C105: =LOOKUP(A105,Gesamt!A$4:A$1000,Gesamt!C$4:C$1000) -> 0 | D105: =LOOKUP(A105,Gesamt!A$4:A$1000,Gesamt!D$4:D$1000) -> 0 | E105: =LOOKUP(A105,Gesamt!A$4:A$1000,Gesamt!E$4:E$1000) -> 0 | F105: =LOOKUP(A105,Gesamt!A$4:A$1000,Gesamt!F$4:F$1000) -> 0 | G105: =LOOKUP(A105,Gesamt!A$4:A$1000,Gesamt!G$4:G$1000) -> 0 | H105: =LOOKUP(A105,Gesamt!A$4:A$1000,Gesamt!H$4:H$1000) -> 0 | I105: =LOOKUP(A105,Gesamt!A$4:A$1000,Gesamt!I$4:I$1000) -> 0 | J105: =LOOKUP(A105,Gesamt!A$4:A$1000,Gesamt!J$4:J$1000) -> 0 | K105: =LOOKUP(A105,Gesamt!A$4:A$1000,Gesamt!K$4:K$1000) -> 0 | L105: =LOOKUP(A105,Gesamt!A$4:A$1000,Gesamt!L$4:L$1000) -> 0 | M105: =LOOKUP(A105,Gesamt!A$4:A$1000,Gesamt!M$4:M$1000) -> 0 | N105: =IF(M105>0,M105*-1,-1000) -> -1000 | O105: =IF(M105>0,RANK(N105,N:N),0) -> 0
A106: 798 | B106: =LOOKUP(A106,Gesamt!A$4:A$1000,Gesamt!B$4:B$1000) -> 0 | C106: =LOOKUP(A106,Gesamt!A$4:A$1000,Gesamt!C$4:C$1000) -> 0 | D106: =LOOKUP(A106,Gesamt!A$4:A$1000,Gesamt!D$4:D$1000) -> 0 | E106: =LOOKUP(A106,Gesamt!A$4:A$1000,Gesamt!E$4:E$1000) -> 0 | F106: =LOOKUP(A106,Gesamt!A$4:A$1000,Gesamt!F$4:F$1000) -> 0 | G106: =LOOKUP(A106,Gesamt!A$4:A$1000,Gesamt!G$4:G$1000) -> 0 | H106: =LOOKUP(A106,Gesamt!A$4:A$1000,Gesamt!H$4:H$1000) -> 0 | I106: =LOOKUP(A106,Gesamt!A$4:A$1000,Gesamt!I$4:I$1000) -> 0 | J106: =LOOKUP(A106,Gesamt!A$4:A$1000,Gesamt!J$4:J$1000) -> 0 | K106: =LOOKUP(A106,Gesamt!A$4:A$1000,Gesamt!K$4:K$1000) -> 0 | L106: =LOOKUP(A106,Gesamt!A$4:A$1000,Gesamt!L$4:L$1000) -> 0 | M106: =LOOKUP(A106,Gesamt!A$4:A$1000,Gesamt!M$4:M$1000) -> 0 | N106: =IF(M106>0,M106*-1,-1000) -> -1000 | O106: =IF(M106>0,RANK(N106,N:N),0) -> 0
A107: 799 | B107: =LOOKUP(A107,Gesamt!A$4:A$1000,Gesamt!B$4:B$1000) -> 0 | C107: =LOOKUP(A107,Gesamt!A$4:A$1000,Gesamt!C$4:C$1000) -> 0 | D107: =LOOKUP(A107,Gesamt!A$4:A$1000,Gesamt!D$4:D$1000) -> 0 | E107: =LOOKUP(A107,Gesamt!A$4:A$1000,Gesamt!E$4:E$1000) -> 0 | F107: =LOOKUP(A107,Gesamt!A$4:A$1000,Gesamt!F$4:F$1000) -> 0 | G107: =LOOKUP(A107,Gesamt!A$4:A$1000,Gesamt!G$4:G$1000) -> 0 | H107: =LOOKUP(A107,Gesamt!A$4:A$1000,Gesamt!H$4:H$1000) -> 0 | I107: =LOOKUP(A107,Gesamt!A$4:A$1000,Gesamt!I$4:I$1000) -> 0 | J107: =LOOKUP(A107,Gesamt!A$4:A$1000,Gesamt!J$4:J$1000) -> 0 | K107: =LOOKUP(A107,Gesamt!A$4:A$1000,Gesamt!K$4:K$1000) -> 0 | L107: =LOOKUP(A107,Gesamt!A$4:A$1000,Gesamt!L$4:L$1000) -> 0 | M107: =LOOKUP(A107,Gesamt!A$4:A$1000,Gesamt!M$4:M$1000) -> 0 | N107: =IF(M107>0,M107*-1,-1000) -> -1000 | O107: =IF(M107>0,RANK(N107,N:N),0) -> 0

Sheet ErgebnisEndlauf
A1: 21.08.2022 DSKD Derby Seppenrade
A2: Endlauf JUNIOR - Klasse
G4: =Gesamt!G2 -> 1 | H4: =Gesamt!H2 -> 1 | I4: =Gesamt!I2 -> 1 | J4: =Gesamt!J2 -> 1 | K4: =Gesamt!K2 -> 1 | L4: =Gesamt!L2 -> 1 | M4: Blatt ist schreibgeschützt
G5: Wird der Lauf gewertet? dann 0 oder 1
A7: Start Nummer | B7: Gruppe | C7: NRW | D7: Name | E7: Vorname | F7: Verein | G7: Lauf 1 | H7: Lauf 2 | I7: Lauf 3 | J7: Lauf 4 | K7: Lauf 5 | L7: Lauf 6 | M7: Summe der gewerteten Läufe | O7: Platz | P7: Urkunde
A9: 101 | B9: =LOOKUP(A9,Gesamt!A$4:A$1000,Gesamt!B$4:B$1000) -> JUN | C9: =LOOKUP(A9,Gesamt!A$4:A$1000,Gesamt!C$4:C$1000) -> 0 | D9: =LOOKUP(A9,Gesamt!A$4:A$1000,Gesamt!D$4:D$1000) -> Thiemann | E9: =LOOKUP(A9,Gesamt!A$4:A$1000,Gesamt!E$4:E$1000) -> Jela | F9: =LOOKUP(A9,Gesamt!A$4:A$1000,Gesamt!F$4:F$1000) -> Stromberg | G9: =LOOKUP(A9,Gesamt!A$4:A$1000,Gesamt!N$4:N$1000) -> 0 | H9: =LOOKUP(A9,Gesamt!A$4:A$1000,Gesamt!O$4:O$1000) -> 0 | I9: =LOOKUP(A9,Gesamt!A$4:A$1000,Gesamt!P$4:P$1000) -> 0 | J9: =LOOKUP(A9,Gesamt!A$4:A$1000,Gesamt!Q$4:Q$1000) -> 0 | K9: =LOOKUP(A9,Gesamt!A$4:A$1000,Gesamt!R$4:R$1000) -> 0 | L9: =LOOKUP(A9,Gesamt!A$4:A$1000,Gesamt!S$4:S$1000) -> 0 | M9: =LOOKUP(A9,Gesamt!A$4:A$1000,Gesamt!T$4:T$1000) -> 0 | N9: =IF(M9>0,M9*-1,-1000) -> -1000 | O9: =IF(M9>0,RANK(N9,N:N),0) -> 0
A10: 102 | B10: =LOOKUP(A10,Gesamt!A$4:A$1000,Gesamt!B$4:B$1000) -> JUN | C10: =LOOKUP(A10,Gesamt!A$4:A$1000,Gesamt!C$4:C$1000) -> 0 | D10: =LOOKUP(A10,Gesamt!A$4:A$1000,Gesamt!D$4:D$1000) -> Obermeyer | E10: =LOOKUP(A10,Gesamt!A$4:A$1000,Gesamt!E$4:E$1000) -> Theo | F10: =LOOKUP(A10,Gesamt!A$4:A$1000,Gesamt!F$4:F$1000) -> Mettingen | G10: =LOOKUP(A10,Gesamt!A$4:A$1000,Gesamt!N$4:N$1000) -> 0 | H10: =LOOKUP(A10,Gesamt!A$4:A$1000,Gesamt!O$4:O$1000) -> 0 | I10: =LOOKUP(A10,Gesamt!A$4:A$1000,Gesamt!P$4:P$1000) -> 0 | J10: =LOOKUP(A10,Gesamt!A$4:A$1000,Gesamt!Q$4:Q$1000) -> 0 | K10: =LOOKUP(A10,Gesamt!A$4:A$1000,Gesamt!R$4:R$1000) -> 0 | L10: =LOOKUP(A10,Gesamt!A$4:A$1000,Gesamt!S$4:S$1000) -> 0 | M10: =LOOKUP(A10,Gesamt!A$4:A$1000,Gesamt!T$4:T$1000) -> 0 | N10: -1000 | O10: 0
A11: 103 | B11: =LOOKUP(A11,Gesamt!A$4:A$1000,Gesamt!B$4:B$1000) -> JUN | C11: =LOOKUP(A11,Gesamt!A$4:A$1000,Gesamt!C$4:C$1000) -> 0 | D11: =LOOKUP(A11,Gesamt!A$4:A$1000,Gesamt!D$4:D$1000) -> Farwig | E11: =LOOKUP(A11,Gesamt!A$4:A$1000,Gesamt!E$4:E$1000) -> Alexander | F11: =LOOKUP(A11,Gesamt!A$4:A$1000,Gesamt!F$4:F$1000) -> Mettingen | G11: =LOOKUP(A11,Gesamt!A$4:A$1000,Gesamt!N$4:N$1000) -> 0 | H11: =LOOKUP(A11,Gesamt!A$4:A$1000,Gesamt!O$4:O$1000) -> 0 | I11: =LOOKUP(A11,Gesamt!A$4:A$1000,Gesamt!P$4:P$1000) -> 0 | J11: =LOOKUP(A11,Gesamt!A$4:A$1000,Gesamt!Q$4:Q$1000) -> 0 | K11: =LOOKUP(A11,Gesamt!A$4:A$1000,Gesamt!R$4:R$1000) -> 0 | L11: =LOOKUP(A11,Gesamt!A$4:A$1000,Gesamt!S$4:S$1000) -> 0 | M11: =LOOKUP(A11,Gesamt!A$4:A$1000,Gesamt!T$4:T$1000) -> 0 | N11: -1000 | O11: 0
A12: 104 | B12: =LOOKUP(A12,Gesamt!A$4:A$1000,Gesamt!B$4:B$1000) -> JUN | C12: =LOOKUP(A12,Gesamt!A$4:A$1000,Gesamt!C$4:C$1000) -> 0 | D12: =LOOKUP(A12,Gesamt!A$4:A$1000,Gesamt!D$4:D$1000) -> Rickard | E12: =LOOKUP(A12,Gesamt!A$4:A$1000,Gesamt!E$4:E$1000) -> Julia | F12: =LOOKUP(A12,Gesamt!A$4:A$1000,Gesamt!F$4:F$1000) -> Billerbeck | G12: =LOOKUP(A12,Gesamt!A$4:A$1000,Gesamt!N$4:N$1000) -> 0 | H12: =LOOKUP(A12,Gesamt!A$4:A$1000,Gesamt!O$4:O$1000) -> 0 | I12: =LOOKUP(A12,Gesamt!A$4:A$1000,Gesamt!P$4:P$1000) -> 0 | J12: =LOOKUP(A12,Gesamt!A$4:A$1000,Gesamt!Q$4:Q$1000) -> 0 | K12: =LOOKUP(A12,Gesamt!A$4:A$1000,Gesamt!R$4:R$1000) -> 0 | L12: =LOOKUP(A12,Gesamt!A$4:A$1000,Gesamt!S$4:S$1000) -> 0 | M12: =LOOKUP(A12,Gesamt!A$4:A$1000,Gesamt!T$4:T$1000) -> 0 | N12: -1000 | O12: 0
A13: 105 | B13: =LOOKUP(A13,Gesamt!A$4:A$1000,Gesamt!B$4:B$1000) -> JUN | C13: =LOOKUP(A13,Gesamt!A$4:A$1000,Gesamt!C$4:C$1000) -> 0 | D13: =LOOKUP(A13,Gesamt!A$4:A$1000,Gesamt!D$4:D$1000) -> Averkamp | E13: =LOOKUP(A13,Gesamt!A$4:A$1000,Gesamt!E$4:E$1000) -> Milan | F13: =LOOKUP(A13,Gesamt!A$4:A$1000,Gesamt!F$4:F$1000) -> Billerbeck | G13: =LOOKUP(A13,Gesamt!A$4:A$1000,Gesamt!N$4:N$1000) -> 0 | H13: =LOOKUP(A13,Gesamt!A$4:A$1000,Gesamt!O$4:O$1000) -> 0 | I13: =LOOKUP(A13,Gesamt!A$4:A$1000,Gesamt!P$4:P$1000) -> 0 | J13: =LOOKUP(A13,Gesamt!A$4:A$1000,Gesamt!Q$4:Q$1000) -> 0 | K13: =LOOKUP(A13,Gesamt!A$4:A$1000,Gesamt!R$4:R$1000) -> 0 | L13: =LOOKUP(A13,Gesamt!A$4:A$1000,Gesamt!S$4:S$1000) -> 0 | M13: =LOOKUP(A13,Gesamt!A$4:A$1000,Gesamt!T$4:T$1000) -> 0 | N13: -1000 | O13: 0
A14: 106 | B14: =LOOKUP(A14,Gesamt!A$4:A$1000,Gesamt!B$4:B$1000) -> JUN | C14: =LOOKUP(A14,Gesamt!A$4:A$1000,Gesamt!C$4:C$1000) -> 0 | D14: =LOOKUP(A14,Gesamt!A$4:A$1000,Gesamt!D$4:D$1000) -> Lange | E14: =LOOKUP(A14,Gesamt!A$4:A$1000,Gesamt!E$4:E$1000) -> Peter | F14: =LOOKUP(A14,Gesamt!A$4:A$1000,Gesamt!F$4:F$1000) -> Mettingen | G14: =LOOKUP(A14,Gesamt!A$4:A$1000,Gesamt!N$4:N$1000) -> 0 | H14: =LOOKUP(A14,Gesamt!A$4:A$1000,Gesamt!O$4:O$1000) -> 0 | I14: =LOOKUP(A14,Gesamt!A$4:A$1000,Gesamt!P$4:P$1000) -> 0 | J14: =LOOKUP(A14,Gesamt!A$4:A$1000,Gesamt!Q$4:Q$1000) -> 0 | K14: =LOOKUP(A14,Gesamt!A$4:A$1000,Gesamt!R$4:R$1000) -> 0 | L14: =LOOKUP(A14,Gesamt!A$4:A$1000,Gesamt!S$4:S$1000) -> 0 | M14: =LOOKUP(A14,Gesamt!A$4:A$1000,Gesamt!T$4:T$1000) -> 0 | N14: -1000 | O14: 0
A15: 107 | B15: =LOOKUP(A15,Gesamt!A$4:A$1000,Gesamt!B$4:B$1000) -> JUN | C15: =LOOKUP(A15,Gesamt!A$4:A$1000,Gesamt!C$4:C$1000) -> 0 | D15: =LOOKUP(A15,Gesamt!A$4:A$1000,Gesamt!D$4:D$1000) -> Teeken | E15: =LOOKUP(A15,Gesamt!A$4:A$1000,Gesamt!E$4:E$1000) -> Jorik | F15: =LOOKUP(A15,Gesamt!A$4:A$1000,Gesamt!F$4:F$1000) -> Mettingen | G15: =LOOKUP(A15,Gesamt!A$4:A$1000,Gesamt!N$4:N$1000) -> 0 | H15: =LOOKUP(A15,Gesamt!A$4:A$1000,Gesamt!O$4:O$1000) -> 0 | I15: =LOOKUP(A15,Gesamt!A$4:A$1000,Gesamt!P$4:P$1000) -> 0 | J15: =LOOKUP(A15,Gesamt!A$4:A$1000,Gesamt!Q$4:Q$1000) -> 0 | K15: =LOOKUP(A15,Gesamt!A$4:A$1000,Gesamt!R$4:R$1000) -> 0 | L15: =LOOKUP(A15,Gesamt!A$4:A$1000,Gesamt!S$4:S$1000) -> 0 | M15: =LOOKUP(A15,Gesamt!A$4:A$1000,Gesamt!T$4:T$1000) -> 0 | N15: -1000 | O15: 0
A16: 108 | B16: =LOOKUP(A16,Gesamt!A$4:A$1000,Gesamt!B$4:B$1000) -> JUN | C16: =LOOKUP(A16,Gesamt!A$4:A$1000,Gesamt!C$4:C$1000) -> 0 | D16: =LOOKUP(A16,Gesamt!A$4:A$1000,Gesamt!D$4:D$1000) -> Bednarski | E16: =LOOKUP(A16,Gesamt!A$4:A$1000,Gesamt!E$4:E$1000) -> Frederik | F16: =LOOKUP(A16,Gesamt!A$4:A$1000,Gesamt!F$4:F$1000) -> Mettingen | G16: =LOOKUP(A16,Gesamt!A$4:A$1000,Gesamt!N$4:N$1000) -> 0 | H16: =LOOKUP(A16,Gesamt!A$4:A$1000,Gesamt!O$4:O$1000) -> 0 | I16: =LOOKUP(A16,Gesamt!A$4:A$1000,Gesamt!P$4:P$1000) -> 0 | J16: =LOOKUP(A16,Gesamt!A$4:A$1000,Gesamt!Q$4:Q$1000) -> 0 | K16: =LOOKUP(A16,Gesamt!A$4:A$1000,Gesamt!R$4:R$1000) -> 0 | L16: =LOOKUP(A16,Gesamt!A$4:A$1000,Gesamt!S$4:S$1000) -> 0 | M16: =LOOKUP(A16,Gesamt!A$4:A$1000,Gesamt!T$4:T$1000) -> 0 | N16: -1000 | O16: 0
A17: 109 | B17: =LOOKUP(A17,Gesamt!A$4:A$1000,Gesamt!B$4:B$1000) -> JUN | C17: =LOOKUP(A17,Gesamt!A$4:A$1000,Gesamt!C$4:C$1000) -> 0 | D17: =LOOKUP(A17,Gesamt!A$4:A$1000,Gesamt!D$4:D$1000) -> Lüttmann | E17: =LOOKUP(A17,Gesamt!A$4:A$1000,Gesamt!E$4:E$1000) -> Merle | F17: =LOOKUP(A17,Gesamt!A$4:A$1000,Gesamt!F$4:F$1000) -> Mettingen | G17: =LOOKUP(A17,Gesamt!A$4:A$1000,Gesamt!N$4:N$1000) -> 0 | H17: =LOOKUP(A17,Gesamt!A$4:A$1000,Gesamt!O$4:O$1000) -> 0 | I17: =LOOKUP(A17,Gesamt!A$4:A$1000,Gesamt!P$4:P$1000) -> 0 | J17: =LOOKUP(A17,Gesamt!A$4:A$1000,Gesamt!Q$4:Q$1000) -> 0 | K17: =LOOKUP(A17,Gesamt!A$4:A$1000,Gesamt!R$4:R$1000) -> 0 | L17: =LOOKUP(A17,Gesamt!A$4:A$1000,Gesamt!S$4:S$1000) -> 0 | M17: =LOOKUP(A17,Gesamt!A$4:A$1000,Gesamt!T$4:T$1000) -> 0 | N17: -1000 | O17: 0
A18: 110 | B18: =LOOKUP(A18,Gesamt!A$4:A$1000,Gesamt!B$4:B$1000) -> JUN | C18: =LOOKUP(A18,Gesamt!A$4:A$1000,Gesamt!C$4:C$1000) -> 0 | D18: =LOOKUP(A18,Gesamt!A$4:A$1000,Gesamt!D$4:D$1000) -> Bauer | E18: =LOOKUP(A18,Gesamt!A$4:A$1000,Gesamt!E$4:E$1000) -> Bella | F18: =LOOKUP(A18,Gesamt!A$4:A$1000,Gesamt!F$4:F$1000) -> Stromberg | G18: =LOOKUP(A18,Gesamt!A$4:A$1000,Gesamt!N$4:N$1000) -> 0 | H18: =LOOKUP(A18,Gesamt!A$4:A$1000,Gesamt!O$4:O$1000) -> 0 | I18: =LOOKUP(A18,Gesamt!A$4:A$1000,Gesamt!P$4:P$1000) -> 0 | J18: =LOOKUP(A18,Gesamt!A$4:A$1000,Gesamt!Q$4:Q$1000) -> 0 | K18: =LOOKUP(A18,Gesamt!A$4:A$1000,Gesamt!R$4:R$1000) -> 0 | L18: =LOOKUP(A18,Gesamt!A$4:A$1000,Gesamt!S$4:S$1000) -> 0 | M18: =LOOKUP(A18,Gesamt!A$4:A$1000,Gesamt!T$4:T$1000) -> 0 | N18: -1000 | O18: 0
A19: 111 | B19: =LOOKUP(A19,Gesamt!A$4:A$1000,Gesamt!B$4:B$1000) -> JUN | C19: =LOOKUP(A19,Gesamt!A$4:A$1000,Gesamt!C$4:C$1000) -> 0 | D19: =LOOKUP(A19,Gesamt!A$4:A$1000,Gesamt!D$4:D$1000) -> Lange | E19: =LOOKUP(A19,Gesamt!A$4:A$1000,Gesamt!E$4:E$1000) -> Helene | F19: =LOOKUP(A19,Gesamt!A$4:A$1000,Gesamt!F$4:F$1000) -> Mettingen | G19: =LOOKUP(A19,Gesamt!A$4:A$1000,Gesamt!N$4:N$1000) -> 0 | H19: =LOOKUP(A19,Gesamt!A$4:A$1000,Gesamt!O$4:O$1000) -> 0 | I19: =LOOKUP(A19,Gesamt!A$4:A$1000,Gesamt!P$4:P$1000) -> 0 | J19: =LOOKUP(A19,Gesamt!A$4:A$1000,Gesamt!Q$4:Q$1000) -> 0 | K19: =LOOKUP(A19,Gesamt!A$4:A$1000,Gesamt!R$4:R$1000) -> 0 | L19: =LOOKUP(A19,Gesamt!A$4:A$1000,Gesamt!S$4:S$1000) -> 0 | M19: =LOOKUP(A19,Gesamt!A$4:A$1000,Gesamt!T$4:T$1000) -> 0 | N19: -1000 | O19: 0
A20: 112 | B20: =LOOKUP(A20,Gesamt!A$4:A$1000,Gesamt!B$4:B$1000) -> JUN | C20: =LOOKUP(A20,Gesamt!A$4:A$1000,Gesamt!C$4:C$1000) -> 0 | D20: =LOOKUP(A20,Gesamt!A$4:A$1000,Gesamt!D$4:D$1000) -> Teeken | E20: =LOOKUP(A20,Gesamt!A$4:A$1000,Gesamt!E$4:E$1000) -> Lasse | F20: =LOOKUP(A20,Gesamt!A$4:A$1000,Gesamt!F$4:F$1000) -> Mettingen | G20: =LOOKUP(A20,Gesamt!A$4:A$1000,Gesamt!N$4:N$1000) -> 0 | H20: =LOOKUP(A20,Gesamt!A$4:A$1000,Gesamt!O$4:O$1000) -> 0 | I20: =LOOKUP(A20,Gesamt!A$4:A$1000,Gesamt!P$4:P$1000) -> 0 | J20: =LOOKUP(A20,Gesamt!A$4:A$1000,Gesamt!Q$4:Q$1000) -> 0 | K20: =LOOKUP(A20,Gesamt!A$4:A$1000,Gesamt!R$4:R$1000) -> 0 | L20: =LOOKUP(A20,Gesamt!A$4:A$1000,Gesamt!S$4:S$1000) -> 0 | M20: =LOOKUP(A20,Gesamt!A$4:A$1000,Gesamt!T$4:T$1000) -> 0 | N20: -1000 | O20: 0
A21: 113 | B21: =LOOKUP(A21,Gesamt!A$4:A$1000,Gesamt!B$4:B$1000) -> JUN | C21: =LOOKUP(A21,Gesamt!A$4:A$1000,Gesamt!C$4:C$1000) -> 0 | D21: =LOOKUP(A21,Gesamt!A$4:A$1000,Gesamt!D$4:D$1000) -> Runde | E21: =LOOKUP(A21,Gesamt!A$4:A$1000,Gesamt!E$4:E$1000) -> Helga | F21: =LOOKUP(A21,Gesamt!A$4:A$1000,Gesamt!F$4:F$1000) -> Mettingen | G21: =LOOKUP(A21,Gesamt!A$4:A$1000,Gesamt!N$4:N$1000) -> 0 | H21: =LOOKUP(A21,Gesamt!A$4:A$1000,Gesamt!O$4:O$1000) -> 0 | I21: =LOOKUP(A21,Gesamt!A$4:A$1000,Gesamt!P$4:P$1000) -> 0 | J21: =LOOKUP(A21,Gesamt!A$4:A$1000,Gesamt!Q$4:Q$1000) -> 0 | K21: =LOOKUP(A21,Gesamt!A$4:A$1000,Gesamt!R$4:R$1000) -> 0 | L21: =LOOKUP(A21,Gesamt!A$4:A$1000,Gesamt!S$4:S$1000) -> 0 | M21: =LOOKUP(A21,Gesamt!A$4:A$1000,Gesamt!T$4:T$1000) -> 0 | N21: -1000 | O21: 0
A22: 114 | B22: =LOOKUP(A22,Gesamt!A$4:A$1000,Gesamt!B$4:B$1000) -> JUN | C22: =LOOKUP(A22,Gesamt!A$4:A$1000,Gesamt!C$4:C$1000) -> 0 | D22: =LOOKUP(A22,Gesamt!A$4:A$1000,Gesamt!D$4:D$1000) -> Wolff | E22: =LOOKUP(A22,Gesamt!A$4:A$1000,Gesamt!E$4:E$1000) -> Sonja | F22: =LOOKUP(A22,Gesamt!A$4:A$1000,Gesamt!F$4:F$1000) -> Overath | G22: =LOOKUP(A22,Gesamt!A$4:A$1000,Gesamt!N$4:N$1000) -> 0 | H22: =LOOKUP(A22,Gesamt!A$4:A$1000,Gesamt!O$4:O$1000) -> 0 | I22: =LOOKUP(A22,Gesamt!A$4:A$1000,Gesamt!P$4:P$1000) -> 0 | J22: =LOOKUP(A22,Gesamt!A$4:A$1000,Gesamt!Q$4:Q$1000) -> 0 | K22: =LOOKUP(A22,Gesamt!A$4:A$1000,Gesamt!R$4:R$1000) -> 0 | L22: =LOOKUP(A22,Gesamt!A$4:A$1000,Gesamt!S$4:S$1000) -> 0 | M22: =LOOKUP(A22,Gesamt!A$4:A$1000,Gesamt!T$4:T$1000) -> 0 | N22: -1000 | O22: 0
A23: 115 | B23: =LOOKUP(A23,Gesamt!A$4:A$1000,Gesamt!B$4:B$1000) -> JUN | C23: =LOOKUP(A23,Gesamt!A$4:A$1000,Gesamt!C$4:C$1000) -> 0 | D23: =LOOKUP(A23,Gesamt!A$4:A$1000,Gesamt!D$4:D$1000) -> Schröder | E23: =LOOKUP(A23,Gesamt!A$4:A$1000,Gesamt!E$4:E$1000) -> Alina | F23: =LOOKUP(A23,Gesamt!A$4:A$1000,Gesamt!F$4:F$1000) -> Billerbeck | G23: =LOOKUP(A23,Gesamt!A$4:A$1000,Gesamt!N$4:N$1000) -> 0 | H23: =LOOKUP(A23,Gesamt!A$4:A$1000,Gesamt!O$4:O$1000) -> 0 | I23: =LOOKUP(A23,Gesamt!A$4:A$1000,Gesamt!P$4:P$1000) -> 0 | J23: =LOOKUP(A23,Gesamt!A$4:A$1000,Gesamt!Q$4:Q$1000) -> 0 | K23: =LOOKUP(A23,Gesamt!A$4:A$1000,Gesamt!R$4:R$1000) -> 0 | L23: =LOOKUP(A23,Gesamt!A$4:A$1000,Gesamt!S$4:S$1000) -> 0 | M23: =LOOKUP(A23,Gesamt!A$4:A$1000,Gesamt!T$4:T$1000) -> 0 | N23: -1000 | O23: 0
A24: 116 | B24: =LOOKUP(A24,Gesamt!A$4:A$1000,Gesamt!B$4:B$1000) -> JUN | C24: =LOOKUP(A24,Gesamt!A$4:A$1000,Gesamt!C$4:C$1000) -> 0 | D24: =LOOKUP(A24,Gesamt!A$4:A$1000,Gesamt!D$4:D$1000) -> Tzschoekel | E24: =LOOKUP(A24,Gesamt!A$4:A$1000,Gesamt!E$4:E$1000) -> Brian | F24: =LOOKUP(A24,Gesamt!A$4:A$1000,Gesamt!F$4:F$1000) -> Mettingen | G24: =LOOKUP(A24,Gesamt!A$4:A$1000,Gesamt!N$4:N$1000) -> 0 | H24: =LOOKUP(A24,Gesamt!A$4:A$1000,Gesamt!O$4:O$1000) -> 0 | I24: =LOOKUP(A24,Gesamt!A$4:A$1000,Gesamt!P$4:P$1000) -> 0 | J24: =LOOKUP(A24,Gesamt!A$4:A$1000,Gesamt!Q$4:Q$1000) -> 0 | K24: =LOOKUP(A24,Gesamt!A$4:A$1000,Gesamt!R$4:R$1000) -> 0 | L24: =LOOKUP(A24,Gesamt!A$4:A$1000,Gesamt!S$4:S$1000) -> 0 | M24: =LOOKUP(A24,Gesamt!A$4:A$1000,Gesamt!T$4:T$1000) -> 0 | N24: -1000 | O24: 0
A25: 117 | B25: =LOOKUP(A25,Gesamt!A$4:A$1000,Gesamt!B$4:B$1000) -> JUN | C25: =LOOKUP(A25,Gesamt!A$4:A$1000,Gesamt!C$4:C$1000) -> 0 | D25: =LOOKUP(A25,Gesamt!A$4:A$1000,Gesamt!D$4:D$1000) -> Tzschoekel | E25: =LOOKUP(A25,Gesamt!A$4:A$1000,Gesamt!E$4:E$1000) -> Jolina | F25: =LOOKUP(A25,Gesamt!A$4:A$1000,Gesamt!F$4:F$1000) -> Mettingen | G25: =LOOKUP(A25,Gesamt!A$4:A$1000,Gesamt!N$4:N$1000) -> 0 | H25: =LOOKUP(A25,Gesamt!A$4:A$1000,Gesamt!O$4:O$1000) -> 0 | I25: =LOOKUP(A25,Gesamt!A$4:A$1000,Gesamt!P$4:P$1000) -> 0 | J25: =LOOKUP(A25,Gesamt!A$4:A$1000,Gesamt!Q$4:Q$1000) -> 0 | K25: =LOOKUP(A25,Gesamt!A$4:A$1000,Gesamt!R$4:R$1000) -> 0 | L25: =LOOKUP(A25,Gesamt!A$4:A$1000,Gesamt!S$4:S$1000) -> 0 | M25: =LOOKUP(A25,Gesamt!A$4:A$1000,Gesamt!T$4:T$1000) -> 0 | N25: -1000 | O25: 0
A26: 118 | B26: =LOOKUP(A26,Gesamt!A$4:A$1000,Gesamt!B$4:B$1000) -> JUN | C26: =LOOKUP(A26,Gesamt!A$4:A$1000,Gesamt!C$4:C$1000) -> 0 | D26: =LOOKUP(A26,Gesamt!A$4:A$1000,Gesamt!D$4:D$1000) -> Allendorf | E26: =LOOKUP(A26,Gesamt!A$4:A$1000,Gesamt!E$4:E$1000) -> Lucie | F26: =LOOKUP(A26,Gesamt!A$4:A$1000,Gesamt!F$4:F$1000) -> Billerbeck | G26: =LOOKUP(A26,Gesamt!A$4:A$1000,Gesamt!N$4:N$1000) -> 0 | H26: =LOOKUP(A26,Gesamt!A$4:A$1000,Gesamt!O$4:O$1000) -> 0 | I26: =LOOKUP(A26,Gesamt!A$4:A$1000,Gesamt!P$4:P$1000) -> 0 | J26: =LOOKUP(A26,Gesamt!A$4:A$1000,Gesamt!Q$4:Q$1000) -> 0 | K26: =LOOKUP(A26,Gesamt!A$4:A$1000,Gesamt!R$4:R$1000) -> 0 | L26: =LOOKUP(A26,Gesamt!A$4:A$1000,Gesamt!S$4:S$1000) -> 0 | M26: =LOOKUP(A26,Gesamt!A$4:A$1000,Gesamt!T$4:T$1000) -> 0 | N26: -1000 | O26: 0
A27: 119 | B27: =LOOKUP(A27,Gesamt!A$4:A$1000,Gesamt!B$4:B$1000) -> JUN | C27: =LOOKUP(A27,Gesamt!A$4:A$1000,Gesamt!C$4:C$1000) -> 0 | D27: =LOOKUP(A27,Gesamt!A$4:A$1000,Gesamt!D$4:D$1000) -> Löher | E27: =LOOKUP(A27,Gesamt!A$4:A$1000,Gesamt!E$4:E$1000) -> Sören | F27: =LOOKUP(A27,Gesamt!A$4:A$1000,Gesamt!F$4:F$1000) -> Stromberg | G27: =LOOKUP(A27,Gesamt!A$4:A$1000,Gesamt!N$4:N$1000) -> 0 | H27: =LOOKUP(A27,Gesamt!A$4:A$1000,Gesamt!O$4:O$1000) -> 0 | I27: =LOOKUP(A27,Gesamt!A$4:A$1000,Gesamt!P$4:P$1000) -> 0 | J27: =LOOKUP(A27,Gesamt!A$4:A$1000,Gesamt!Q$4:Q$1000) -> 0 | K27: =LOOKUP(A27,Gesamt!A$4:A$1000,Gesamt!R$4:R$1000) -> 0 | L27: =LOOKUP(A27,Gesamt!A$4:A$1000,Gesamt!S$4:S$1000) -> 0 | M27: =LOOKUP(A27,Gesamt!A$4:A$1000,Gesamt!T$4:T$1000) -> 0 | N27: -1000 | O27: 0
A28: 120 | B28: =LOOKUP(A28,Gesamt!A$4:A$1000,Gesamt!B$4:B$1000) -> JUN | C28: =LOOKUP(A28,Gesamt!A$4:A$1000,Gesamt!C$4:C$1000) -> 0 | D28: =LOOKUP(A28,Gesamt!A$4:A$1000,Gesamt!D$4:D$1000) -> Suthe | E28: =LOOKUP(A28,Gesamt!A$4:A$1000,Gesamt!E$4:E$1000) -> Phil | F28: =LOOKUP(A28,Gesamt!A$4:A$1000,Gesamt!F$4:F$1000) -> Mettingen | G28: =LOOKUP(A28,Gesamt!A$4:A$1000,Gesamt!N$4:N$1000) -> 0 | H28: =LOOKUP(A28,Gesamt!A$4:A$1000,Gesamt!O$4:O$1000) -> 0 | I28: =LOOKUP(A28,Gesamt!A$4:A$1000,Gesamt!P$4:P$1000) -> 0 | J28: =LOOKUP(A28,Gesamt!A$4:A$1000,Gesamt!Q$4:Q$1000) -> 0 | K28: =LOOKUP(A28,Gesamt!A$4:A$1000,Gesamt!R$4:R$1000) -> 0 | L28: =LOOKUP(A28,Gesamt!A$4:A$1000,Gesamt!S$4:S$1000) -> 0 | M28: =LOOKUP(A28,Gesamt!A$4:A$1000,Gesamt!T$4:T$1000) -> 0 | N28: -1000 | O28: 0
A29: 121 | B29: =LOOKUP(A29,Gesamt!A$4:A$1000,Gesamt!B$4:B$1000) -> JUN | C29: =LOOKUP(A29,Gesamt!A$4:A$1000,Gesamt!C$4:C$1000) -> 0 | D29: =LOOKUP(A29,Gesamt!A$4:A$1000,Gesamt!D$4:D$1000) -> Teeken | E29: =LOOKUP(A29,Gesamt!A$4:A$1000,Gesamt!E$4:E$1000) -> Lukas | F29: =LOOKUP(A29,Gesamt!A$4:A$1000,Gesamt!F$4:F$1000) -> Mettingen | G29: =LOOKUP(A29,Gesamt!A$4:A$1000,Gesamt!N$4:N$1000) -> 0 | H29: =LOOKUP(A29,Gesamt!A$4:A$1000,Gesamt!O$4:O$1000) -> 0 | I29: =LOOKUP(A29,Gesamt!A$4:A$1000,Gesamt!P$4:P$1000) -> 0 | J29: =LOOKUP(A29,Gesamt!A$4:A$1000,Gesamt!Q$4:Q$1000) -> 0 | K29: =LOOKUP(A29,Gesamt!A$4:A$1000,Gesamt!R$4:R$1000) -> 0 | L29: =LOOKUP(A29,Gesamt!A$4:A$1000,Gesamt!S$4:S$1000) -> 0 | M29: =LOOKUP(A29,Gesamt!A$4:A$1000,Gesamt!T$4:T$1000) -> 0 | N29: -1000 | O29: 0
A30: 122 | B30: =LOOKUP(A30,Gesamt!A$4:A$1000,Gesamt!B$4:B$1000) -> JUN | C30: =LOOKUP(A30,Gesamt!A$4:A$1000,Gesamt!C$4:C$1000) -> 0 | D30: =LOOKUP(A30,Gesamt!A$4:A$1000,Gesamt!D$4:D$1000) -> 0 | E30: =LOOKUP(A30,Gesamt!A$4:A$1000,Gesamt!E$4:E$1000) -> 0 | F30: =LOOKUP(A30,Gesamt!A$4:A$1000,Gesamt!F$4:F$1000) -> 0 | G30: =LOOKUP(A30,Gesamt!A$4:A$1000,Gesamt!N$4:N$1000) -> 0 | H30: =LOOKUP(A30,Gesamt!A$4:A$1000,Gesamt!O$4:O$1000) -> 0 | I30: =LOOKUP(A30,Gesamt!A$4:A$1000,Gesamt!P$4:P$1000) -> 0 | J30: =LOOKUP(A30,Gesamt!A$4:A$1000,Gesamt!Q$4:Q$1000) -> 0 | K30: =LOOKUP(A30,Gesamt!A$4:A$1000,Gesamt!R$4:R$1000) -> 0 | L30: =LOOKUP(A30,Gesamt!A$4:A$1000,Gesamt!S$4:S$1000) -> 0 | M30: =LOOKUP(A30,Gesamt!A$4:A$1000,Gesamt!T$4:T$1000) -> 0 | N30: -1000 | O30: 0
A31: 123 | B31: =LOOKUP(A31,Gesamt!A$4:A$1000,Gesamt!B$4:B$1000) -> JUN | C31: =LOOKUP(A31,Gesamt!A$4:A$1000,Gesamt!C$4:C$1000) -> 0 | D31: =LOOKUP(A31,Gesamt!A$4:A$1000,Gesamt!D$4:D$1000) -> 0 | E31: =LOOKUP(A31,Gesamt!A$4:A$1000,Gesamt!E$4:E$1000) -> 0 | F31: =LOOKUP(A31,Gesamt!A$4:A$1000,Gesamt!F$4:F$1000) -> 0 | G31: =LOOKUP(A31,Gesamt!A$4:A$1000,Gesamt!N$4:N$1000) -> 0 | H31: =LOOKUP(A31,Gesamt!A$4:A$1000,Gesamt!O$4:O$1000) -> 0 | I31: =LOOKUP(A31,Gesamt!A$4:A$1000,Gesamt!P$4:P$1000) -> 0 | J31: =LOOKUP(A31,Gesamt!A$4:A$1000,Gesamt!Q$4:Q$1000) -> 0 | K31: =LOOKUP(A31,Gesamt!A$4:A$1000,Gesamt!R$4:R$1000) -> 0 | L31: =LOOKUP(A31,Gesamt!A$4:A$1000,Gesamt!S$4:S$1000) -> 0 | M31: =LOOKUP(A31,Gesamt!A$4:A$1000,Gesamt!T$4:T$1000) -> 0 | N31: -1000 | O31: 0
A32: 124 | B32: =LOOKUP(A32,Gesamt!A$4:A$1000,Gesamt!B$4:B$1000) -> JUN | C32: =LOOKUP(A32,Gesamt!A$4:A$1000,Gesamt!C$4:C$1000) -> 0 | D32: =LOOKUP(A32,Gesamt!A$4:A$1000,Gesamt!D$4:D$1000) -> 0 | E32: =LOOKUP(A32,Gesamt!A$4:A$1000,Gesamt!E$4:E$1000) -> 0 | F32: =LOOKUP(A32,Gesamt!A$4:A$1000,Gesamt!F$4:F$1000) -> 0 | G32: =LOOKUP(A32,Gesamt!A$4:A$1000,Gesamt!N$4:N$1000) -> 0 | H32: =LOOKUP(A32,Gesamt!A$4:A$1000,Gesamt!O$4:O$1000) -> 0 | I32: =LOOKUP(A32,Gesamt!A$4:A$1000,Gesamt!P$4:P$1000) -> 0 | J32: =LOOKUP(A32,Gesamt!A$4:A$1000,Gesamt!Q$4:Q$1000) -> 0 | K32: =LOOKUP(A32,Gesamt!A$4:A$1000,Gesamt!R$4:R$1000) -> 0 | L32: =LOOKUP(A32,Gesamt!A$4:A$1000,Gesamt!S$4:S$1000) -> 0 | M32: =LOOKUP(A32,Gesamt!A$4:A$1000,Gesamt!T$4:T$1000) -> 0 | N32: -1000 | O32: 0
A33: 125 | B33: =LOOKUP(A33,Gesamt!A$4:A$1000,Gesamt!B$4:B$1000) -> JUN | C33: =LOOKUP(A33,Gesamt!A$4:A$1000,Gesamt!C$4:C$1000) -> 0 | D33: =LOOKUP(A33,Gesamt!A$4:A$1000,Gesamt!D$4:D$1000) -> 0 | E33: =LOOKUP(A33,Gesamt!A$4:A$1000,Gesamt!E$4:E$1000) -> 0 | F33: =LOOKUP(A33,Gesamt!A$4:A$1000,Gesamt!F$4:F$1000) -> 0 | G33: =LOOKUP(A33,Gesamt!A$4:A$1000,Gesamt!N$4:N$1000) -> 0 | H33: =LOOKUP(A33,Gesamt!A$4:A$1000,Gesamt!O$4:O$1000) -> 0 | I33: =LOOKUP(A33,Gesamt!A$4:A$1000,Gesamt!P$4:P$1000) -> 0 | J33: =LOOKUP(A33,Gesamt!A$4:A$1000,Gesamt!Q$4:Q$1000) -> 0 | K33: =LOOKUP(A33,Gesamt!A$4:A$1000,Gesamt!R$4:R$1000) -> 0 | L33: =LOOKUP(A33,Gesamt!A$4:A$1000,Gesamt!S$4:S$1000) -> 0 | M33: =LOOKUP(A33,Gesamt!A$4:A$1000,Gesamt!T$4:T$1000) -> 0 | N33: -1000 | O33: 0
A34: 126 | B34: =LOOKUP(A34,Gesamt!A$4:A$1000,Gesamt!B$4:B$1000) -> JUN | C34: =LOOKUP(A34,Gesamt!A$4:A$1000,Gesamt!C$4:C$1000) -> 0 | D34: =LOOKUP(A34,Gesamt!A$4:A$1000,Gesamt!D$4:D$1000) -> 0 | E34: =LOOKUP(A34,Gesamt!A$4:A$1000,Gesamt!E$4:E$1000) -> 0 | F34: =LOOKUP(A34,Gesamt!A$4:A$1000,Gesamt!F$4:F$1000) -> 0 | G34: =LOOKUP(A34,Gesamt!A$4:A$1000,Gesamt!N$4:N$1000) -> 0 | H34: =LOOKUP(A34,Gesamt!A$4:A$1000,Gesamt!O$4:O$1000) -> 0 | I34: =LOOKUP(A34,Gesamt!A$4:A$1000,Gesamt!P$4:P$1000) -> 0 | J34: =LOOKUP(A34,Gesamt!A$4:A$1000,Gesamt!Q$4:Q$1000) -> 0 | K34: =LOOKUP(A34,Gesamt!A$4:A$1000,Gesamt!R$4:R$1000) -> 0 | L34: =LOOKUP(A34,Gesamt!A$4:A$1000,Gesamt!S$4:S$1000) -> 0 | M34: =LOOKUP(A34,Gesamt!A$4:A$1000,Gesamt!T$4:T$1000) -> 0 | N34: -1000 | O34: 0
A35: 127 | B35: =LOOKUP(A35,Gesamt!A$4:A$1000,Gesamt!B$4:B$1000) -> JUN | C35: =LOOKUP(A35,Gesamt!A$4:A$1000,Gesamt!C$4:C$1000) -> 0 | D35: =LOOKUP(A35,Gesamt!A$4:A$1000,Gesamt!D$4:D$1000) -> 0 | E35: =LOOKUP(A35,Gesamt!A$4:A$1000,Gesamt!E$4:E$1000) -> 0 | F35: =LOOKUP(A35,Gesamt!A$4:A$1000,Gesamt!F$4:F$1000) -> 0 | G35: =LOOKUP(A35,Gesamt!A$4:A$1000,Gesamt!N$4:N$1000) -> 0 | H35: =LOOKUP(A35,Gesamt!A$4:A$1000,Gesamt!O$4:O$1000) -> 0 | I35: =LOOKUP(A35,Gesamt!A$4:A$1000,Gesamt!P$4:P$1000) -> 0 | J35: =LOOKUP(A35,Gesamt!A$4:A$1000,Gesamt!Q$4:Q$1000) -> 0 | K35: =LOOKUP(A35,Gesamt!A$4:A$1000,Gesamt!R$4:R$1000) -> 0 | L35: =LOOKUP(A35,Gesamt!A$4:A$1000,Gesamt!S$4:S$1000) -> 0 | M35: =LOOKUP(A35,Gesamt!A$4:A$1000,Gesamt!T$4:T$1000) -> 0 | N35: -1000 | O35: 0
A36: 128 | B36: =LOOKUP(A36,Gesamt!A$4:A$1000,Gesamt!B$4:B$1000) -> 0 | C36: =LOOKUP(A36,Gesamt!A$4:A$1000,Gesamt!C$4:C$1000) -> 0 | D36: =LOOKUP(A36,Gesamt!A$4:A$1000,Gesamt!D$4:D$1000) -> 0 | E36: =LOOKUP(A36,Gesamt!A$4:A$1000,Gesamt!E$4:E$1000) -> 0 | F36: =LOOKUP(A36,Gesamt!A$4:A$1000,Gesamt!F$4:F$1000) -> 0 | G36: =LOOKUP(A36,Gesamt!A$4:A$1000,Gesamt!N$4:N$1000) -> 0 | H36: =LOOKUP(A36,Gesamt!A$4:A$1000,Gesamt!O$4:O$1000) -> 0 | I36: =LOOKUP(A36,Gesamt!A$4:A$1000,Gesamt!P$4:P$1000) -> 0 | J36: =LOOKUP(A36,Gesamt!A$4:A$1000,Gesamt!Q$4:Q$1000) -> 0 | K36: =LOOKUP(A36,Gesamt!A$4:A$1000,Gesamt!R$4:R$1000) -> 0 | L36: =LOOKUP(A36,Gesamt!A$4:A$1000,Gesamt!S$4:S$1000) -> 0 | M36: =LOOKUP(A36,Gesamt!A$4:A$1000,Gesamt!T$4:T$1000) -> 0 | N36: -1000 | O36: 0
A37: 129 | B37: =LOOKUP(A37,Gesamt!A$4:A$1000,Gesamt!B$4:B$1000) -> 0 | C37: =LOOKUP(A37,Gesamt!A$4:A$1000,Gesamt!C$4:C$1000) -> 0 | D37: =LOOKUP(A37,Gesamt!A$4:A$1000,Gesamt!D$4:D$1000) -> 0 | E37: =LOOKUP(A37,Gesamt!A$4:A$1000,Gesamt!E$4:E$1000) -> 0 | F37: =LOOKUP(A37,Gesamt!A$4:A$1000,Gesamt!F$4:F$1000) -> 0 | G37: =LOOKUP(A37,Gesamt!A$4:A$1000,Gesamt!N$4:N$1000) -> 0 | H37: =LOOKUP(A37,Gesamt!A$4:A$1000,Gesamt!O$4:O$1000) -> 0 | I37: =LOOKUP(A37,Gesamt!A$4:A$1000,Gesamt!P$4:P$1000) -> 0 | J37: =LOOKUP(A37,Gesamt!A$4:A$1000,Gesamt!Q$4:Q$1000) -> 0 | K37: =LOOKUP(A37,Gesamt!A$4:A$1000,Gesamt!R$4:R$1000) -> 0 | L37: =LOOKUP(A37,Gesamt!A$4:A$1000,Gesamt!S$4:S$1000) -> 0 | M37: =LOOKUP(A37,Gesamt!A$4:A$1000,Gesamt!T$4:T$1000) -> 0 | N37: -1000 | O37: 0
A38: 130 | B38: =LOOKUP(A38,Gesamt!A$4:A$1000,Gesamt!B$4:B$1000) -> 0 | C38: =LOOKUP(A38,Gesamt!A$4:A$1000,Gesamt!C$4:C$1000) -> 0 | D38: =LOOKUP(A38,Gesamt!A$4:A$1000,Gesamt!D$4:D$1000) -> 0 | E38: =LOOKUP(A38,Gesamt!A$4:A$1000,Gesamt!E$4:E$1000) -> 0 | F38: =LOOKUP(A38,Gesamt!A$4:A$1000,Gesamt!F$4:F$1000) -> 0 | G38: =LOOKUP(A38,Gesamt!A$4:A$1000,Gesamt!N$4:N$1000) -> 0 | H38: =LOOKUP(A38,Gesamt!A$4:A$1000,Gesamt!O$4:O$1000) -> 0 | I38: =LOOKUP(A38,Gesamt!A$4:A$1000,Gesamt!P$4:P$1000) -> 0 | J38: =LOOKUP(A38,Gesamt!A$4:A$1000,Gesamt!Q$4:Q$1000) -> 0 | K38: =LOOKUP(A38,Gesamt!A$4:A$1000,Gesamt!R$4:R$1000) -> 0 | L38: =LOOKUP(A38,Gesamt!A$4:A$1000,Gesamt!S$4:S$1000) -> 0 | M38: =LOOKUP(A38,Gesamt!A$4:A$1000,Gesamt!T$4:T$1000) -> 0 | N38: -1000 | O38: 0
A39: 131 | B39: =LOOKUP(A39,Gesamt!A$4:A$1000,Gesamt!B$4:B$1000) -> 0 | C39: =LOOKUP(A39,Gesamt!A$4:A$1000,Gesamt!C$4:C$1000) -> 0 | D39: =LOOKUP(A39,Gesamt!A$4:A$1000,Gesamt!D$4:D$1000) -> 0 | E39: =LOOKUP(A39,Gesamt!A$4:A$1000,Gesamt!E$4:E$1000) -> 0 | F39: =LOOKUP(A39,Gesamt!A$4:A$1000,Gesamt!F$4:F$1000) -> 0 | G39: =LOOKUP(A39,Gesamt!A$4:A$1000,Gesamt!N$4:N$1000) -> 0 | H39: =LOOKUP(A39,Gesamt!A$4:A$1000,Gesamt!O$4:O$1000) -> 0 | I39: =LOOKUP(A39,Gesamt!A$4:A$1000,Gesamt!P$4:P$1000) -> 0 | J39: =LOOKUP(A39,Gesamt!A$4:A$1000,Gesamt!Q$4:Q$1000) -> 0 | K39: =LOOKUP(A39,Gesamt!A$4:A$1000,Gesamt!R$4:R$1000) -> 0 | L39: =LOOKUP(A39,Gesamt!A$4:A$1000,Gesamt!S$4:S$1000) -> 0 | M39: =LOOKUP(A39,Gesamt!A$4:A$1000,Gesamt!T$4:T$1000) -> 0 | N39: -1000 | O39: 0
A40: 132 | B40: =LOOKUP(A40,Gesamt!A$4:A$1000,Gesamt!B$4:B$1000) -> 0 | C40: =LOOKUP(A40,Gesamt!A$4:A$1000,Gesamt!C$4:C$1000) -> 0 | D40: =LOOKUP(A40,Gesamt!A$4:A$1000,Gesamt!D$4:D$1000) -> 0 | E40: =LOOKUP(A40,Gesamt!A$4:A$1000,Gesamt!E$4:E$1000) -> 0 | F40: =LOOKUP(A40,Gesamt!A$4:A$1000,Gesamt!F$4:F$1000) -> 0 | G40: =LOOKUP(A40,Gesamt!A$4:A$1000,Gesamt!N$4:N$1000) -> 0 | H40: =LOOKUP(A40,Gesamt!A$4:A$1000,Gesamt!O$4:O$1000) -> 0 | I40: =LOOKUP(A40,Gesamt!A$4:A$1000,Gesamt!P$4:P$1000) -> 0 | J40: =LOOKUP(A40,Gesamt!A$4:A$1000,Gesamt!Q$4:Q$1000) -> 0 | K40: =LOOKUP(A40,Gesamt!A$4:A$1000,Gesamt!R$4:R$1000) -> 0 | L40: =LOOKUP(A40,Gesamt!A$4:A$1000,Gesamt!S$4:S$1000) -> 0 | M40: =LOOKUP(A40,Gesamt!A$4:A$1000,Gesamt!T$4:T$1000) -> 0 | N40: -1000 | O40: 0
A41: 133 | B41: =LOOKUP(A41,Gesamt!A$4:A$1000,Gesamt!B$4:B$1000) -> 0 | C41: =LOOKUP(A41,Gesamt!A$4:A$1000,Gesamt!C$4:C$1000) -> 0 | D41: =LOOKUP(A41,Gesamt!A$4:A$1000,Gesamt!D$4:D$1000) -> 0 | E41: =LOOKUP(A41,Gesamt!A$4:A$1000,Gesamt!E$4:E$1000) -> 0 | F41: =LOOKUP(A41,Gesamt!A$4:A$1000,Gesamt!F$4:F$1000) -> 0 | G41: =LOOKUP(A41,Gesamt!A$4:A$1000,Gesamt!N$4:N$1000) -> 0 | H41: =LOOKUP(A41,Gesamt!A$4:A$1000,Gesamt!O$4:O$1000) -> 0 | I41: =LOOKUP(A41,Gesamt!A$4:A$1000,Gesamt!P$4:P$1000) -> 0 | J41: =LOOKUP(A41,Gesamt!A$4:A$1000,Gesamt!Q$4:Q$1000) -> 0 | K41: =LOOKUP(A41,Gesamt!A$4:A$1000,Gesamt!R$4:R$1000) -> 0 | L41: =LOOKUP(A41,Gesamt!A$4:A$1000,Gesamt!S$4:S$1000) -> 0 | M41: =LOOKUP(A41,Gesamt!A$4:A$1000,Gesamt!T$4:T$1000) -> 0 | N41: =IF(M41>0,M41*-1,-1000) -> -1000 | O41: =IF(M41>0,RANK(N41,N:N),0) -> 0
A42: 134 | B42: =LOOKUP(A42,Gesamt!A$4:A$1000,Gesamt!B$4:B$1000) -> 0 | C42: =LOOKUP(A42,Gesamt!A$4:A$1000,Gesamt!C$4:C$1000) -> 0 | D42: =LOOKUP(A42,Gesamt!A$4:A$1000,Gesamt!D$4:D$1000) -> 0 | E42: =LOOKUP(A42,Gesamt!A$4:A$1000,Gesamt!E$4:E$1000) -> 0 | F42: =LOOKUP(A42,Gesamt!A$4:A$1000,Gesamt!F$4:F$1000) -> 0 | G42: =LOOKUP(A42,Gesamt!A$4:A$1000,Gesamt!N$4:N$1000) -> 0 | H42: =LOOKUP(A42,Gesamt!A$4:A$1000,Gesamt!O$4:O$1000) -> 0 | I42: =LOOKUP(A42,Gesamt!A$4:A$1000,Gesamt!P$4:P$1000) -> 0 | J42: =LOOKUP(A42,Gesamt!A$4:A$1000,Gesamt!Q$4:Q$1000) -> 0 | K42: =LOOKUP(A42,Gesamt!A$4:A$1000,Gesamt!R$4:R$1000) -> 0 | L42: =LOOKUP(A42,Gesamt!A$4:A$1000,Gesamt!S$4:S$1000) -> 0 | M42: =LOOKUP(A42,Gesamt!A$4:A$1000,Gesamt!T$4:T$1000) -> 0 | N42: -1000 | O42: 0
A43: 135 | B43: =LOOKUP(A43,Gesamt!A$4:A$1000,Gesamt!B$4:B$1000) -> 0 | C43: =LOOKUP(A43,Gesamt!A$4:A$1000,Gesamt!C$4:C$1000) -> 0 | D43: =LOOKUP(A43,Gesamt!A$4:A$1000,Gesamt!D$4:D$1000) -> 0 | E43: =LOOKUP(A43,Gesamt!A$4:A$1000,Gesamt!E$4:E$1000) -> 0 | F43: =LOOKUP(A43,Gesamt!A$4:A$1000,Gesamt!F$4:F$1000) -> 0 | G43: =LOOKUP(A43,Gesamt!A$4:A$1000,Gesamt!N$4:N$1000) -> 0 | H43: =LOOKUP(A43,Gesamt!A$4:A$1000,Gesamt!O$4:O$1000) -> 0 | I43: =LOOKUP(A43,Gesamt!A$4:A$1000,Gesamt!P$4:P$1000) -> 0 | J43: =LOOKUP(A43,Gesamt!A$4:A$1000,Gesamt!Q$4:Q$1000) -> 0 | K43: =LOOKUP(A43,Gesamt!A$4:A$1000,Gesamt!R$4:R$1000) -> 0 | L43: =LOOKUP(A43,Gesamt!A$4:A$1000,Gesamt!S$4:S$1000) -> 0 | M43: =LOOKUP(A43,Gesamt!A$4:A$1000,Gesamt!T$4:T$1000) -> 0 | N43: -1000 | O43: 0
A44: 136 | B44: =LOOKUP(A44,Gesamt!A$4:A$1000,Gesamt!B$4:B$1000) -> 0 | C44: =LOOKUP(A44,Gesamt!A$4:A$1000,Gesamt!C$4:C$1000) -> 0 | D44: =LOOKUP(A44,Gesamt!A$4:A$1000,Gesamt!D$4:D$1000) -> 0 | E44: =LOOKUP(A44,Gesamt!A$4:A$1000,Gesamt!E$4:E$1000) -> 0 | F44: =LOOKUP(A44,Gesamt!A$4:A$1000,Gesamt!F$4:F$1000) -> 0 | G44: =LOOKUP(A44,Gesamt!A$4:A$1000,Gesamt!N$4:N$1000) -> 0 | H44: =LOOKUP(A44,Gesamt!A$4:A$1000,Gesamt!O$4:O$1000) -> 0 | I44: =LOOKUP(A44,Gesamt!A$4:A$1000,Gesamt!P$4:P$1000) -> 0 | J44: =LOOKUP(A44,Gesamt!A$4:A$1000,Gesamt!Q$4:Q$1000) -> 0 | K44: =LOOKUP(A44,Gesamt!A$4:A$1000,Gesamt!R$4:R$1000) -> 0 | L44: =LOOKUP(A44,Gesamt!A$4:A$1000,Gesamt!S$4:S$1000) -> 0 | M44: =LOOKUP(A44,Gesamt!A$4:A$1000,Gesamt!T$4:T$1000) -> 0 | N44: -1000 | O44: 0
A45: 137 | B45: =LOOKUP(A45,Gesamt!A$4:A$1000,Gesamt!B$4:B$1000) -> 0 | C45: =LOOKUP(A45,Gesamt!A$4:A$1000,Gesamt!C$4:C$1000) -> 0 | D45: =LOOKUP(A45,Gesamt!A$4:A$1000,Gesamt!D$4:D$1000) -> 0 | E45: =LOOKUP(A45,Gesamt!A$4:A$1000,Gesamt!E$4:E$1000) -> 0 | F45: =LOOKUP(A45,Gesamt!A$4:A$1000,Gesamt!F$4:F$1000) -> 0 | G45: =LOOKUP(A45,Gesamt!A$4:A$1000,Gesamt!N$4:N$1000) -> 0 | H45: =LOOKUP(A45,Gesamt!A$4:A$1000,Gesamt!O$4:O$1000) -> 0 | I45: =LOOKUP(A45,Gesamt!A$4:A$1000,Gesamt!P$4:P$1000) -> 0 | J45: =LOOKUP(A45,Gesamt!A$4:A$1000,Gesamt!Q$4:Q$1000) -> 0 | K45: =LOOKUP(A45,Gesamt!A$4:A$1000,Gesamt!R$4:R$1000) -> 0 | L45: =LOOKUP(A45,Gesamt!A$4:A$1000,Gesamt!S$4:S$1000) -> 0 | M45: =LOOKUP(A45,Gesamt!A$4:A$1000,Gesamt!T$4:T$1000) -> 0 | N45: -1000 | O45: 0
A46: 138 | B46: =LOOKUP(A46,Gesamt!A$4:A$1000,Gesamt!B$4:B$1000) -> 0 | C46: =LOOKUP(A46,Gesamt!A$4:A$1000,Gesamt!C$4:C$1000) -> 0 | D46: =LOOKUP(A46,Gesamt!A$4:A$1000,Gesamt!D$4:D$1000) -> 0 | E46: =LOOKUP(A46,Gesamt!A$4:A$1000,Gesamt!E$4:E$1000) -> 0 | F46: =LOOKUP(A46,Gesamt!A$4:A$1000,Gesamt!F$4:F$1000) -> 0 | G46: =LOOKUP(A46,Gesamt!A$4:A$1000,Gesamt!N$4:N$1000) -> 0 | H46: =LOOKUP(A46,Gesamt!A$4:A$1000,Gesamt!O$4:O$1000) -> 0 | I46: =LOOKUP(A46,Gesamt!A$4:A$1000,Gesamt!P$4:P$1000) -> 0 | J46: =LOOKUP(A46,Gesamt!A$4:A$1000,Gesamt!Q$4:Q$1000) -> 0 | K46: =LOOKUP(A46,Gesamt!A$4:A$1000,Gesamt!R$4:R$1000) -> 0 | L46: =LOOKUP(A46,Gesamt!A$4:A$1000,Gesamt!S$4:S$1000) -> 0 | M46: =LOOKUP(A46,Gesamt!A$4:A$1000,Gesamt!T$4:T$1000) -> 0 | N46: -1000 | O46: 0
A47: 139 | B47: =LOOKUP(A47,Gesamt!A$4:A$1000,Gesamt!B$4:B$1000) -> 0 | C47: =LOOKUP(A47,Gesamt!A$4:A$1000,Gesamt!C$4:C$1000) -> 0 | D47: =LOOKUP(A47,Gesamt!A$4:A$1000,Gesamt!D$4:D$1000) -> 0 | E47: =LOOKUP(A47,Gesamt!A$4:A$1000,Gesamt!E$4:E$1000) -> 0 | F47: =LOOKUP(A47,Gesamt!A$4:A$1000,Gesamt!F$4:F$1000) -> 0 | G47: =LOOKUP(A47,Gesamt!A$4:A$1000,Gesamt!N$4:N$1000) -> 0 | H47: =LOOKUP(A47,Gesamt!A$4:A$1000,Gesamt!O$4:O$1000) -> 0 | I47: =LOOKUP(A47,Gesamt!A$4:A$1000,Gesamt!P$4:P$1000) -> 0 | J47: =LOOKUP(A47,Gesamt!A$4:A$1000,Gesamt!Q$4:Q$1000) -> 0 | K47: =LOOKUP(A47,Gesamt!A$4:A$1000,Gesamt!R$4:R$1000) -> 0 | L47: =LOOKUP(A47,Gesamt!A$4:A$1000,Gesamt!S$4:S$1000) -> 0 | M47: =LOOKUP(A47,Gesamt!A$4:A$1000,Gesamt!T$4:T$1000) -> 0 | N47: -1000 | O47: 0
A48: 140 | B48: =LOOKUP(A48,Gesamt!A$4:A$1000,Gesamt!B$4:B$1000) -> 0 | C48: =LOOKUP(A48,Gesamt!A$4:A$1000,Gesamt!C$4:C$1000) -> 0 | D48: =LOOKUP(A48,Gesamt!A$4:A$1000,Gesamt!D$4:D$1000) -> 0 | E48: =LOOKUP(A48,Gesamt!A$4:A$1000,Gesamt!E$4:E$1000) -> 0 | F48: =LOOKUP(A48,Gesamt!A$4:A$1000,Gesamt!F$4:F$1000) -> 0 | G48: =LOOKUP(A48,Gesamt!A$4:A$1000,Gesamt!N$4:N$1000) -> 0 | H48: =LOOKUP(A48,Gesamt!A$4:A$1000,Gesamt!O$4:O$1000) -> 0 | I48: =LOOKUP(A48,Gesamt!A$4:A$1000,Gesamt!P$4:P$1000) -> 0 | J48: =LOOKUP(A48,Gesamt!A$4:A$1000,Gesamt!Q$4:Q$1000) -> 0 | K48: =LOOKUP(A48,Gesamt!A$4:A$1000,Gesamt!R$4:R$1000) -> 0 | L48: =LOOKUP(A48,Gesamt!A$4:A$1000,Gesamt!S$4:S$1000) -> 0 | M48: =LOOKUP(A48,Gesamt!A$4:A$1000,Gesamt!T$4:T$1000) -> 0 | N48: -1000 | O48: 0
A49: 141 | B49: =LOOKUP(A49,Gesamt!A$4:A$1000,Gesamt!B$4:B$1000) -> 0 | C49: =LOOKUP(A49,Gesamt!A$4:A$1000,Gesamt!C$4:C$1000) -> 0 | D49: =LOOKUP(A49,Gesamt!A$4:A$1000,Gesamt!D$4:D$1000) -> 0 | E49: =LOOKUP(A49,Gesamt!A$4:A$1000,Gesamt!E$4:E$1000) -> 0 | F49: =LOOKUP(A49,Gesamt!A$4:A$1000,Gesamt!F$4:F$1000) -> 0 | G49: =LOOKUP(A49,Gesamt!A$4:A$1000,Gesamt!N$4:N$1000) -> 0 | H49: =LOOKUP(A49,Gesamt!A$4:A$1000,Gesamt!O$4:O$1000) -> 0 | I49: =LOOKUP(A49,Gesamt!A$4:A$1000,Gesamt!P$4:P$1000) -> 0 | J49: =LOOKUP(A49,Gesamt!A$4:A$1000,Gesamt!Q$4:Q$1000) -> 0 | K49: =LOOKUP(A49,Gesamt!A$4:A$1000,Gesamt!R$4:R$1000) -> 0 | L49: =LOOKUP(A49,Gesamt!A$4:A$1000,Gesamt!S$4:S$1000) -> 0 | M49: =LOOKUP(A49,Gesamt!A$4:A$1000,Gesamt!T$4:T$1000) -> 0 | N49: -1000 | O49: 0
A50: 142 | B50: =LOOKUP(A50,Gesamt!A$4:A$1000,Gesamt!B$4:B$1000) -> 0 | C50: =LOOKUP(A50,Gesamt!A$4:A$1000,Gesamt!C$4:C$1000) -> 0 | D50: =LOOKUP(A50,Gesamt!A$4:A$1000,Gesamt!D$4:D$1000) -> 0 | E50: =LOOKUP(A50,Gesamt!A$4:A$1000,Gesamt!E$4:E$1000) -> 0 | F50: =LOOKUP(A50,Gesamt!A$4:A$1000,Gesamt!F$4:F$1000) -> 0 | G50: =LOOKUP(A50,Gesamt!A$4:A$1000,Gesamt!N$4:N$1000) -> 0 | H50: =LOOKUP(A50,Gesamt!A$4:A$1000,Gesamt!O$4:O$1000) -> 0 | I50: =LOOKUP(A50,Gesamt!A$4:A$1000,Gesamt!P$4:P$1000) -> 0 | J50: =LOOKUP(A50,Gesamt!A$4:A$1000,Gesamt!Q$4:Q$1000) -> 0 | K50: =LOOKUP(A50,Gesamt!A$4:A$1000,Gesamt!R$4:R$1000) -> 0 | L50: =LOOKUP(A50,Gesamt!A$4:A$1000,Gesamt!S$4:S$1000) -> 0 | M50: =LOOKUP(A50,Gesamt!A$4:A$1000,Gesamt!T$4:T$1000) -> 0 | N50: -1000 | O50: 0
A51: 143 | B51: =LOOKUP(A51,Gesamt!A$4:A$1000,Gesamt!B$4:B$1000) -> 0 | C51: =LOOKUP(A51,Gesamt!A$4:A$1000,Gesamt!C$4:C$1000) -> 0 | D51: =LOOKUP(A51,Gesamt!A$4:A$1000,Gesamt!D$4:D$1000) -> 0 | E51: =LOOKUP(A51,Gesamt!A$4:A$1000,Gesamt!E$4:E$1000) -> 0 | F51: =LOOKUP(A51,Gesamt!A$4:A$1000,Gesamt!F$4:F$1000) -> 0 | G51: =LOOKUP(A51,Gesamt!A$4:A$1000,Gesamt!N$4:N$1000) -> 0 | H51: =LOOKUP(A51,Gesamt!A$4:A$1000,Gesamt!O$4:O$1000) -> 0 | I51: =LOOKUP(A51,Gesamt!A$4:A$1000,Gesamt!P$4:P$1000) -> 0 | J51: =LOOKUP(A51,Gesamt!A$4:A$1000,Gesamt!Q$4:Q$1000) -> 0 | K51: =LOOKUP(A51,Gesamt!A$4:A$1000,Gesamt!R$4:R$1000) -> 0 | L51: =LOOKUP(A51,Gesamt!A$4:A$1000,Gesamt!S$4:S$1000) -> 0 | M51: =LOOKUP(A51,Gesamt!A$4:A$1000,Gesamt!T$4:T$1000) -> 0 | N51: -1000 | O51: 0
A52: 144 | B52: =LOOKUP(A52,Gesamt!A$4:A$1000,Gesamt!B$4:B$1000) -> 0 | C52: =LOOKUP(A52,Gesamt!A$4:A$1000,Gesamt!C$4:C$1000) -> 0 | D52: =LOOKUP(A52,Gesamt!A$4:A$1000,Gesamt!D$4:D$1000) -> 0 | E52: =LOOKUP(A52,Gesamt!A$4:A$1000,Gesamt!E$4:E$1000) -> 0 | F52: =LOOKUP(A52,Gesamt!A$4:A$1000,Gesamt!F$4:F$1000) -> 0 | G52: =LOOKUP(A52,Gesamt!A$4:A$1000,Gesamt!N$4:N$1000) -> 0 | H52: =LOOKUP(A52,Gesamt!A$4:A$1000,Gesamt!O$4:O$1000) -> 0 | I52: =LOOKUP(A52,Gesamt!A$4:A$1000,Gesamt!P$4:P$1000) -> 0 | J52: =LOOKUP(A52,Gesamt!A$4:A$1000,Gesamt!Q$4:Q$1000) -> 0 | K52: =LOOKUP(A52,Gesamt!A$4:A$1000,Gesamt!R$4:R$1000) -> 0 | L52: =LOOKUP(A52,Gesamt!A$4:A$1000,Gesamt!S$4:S$1000) -> 0 | M52: =LOOKUP(A52,Gesamt!A$4:A$1000,Gesamt!T$4:T$1000) -> 0 | N52: -1000 | O52: 0
A53: 145 | B53: =LOOKUP(A53,Gesamt!A$4:A$1000,Gesamt!B$4:B$1000) -> 0 | C53: =LOOKUP(A53,Gesamt!A$4:A$1000,Gesamt!C$4:C$1000) -> 0 | D53: =LOOKUP(A53,Gesamt!A$4:A$1000,Gesamt!D$4:D$1000) -> 0 | E53: =LOOKUP(A53,Gesamt!A$4:A$1000,Gesamt!E$4:E$1000) -> 0 | F53: =LOOKUP(A53,Gesamt!A$4:A$1000,Gesamt!F$4:F$1000) -> 0 | G53: =LOOKUP(A53,Gesamt!A$4:A$1000,Gesamt!N$4:N$1000) -> 0 | H53: =LOOKUP(A53,Gesamt!A$4:A$1000,Gesamt!O$4:O$1000) -> 0 | I53: =LOOKUP(A53,Gesamt!A$4:A$1000,Gesamt!P$4:P$1000) -> 0 | J53: =LOOKUP(A53,Gesamt!A$4:A$1000,Gesamt!Q$4:Q$1000) -> 0 | K53: =LOOKUP(A53,Gesamt!A$4:A$1000,Gesamt!R$4:R$1000) -> 0 | L53: =LOOKUP(A53,Gesamt!A$4:A$1000,Gesamt!S$4:S$1000) -> 0 | M53: =LOOKUP(A53,Gesamt!A$4:A$1000,Gesamt!T$4:T$1000) -> 0 | N53: -1000 | O53: 0
A54: 146 | B54: =LOOKUP(A54,Gesamt!A$4:A$1000,Gesamt!B$4:B$1000) -> 0 | C54: =LOOKUP(A54,Gesamt!A$4:A$1000,Gesamt!C$4:C$1000) -> 0 | D54: =LOOKUP(A54,Gesamt!A$4:A$1000,Gesamt!D$4:D$1000) -> 0 | E54: =LOOKUP(A54,Gesamt!A$4:A$1000,Gesamt!E$4:E$1000) -> 0 | F54: =LOOKUP(A54,Gesamt!A$4:A$1000,Gesamt!F$4:F$1000) -> 0 | G54: =LOOKUP(A54,Gesamt!A$4:A$1000,Gesamt!N$4:N$1000) -> 0 | H54: =LOOKUP(A54,Gesamt!A$4:A$1000,Gesamt!O$4:O$1000) -> 0 | I54: =LOOKUP(A54,Gesamt!A$4:A$1000,Gesamt!P$4:P$1000) -> 0 | J54: =LOOKUP(A54,Gesamt!A$4:A$1000,Gesamt!Q$4:Q$1000) -> 0 | K54: =LOOKUP(A54,Gesamt!A$4:A$1000,Gesamt!R$4:R$1000) -> 0 | L54: =LOOKUP(A54,Gesamt!A$4:A$1000,Gesamt!S$4:S$1000) -> 0 | M54: =LOOKUP(A54,Gesamt!A$4:A$1000,Gesamt!T$4:T$1000) -> 0 | N54: -1000 | O54: 0
A55: 147 | B55: =LOOKUP(A55,Gesamt!A$4:A$1000,Gesamt!B$4:B$1000) -> 0 | C55: =LOOKUP(A55,Gesamt!A$4:A$1000,Gesamt!C$4:C$1000) -> 0 | D55: =LOOKUP(A55,Gesamt!A$4:A$1000,Gesamt!D$4:D$1000) -> 0 | E55: =LOOKUP(A55,Gesamt!A$4:A$1000,Gesamt!E$4:E$1000) -> 0 | F55: =LOOKUP(A55,Gesamt!A$4:A$1000,Gesamt!F$4:F$1000) -> 0 | G55: =LOOKUP(A55,Gesamt!A$4:A$1000,Gesamt!N$4:N$1000) -> 0 | H55: =LOOKUP(A55,Gesamt!A$4:A$1000,Gesamt!O$4:O$1000) -> 0 | I55: =LOOKUP(A55,Gesamt!A$4:A$1000,Gesamt!P$4:P$1000) -> 0 | J55: =LOOKUP(A55,Gesamt!A$4:A$1000,Gesamt!Q$4:Q$1000) -> 0 | K55: =LOOKUP(A55,Gesamt!A$4:A$1000,Gesamt!R$4:R$1000) -> 0 | L55: =LOOKUP(A55,Gesamt!A$4:A$1000,Gesamt!S$4:S$1000) -> 0 | M55: =LOOKUP(A55,Gesamt!A$4:A$1000,Gesamt!T$4:T$1000) -> 0 | N55: -1000 | O55: 0
A56: 148 | B56: =LOOKUP(A56,Gesamt!A$4:A$1000,Gesamt!B$4:B$1000) -> 0 | C56: =LOOKUP(A56,Gesamt!A$4:A$1000,Gesamt!C$4:C$1000) -> 0 | D56: =LOOKUP(A56,Gesamt!A$4:A$1000,Gesamt!D$4:D$1000) -> 0 | E56: =LOOKUP(A56,Gesamt!A$4:A$1000,Gesamt!E$4:E$1000) -> 0 | F56: =LOOKUP(A56,Gesamt!A$4:A$1000,Gesamt!F$4:F$1000) -> 0 | G56: =LOOKUP(A56,Gesamt!A$4:A$1000,Gesamt!N$4:N$1000) -> 0 | H56: =LOOKUP(A56,Gesamt!A$4:A$1000,Gesamt!O$4:O$1000) -> 0 | I56: =LOOKUP(A56,Gesamt!A$4:A$1000,Gesamt!P$4:P$1000) -> 0 | J56: =LOOKUP(A56,Gesamt!A$4:A$1000,Gesamt!Q$4:Q$1000) -> 0 | K56: =LOOKUP(A56,Gesamt!A$4:A$1000,Gesamt!R$4:R$1000) -> 0 | L56: =LOOKUP(A56,Gesamt!A$4:A$1000,Gesamt!S$4:S$1000) -> 0 | M56: =LOOKUP(A56,Gesamt!A$4:A$1000,Gesamt!T$4:T$1000) -> 0 | N56: -1000 | O56: 0
A57: 149 | B57: =LOOKUP(A57,Gesamt!A$4:A$1000,Gesamt!B$4:B$1000) -> 0 | C57: =LOOKUP(A57,Gesamt!A$4:A$1000,Gesamt!C$4:C$1000) -> 0 | D57: =LOOKUP(A57,Gesamt!A$4:A$1000,Gesamt!D$4:D$1000) -> 0 | E57: =LOOKUP(A57,Gesamt!A$4:A$1000,Gesamt!E$4:E$1000) -> 0 | F57: =LOOKUP(A57,Gesamt!A$4:A$1000,Gesamt!F$4:F$1000) -> 0 | G57: =LOOKUP(A57,Gesamt!A$4:A$1000,Gesamt!N$4:N$1000) -> 0 | H57: =LOOKUP(A57,Gesamt!A$4:A$1000,Gesamt!O$4:O$1000) -> 0 | I57: =LOOKUP(A57,Gesamt!A$4:A$1000,Gesamt!P$4:P$1000) -> 0 | J57: =LOOKUP(A57,Gesamt!A$4:A$1000,Gesamt!Q$4:Q$1000) -> 0 | K57: =LOOKUP(A57,Gesamt!A$4:A$1000,Gesamt!R$4:R$1000) -> 0 | L57: =LOOKUP(A57,Gesamt!A$4:A$1000,Gesamt!S$4:S$1000) -> 0 | M57: =LOOKUP(A57,Gesamt!A$4:A$1000,Gesamt!T$4:T$1000) -> 0 | N57: -1000 | O57: 0
A58: 150 | B58: =LOOKUP(A58,Gesamt!A$4:A$1000,Gesamt!B$4:B$1000) -> 0 | C58: =LOOKUP(A58,Gesamt!A$4:A$1000,Gesamt!C$4:C$1000) -> 0 | D58: =LOOKUP(A58,Gesamt!A$4:A$1000,Gesamt!D$4:D$1000) -> 0 | E58: =LOOKUP(A58,Gesamt!A$4:A$1000,Gesamt!E$4:E$1000) -> 0 | F58: =LOOKUP(A58,Gesamt!A$4:A$1000,Gesamt!F$4:F$1000) -> 0 | G58: =LOOKUP(A58,Gesamt!A$4:A$1000,Gesamt!N$4:N$1000) -> 0 | H58: =LOOKUP(A58,Gesamt!A$4:A$1000,Gesamt!O$4:O$1000) -> 0 | I58: =LOOKUP(A58,Gesamt!A$4:A$1000,Gesamt!P$4:P$1000) -> 0 | J58: =LOOKUP(A58,Gesamt!A$4:A$1000,Gesamt!Q$4:Q$1000) -> 0 | K58: =LOOKUP(A58,Gesamt!A$4:A$1000,Gesamt!R$4:R$1000) -> 0 | L58: =LOOKUP(A58,Gesamt!A$4:A$1000,Gesamt!S$4:S$1000) -> 0 | M58: =LOOKUP(A58,Gesamt!A$4:A$1000,Gesamt!T$4:T$1000) -> 0 | N58: -1000 | O58: 0
A59: 151 | B59: =LOOKUP(A59,Gesamt!A$4:A$1000,Gesamt!B$4:B$1000) -> 0 | C59: =LOOKUP(A59,Gesamt!A$4:A$1000,Gesamt!C$4:C$1000) -> 0 | D59: =LOOKUP(A59,Gesamt!A$4:A$1000,Gesamt!D$4:D$1000) -> 0 | E59: =LOOKUP(A59,Gesamt!A$4:A$1000,Gesamt!E$4:E$1000) -> 0 | F59: =LOOKUP(A59,Gesamt!A$4:A$1000,Gesamt!F$4:F$1000) -> 0 | G59: =LOOKUP(A59,Gesamt!A$4:A$1000,Gesamt!N$4:N$1000) -> 0 | H59: =LOOKUP(A59,Gesamt!A$4:A$1000,Gesamt!O$4:O$1000) -> 0 | I59: =LOOKUP(A59,Gesamt!A$4:A$1000,Gesamt!P$4:P$1000) -> 0 | J59: =LOOKUP(A59,Gesamt!A$4:A$1000,Gesamt!Q$4:Q$1000) -> 0 | K59: =LOOKUP(A59,Gesamt!A$4:A$1000,Gesamt!R$4:R$1000) -> 0 | L59: =LOOKUP(A59,Gesamt!A$4:A$1000,Gesamt!S$4:S$1000) -> 0 | M59: =LOOKUP(A59,Gesamt!A$4:A$1000,Gesamt!T$4:T$1000) -> 0 | N59: -1000 | O59: 0
A60: 152 | B60: =LOOKUP(A60,Gesamt!A$4:A$1000,Gesamt!B$4:B$1000) -> 0 | C60: =LOOKUP(A60,Gesamt!A$4:A$1000,Gesamt!C$4:C$1000) -> 0 | D60: =LOOKUP(A60,Gesamt!A$4:A$1000,Gesamt!D$4:D$1000) -> 0 | E60: =LOOKUP(A60,Gesamt!A$4:A$1000,Gesamt!E$4:E$1000) -> 0 | F60: =LOOKUP(A60,Gesamt!A$4:A$1000,Gesamt!F$4:F$1000) -> 0 | G60: =LOOKUP(A60,Gesamt!A$4:A$1000,Gesamt!N$4:N$1000) -> 0 | H60: =LOOKUP(A60,Gesamt!A$4:A$1000,Gesamt!O$4:O$1000) -> 0 | I60: =LOOKUP(A60,Gesamt!A$4:A$1000,Gesamt!P$4:P$1000) -> 0 | J60: =LOOKUP(A60,Gesamt!A$4:A$1000,Gesamt!Q$4:Q$1000) -> 0 | K60: =LOOKUP(A60,Gesamt!A$4:A$1000,Gesamt!R$4:R$1000) -> 0 | L60: =LOOKUP(A60,Gesamt!A$4:A$1000,Gesamt!S$4:S$1000) -> 0 | M60: =LOOKUP(A60,Gesamt!A$4:A$1000,Gesamt!T$4:T$1000) -> 0 | N60: -1000 | O60: 0
A61: 153 | B61: =LOOKUP(A61,Gesamt!A$4:A$1000,Gesamt!B$4:B$1000) -> 0 | C61: =LOOKUP(A61,Gesamt!A$4:A$1000,Gesamt!C$4:C$1000) -> 0 | D61: =LOOKUP(A61,Gesamt!A$4:A$1000,Gesamt!D$4:D$1000) -> 0 | E61: =LOOKUP(A61,Gesamt!A$4:A$1000,Gesamt!E$4:E$1000) -> 0 | F61: =LOOKUP(A61,Gesamt!A$4:A$1000,Gesamt!F$4:F$1000) -> 0 | G61: =LOOKUP(A61,Gesamt!A$4:A$1000,Gesamt!N$4:N$1000) -> 0 | H61: =LOOKUP(A61,Gesamt!A$4:A$1000,Gesamt!O$4:O$1000) -> 0 | I61: =LOOKUP(A61,Gesamt!A$4:A$1000,Gesamt!P$4:P$1000) -> 0 | J61: =LOOKUP(A61,Gesamt!A$4:A$1000,Gesamt!Q$4:Q$1000) -> 0 | K61: =LOOKUP(A61,Gesamt!A$4:A$1000,Gesamt!R$4:R$1000) -> 0 | L61: =LOOKUP(A61,Gesamt!A$4:A$1000,Gesamt!S$4:S$1000) -> 0 | M61: =LOOKUP(A61,Gesamt!A$4:A$1000,Gesamt!T$4:T$1000) -> 0 | N61: -1000 | O61: 0
A62: 154 | B62: =LOOKUP(A62,Gesamt!A$4:A$1000,Gesamt!B$4:B$1000) -> 0 | C62: =LOOKUP(A62,Gesamt!A$4:A$1000,Gesamt!C$4:C$1000) -> 0 | D62: =LOOKUP(A62,Gesamt!A$4:A$1000,Gesamt!D$4:D$1000) -> 0 | E62: =LOOKUP(A62,Gesamt!A$4:A$1000,Gesamt!E$4:E$1000) -> 0 | F62: =LOOKUP(A62,Gesamt!A$4:A$1000,Gesamt!F$4:F$1000) -> 0 | G62: =LOOKUP(A62,Gesamt!A$4:A$1000,Gesamt!N$4:N$1000) -> 0 | H62: =LOOKUP(A62,Gesamt!A$4:A$1000,Gesamt!O$4:O$1000) -> 0 | I62: =LOOKUP(A62,Gesamt!A$4:A$1000,Gesamt!P$4:P$1000) -> 0 | J62: =LOOKUP(A62,Gesamt!A$4:A$1000,Gesamt!Q$4:Q$1000) -> 0 | K62: =LOOKUP(A62,Gesamt!A$4:A$1000,Gesamt!R$4:R$1000) -> 0 | L62: =LOOKUP(A62,Gesamt!A$4:A$1000,Gesamt!S$4:S$1000) -> 0 | M62: =LOOKUP(A62,Gesamt!A$4:A$1000,Gesamt!T$4:T$1000) -> 0 | N62: -1000 | O62: 0
A63: 155 | B63: =LOOKUP(A63,Gesamt!A$4:A$1000,Gesamt!B$4:B$1000) -> 0 | C63: =LOOKUP(A63,Gesamt!A$4:A$1000,Gesamt!C$4:C$1000) -> 0 | D63: =LOOKUP(A63,Gesamt!A$4:A$1000,Gesamt!D$4:D$1000) -> 0 | E63: =LOOKUP(A63,Gesamt!A$4:A$1000,Gesamt!E$4:E$1000) -> 0 | F63: =LOOKUP(A63,Gesamt!A$4:A$1000,Gesamt!F$4:F$1000) -> 0 | G63: =LOOKUP(A63,Gesamt!A$4:A$1000,Gesamt!N$4:N$1000) -> 0 | H63: =LOOKUP(A63,Gesamt!A$4:A$1000,Gesamt!O$4:O$1000) -> 0 | I63: =LOOKUP(A63,Gesamt!A$4:A$1000,Gesamt!P$4:P$1000) -> 0 | J63: =LOOKUP(A63,Gesamt!A$4:A$1000,Gesamt!Q$4:Q$1000) -> 0 | K63: =LOOKUP(A63,Gesamt!A$4:A$1000,Gesamt!R$4:R$1000) -> 0 | L63: =LOOKUP(A63,Gesamt!A$4:A$1000,Gesamt!S$4:S$1000) -> 0 | M63: =LOOKUP(A63,Gesamt!A$4:A$1000,Gesamt!T$4:T$1000) -> 0 | N63: -1000 | O63: 0
A64: 156 | B64: =LOOKUP(A64,Gesamt!A$4:A$1000,Gesamt!B$4:B$1000) -> 0 | C64: =LOOKUP(A64,Gesamt!A$4:A$1000,Gesamt!C$4:C$1000) -> 0 | D64: =LOOKUP(A64,Gesamt!A$4:A$1000,Gesamt!D$4:D$1000) -> 0 | E64: =LOOKUP(A64,Gesamt!A$4:A$1000,Gesamt!E$4:E$1000) -> 0 | F64: =LOOKUP(A64,Gesamt!A$4:A$1000,Gesamt!F$4:F$1000) -> 0 | G64: =LOOKUP(A64,Gesamt!A$4:A$1000,Gesamt!N$4:N$1000) -> 0 | H64: =LOOKUP(A64,Gesamt!A$4:A$1000,Gesamt!O$4:O$1000) -> 0 | I64: =LOOKUP(A64,Gesamt!A$4:A$1000,Gesamt!P$4:P$1000) -> 0 | J64: =LOOKUP(A64,Gesamt!A$4:A$1000,Gesamt!Q$4:Q$1000) -> 0 | K64: =LOOKUP(A64,Gesamt!A$4:A$1000,Gesamt!R$4:R$1000) -> 0 | L64: =LOOKUP(A64,Gesamt!A$4:A$1000,Gesamt!S$4:S$1000) -> 0 | M64: =LOOKUP(A64,Gesamt!A$4:A$1000,Gesamt!T$4:T$1000) -> 0 | N64: -1000 | O64: 0
A65: 157 | B65: =LOOKUP(A65,Gesamt!A$4:A$1000,Gesamt!B$4:B$1000) -> 0 | C65: =LOOKUP(A65,Gesamt!A$4:A$1000,Gesamt!C$4:C$1000) -> 0 | D65: =LOOKUP(A65,Gesamt!A$4:A$1000,Gesamt!D$4:D$1000) -> 0 | E65: =LOOKUP(A65,Gesamt!A$4:A$1000,Gesamt!E$4:E$1000) -> 0 | F65: =LOOKUP(A65,Gesamt!A$4:A$1000,Gesamt!F$4:F$1000) -> 0 | G65: =LOOKUP(A65,Gesamt!A$4:A$1000,Gesamt!N$4:N$1000) -> 0 | H65: =LOOKUP(A65,Gesamt!A$4:A$1000,Gesamt!O$4:O$1000) -> 0 | I65: =LOOKUP(A65,Gesamt!A$4:A$1000,Gesamt!P$4:P$1000) -> 0 | J65: =LOOKUP(A65,Gesamt!A$4:A$1000,Gesamt!Q$4:Q$1000) -> 0 | K65: =LOOKUP(A65,Gesamt!A$4:A$1000,Gesamt!R$4:R$1000) -> 0 | L65: =LOOKUP(A65,Gesamt!A$4:A$1000,Gesamt!S$4:S$1000) -> 0 | M65: =LOOKUP(A65,Gesamt!A$4:A$1000,Gesamt!T$4:T$1000) -> 0 | N65: -1000 | O65: 0
A66: 158 | B66: =LOOKUP(A66,Gesamt!A$4:A$1000,Gesamt!B$4:B$1000) -> 0 | C66: =LOOKUP(A66,Gesamt!A$4:A$1000,Gesamt!C$4:C$1000) -> 0 | D66: =LOOKUP(A66,Gesamt!A$4:A$1000,Gesamt!D$4:D$1000) -> 0 | E66: =LOOKUP(A66,Gesamt!A$4:A$1000,Gesamt!E$4:E$1000) -> 0 | F66: =LOOKUP(A66,Gesamt!A$4:A$1000,Gesamt!F$4:F$1000) -> 0 | G66: =LOOKUP(A66,Gesamt!A$4:A$1000,Gesamt!N$4:N$1000) -> 0 | H66: =LOOKUP(A66,Gesamt!A$4:A$1000,Gesamt!O$4:O$1000) -> 0 | I66: =LOOKUP(A66,Gesamt!A$4:A$1000,Gesamt!P$4:P$1000) -> 0 | J66: =LOOKUP(A66,Gesamt!A$4:A$1000,Gesamt!Q$4:Q$1000) -> 0 | K66: =LOOKUP(A66,Gesamt!A$4:A$1000,Gesamt!R$4:R$1000) -> 0 | L66: =LOOKUP(A66,Gesamt!A$4:A$1000,Gesamt!S$4:S$1000) -> 0 | M66: =LOOKUP(A66,Gesamt!A$4:A$1000,Gesamt!T$4:T$1000) -> 0 | N66: -1000 | O66: 0
A67: 159 | B67: =LOOKUP(A67,Gesamt!A$4:A$1000,Gesamt!B$4:B$1000) -> 0 | C67: =LOOKUP(A67,Gesamt!A$4:A$1000,Gesamt!C$4:C$1000) -> 0 | D67: =LOOKUP(A67,Gesamt!A$4:A$1000,Gesamt!D$4:D$1000) -> 0 | E67: =LOOKUP(A67,Gesamt!A$4:A$1000,Gesamt!E$4:E$1000) -> 0 | F67: =LOOKUP(A67,Gesamt!A$4:A$1000,Gesamt!F$4:F$1000) -> 0 | G67: =LOOKUP(A67,Gesamt!A$4:A$1000,Gesamt!N$4:N$1000) -> 0 | H67: =LOOKUP(A67,Gesamt!A$4:A$1000,Gesamt!O$4:O$1000) -> 0 | I67: =LOOKUP(A67,Gesamt!A$4:A$1000,Gesamt!P$4:P$1000) -> 0 | J67: =LOOKUP(A67,Gesamt!A$4:A$1000,Gesamt!Q$4:Q$1000) -> 0 | K67: =LOOKUP(A67,Gesamt!A$4:A$1000,Gesamt!R$4:R$1000) -> 0 | L67: =LOOKUP(A67,Gesamt!A$4:A$1000,Gesamt!S$4:S$1000) -> 0 | M67: =LOOKUP(A67,Gesamt!A$4:A$1000,Gesamt!T$4:T$1000) -> 0 | N67: -1000 | O67: 0
A68: 160 | B68: =LOOKUP(A68,Gesamt!A$4:A$1000,Gesamt!B$4:B$1000) -> 0 | C68: =LOOKUP(A68,Gesamt!A$4:A$1000,Gesamt!C$4:C$1000) -> 0 | D68: =LOOKUP(A68,Gesamt!A$4:A$1000,Gesamt!D$4:D$1000) -> 0 | E68: =LOOKUP(A68,Gesamt!A$4:A$1000,Gesamt!E$4:E$1000) -> 0 | F68: =LOOKUP(A68,Gesamt!A$4:A$1000,Gesamt!F$4:F$1000) -> 0 | G68: =LOOKUP(A68,Gesamt!A$4:A$1000,Gesamt!N$4:N$1000) -> 0 | H68: =LOOKUP(A68,Gesamt!A$4:A$1000,Gesamt!O$4:O$1000) -> 0 | I68: =LOOKUP(A68,Gesamt!A$4:A$1000,Gesamt!P$4:P$1000) -> 0 | J68: =LOOKUP(A68,Gesamt!A$4:A$1000,Gesamt!Q$4:Q$1000) -> 0 | K68: =LOOKUP(A68,Gesamt!A$4:A$1000,Gesamt!R$4:R$1000) -> 0 | L68: =LOOKUP(A68,Gesamt!A$4:A$1000,Gesamt!S$4:S$1000) -> 0 | M68: =LOOKUP(A68,Gesamt!A$4:A$1000,Gesamt!T$4:T$1000) -> 0 | N68: -1000 | O68: 0
A69: 161 | B69: =LOOKUP(A69,Gesamt!A$4:A$1000,Gesamt!B$4:B$1000) -> 0 | C69: =LOOKUP(A69,Gesamt!A$4:A$1000,Gesamt!C$4:C$1000) -> 0 | D69: =LOOKUP(A69,Gesamt!A$4:A$1000,Gesamt!D$4:D$1000) -> 0 | E69: =LOOKUP(A69,Gesamt!A$4:A$1000,Gesamt!E$4:E$1000) -> 0 | F69: =LOOKUP(A69,Gesamt!A$4:A$1000,Gesamt!F$4:F$1000) -> 0 | G69: =LOOKUP(A69,Gesamt!A$4:A$1000,Gesamt!N$4:N$1000) -> 0 | H69: =LOOKUP(A69,Gesamt!A$4:A$1000,Gesamt!O$4:O$1000) -> 0 | I69: =LOOKUP(A69,Gesamt!A$4:A$1000,Gesamt!P$4:P$1000) -> 0 | J69: =LOOKUP(A69,Gesamt!A$4:A$1000,Gesamt!Q$4:Q$1000) -> 0 | K69: =LOOKUP(A69,Gesamt!A$4:A$1000,Gesamt!R$4:R$1000) -> 0 | L69: =LOOKUP(A69,Gesamt!A$4:A$1000,Gesamt!S$4:S$1000) -> 0 | M69: =LOOKUP(A69,Gesamt!A$4:A$1000,Gesamt!T$4:T$1000) -> 0 | N69: -1000 | O69: 0
A70: 162 | B70: =LOOKUP(A70,Gesamt!A$4:A$1000,Gesamt!B$4:B$1000) -> 0 | C70: =LOOKUP(A70,Gesamt!A$4:A$1000,Gesamt!C$4:C$1000) -> 0 | D70: =LOOKUP(A70,Gesamt!A$4:A$1000,Gesamt!D$4:D$1000) -> 0 | E70: =LOOKUP(A70,Gesamt!A$4:A$1000,Gesamt!E$4:E$1000) -> 0 | F70: =LOOKUP(A70,Gesamt!A$4:A$1000,Gesamt!F$4:F$1000) -> 0 | G70: =LOOKUP(A70,Gesamt!A$4:A$1000,Gesamt!N$4:N$1000) -> 0 | H70: =LOOKUP(A70,Gesamt!A$4:A$1000,Gesamt!O$4:O$1000) -> 0 | I70: =LOOKUP(A70,Gesamt!A$4:A$1000,Gesamt!P$4:P$1000) -> 0 | J70: =LOOKUP(A70,Gesamt!A$4:A$1000,Gesamt!Q$4:Q$1000) -> 0 | K70: =LOOKUP(A70,Gesamt!A$4:A$1000,Gesamt!R$4:R$1000) -> 0 | L70: =LOOKUP(A70,Gesamt!A$4:A$1000,Gesamt!S$4:S$1000) -> 0 | M70: =LOOKUP(A70,Gesamt!A$4:A$1000,Gesamt!T$4:T$1000) -> 0 | N70: -1000 | O70: 0
A71: 163 | B71: =LOOKUP(A71,Gesamt!A$4:A$1000,Gesamt!B$4:B$1000) -> 0 | C71: =LOOKUP(A71,Gesamt!A$4:A$1000,Gesamt!C$4:C$1000) -> 0 | D71: =LOOKUP(A71,Gesamt!A$4:A$1000,Gesamt!D$4:D$1000) -> 0 | E71: =LOOKUP(A71,Gesamt!A$4:A$1000,Gesamt!E$4:E$1000) -> 0 | F71: =LOOKUP(A71,Gesamt!A$4:A$1000,Gesamt!F$4:F$1000) -> 0 | G71: =LOOKUP(A71,Gesamt!A$4:A$1000,Gesamt!N$4:N$1000) -> 0 | H71: =LOOKUP(A71,Gesamt!A$4:A$1000,Gesamt!O$4:O$1000) -> 0 | I71: =LOOKUP(A71,Gesamt!A$4:A$1000,Gesamt!P$4:P$1000) -> 0 | J71: =LOOKUP(A71,Gesamt!A$4:A$1000,Gesamt!Q$4:Q$1000) -> 0 | K71: =LOOKUP(A71,Gesamt!A$4:A$1000,Gesamt!R$4:R$1000) -> 0 | L71: =LOOKUP(A71,Gesamt!A$4:A$1000,Gesamt!S$4:S$1000) -> 0 | M71: =LOOKUP(A71,Gesamt!A$4:A$1000,Gesamt!T$4:T$1000) -> 0 | N71: -1000 | O71: 0
A72: 164 | B72: =LOOKUP(A72,Gesamt!A$4:A$1000,Gesamt!B$4:B$1000) -> 0 | C72: =LOOKUP(A72,Gesamt!A$4:A$1000,Gesamt!C$4:C$1000) -> 0 | D72: =LOOKUP(A72,Gesamt!A$4:A$1000,Gesamt!D$4:D$1000) -> 0 | E72: =LOOKUP(A72,Gesamt!A$4:A$1000,Gesamt!E$4:E$1000) -> 0 | F72: =LOOKUP(A72,Gesamt!A$4:A$1000,Gesamt!F$4:F$1000) -> 0 | G72: =LOOKUP(A72,Gesamt!A$4:A$1000,Gesamt!N$4:N$1000) -> 0 | H72: =LOOKUP(A72,Gesamt!A$4:A$1000,Gesamt!O$4:O$1000) -> 0 | I72: =LOOKUP(A72,Gesamt!A$4:A$1000,Gesamt!P$4:P$1000) -> 0 | J72: =LOOKUP(A72,Gesamt!A$4:A$1000,Gesamt!Q$4:Q$1000) -> 0 | K72: =LOOKUP(A72,Gesamt!A$4:A$1000,Gesamt!R$4:R$1000) -> 0 | L72: =LOOKUP(A72,Gesamt!A$4:A$1000,Gesamt!S$4:S$1000) -> 0 | M72: =LOOKUP(A72,Gesamt!A$4:A$1000,Gesamt!T$4:T$1000) -> 0 | N72: -1000 | O72: 0
A73: 165 | B73: =LOOKUP(A73,Gesamt!A$4:A$1000,Gesamt!B$4:B$1000) -> 0 | C73: =LOOKUP(A73,Gesamt!A$4:A$1000,Gesamt!C$4:C$1000) -> 0 | D73: =LOOKUP(A73,Gesamt!A$4:A$1000,Gesamt!D$4:D$1000) -> 0 | E73: =LOOKUP(A73,Gesamt!A$4:A$1000,Gesamt!E$4:E$1000) -> 0 | F73: =LOOKUP(A73,Gesamt!A$4:A$1000,Gesamt!F$4:F$1000) -> 0 | G73: =LOOKUP(A73,Gesamt!A$4:A$1000,Gesamt!N$4:N$1000) -> 0 | H73: =LOOKUP(A73,Gesamt!A$4:A$1000,Gesamt!O$4:O$1000) -> 0 | I73: =LOOKUP(A73,Gesamt!A$4:A$1000,Gesamt!P$4:P$1000) -> 0 | J73: =LOOKUP(A73,Gesamt!A$4:A$1000,Gesamt!Q$4:Q$1000) -> 0 | K73: =LOOKUP(A73,Gesamt!A$4:A$1000,Gesamt!R$4:R$1000) -> 0 | L73: =LOOKUP(A73,Gesamt!A$4:A$1000,Gesamt!S$4:S$1000) -> 0 | M73: =LOOKUP(A73,Gesamt!A$4:A$1000,Gesamt!T$4:T$1000) -> 0 | N73: =IF(M73>0,M73*-1,-1000) -> -1000 | O73: =IF(M73>0,RANK(N73,N:N),0) -> 0
A74: 166 | B74: =LOOKUP(A74,Gesamt!A$4:A$1000,Gesamt!B$4:B$1000) -> 0 | C74: =LOOKUP(A74,Gesamt!A$4:A$1000,Gesamt!C$4:C$1000) -> 0 | D74: =LOOKUP(A74,Gesamt!A$4:A$1000,Gesamt!D$4:D$1000) -> 0 | E74: =LOOKUP(A74,Gesamt!A$4:A$1000,Gesamt!E$4:E$1000) -> 0 | F74: =LOOKUP(A74,Gesamt!A$4:A$1000,Gesamt!F$4:F$1000) -> 0 | G74: =LOOKUP(A74,Gesamt!A$4:A$1000,Gesamt!N$4:N$1000) -> 0 | H74: =LOOKUP(A74,Gesamt!A$4:A$1000,Gesamt!O$4:O$1000) -> 0 | I74: =LOOKUP(A74,Gesamt!A$4:A$1000,Gesamt!P$4:P$1000) -> 0 | J74: =LOOKUP(A74,Gesamt!A$4:A$1000,Gesamt!Q$4:Q$1000) -> 0 | K74: =LOOKUP(A74,Gesamt!A$4:A$1000,Gesamt!R$4:R$1000) -> 0 | L74: =LOOKUP(A74,Gesamt!A$4:A$1000,Gesamt!S$4:S$1000) -> 0 | M74: =LOOKUP(A74,Gesamt!A$4:A$1000,Gesamt!T$4:T$1000) -> 0 | N74: -1000 | O74: 0
A75: 167 | B75: =LOOKUP(A75,Gesamt!A$4:A$1000,Gesamt!B$4:B$1000) -> 0 | C75: =LOOKUP(A75,Gesamt!A$4:A$1000,Gesamt!C$4:C$1000) -> 0 | D75: =LOOKUP(A75,Gesamt!A$4:A$1000,Gesamt!D$4:D$1000) -> 0 | E75: =LOOKUP(A75,Gesamt!A$4:A$1000,Gesamt!E$4:E$1000) -> 0 | F75: =LOOKUP(A75,Gesamt!A$4:A$1000,Gesamt!F$4:F$1000) -> 0 | G75: =LOOKUP(A75,Gesamt!A$4:A$1000,Gesamt!N$4:N$1000) -> 0 | H75: =LOOKUP(A75,Gesamt!A$4:A$1000,Gesamt!O$4:O$1000) -> 0 | I75: =LOOKUP(A75,Gesamt!A$4:A$1000,Gesamt!P$4:P$1000) -> 0 | J75: =LOOKUP(A75,Gesamt!A$4:A$1000,Gesamt!Q$4:Q$1000) -> 0 | K75: =LOOKUP(A75,Gesamt!A$4:A$1000,Gesamt!R$4:R$1000) -> 0 | L75: =LOOKUP(A75,Gesamt!A$4:A$1000,Gesamt!S$4:S$1000) -> 0 | M75: =LOOKUP(A75,Gesamt!A$4:A$1000,Gesamt!T$4:T$1000) -> 0 | N75: -1000 | O75: 0
A76: 168 | B76: =LOOKUP(A76,Gesamt!A$4:A$1000,Gesamt!B$4:B$1000) -> 0 | C76: =LOOKUP(A76,Gesamt!A$4:A$1000,Gesamt!C$4:C$1000) -> 0 | D76: =LOOKUP(A76,Gesamt!A$4:A$1000,Gesamt!D$4:D$1000) -> 0 | E76: =LOOKUP(A76,Gesamt!A$4:A$1000,Gesamt!E$4:E$1000) -> 0 | F76: =LOOKUP(A76,Gesamt!A$4:A$1000,Gesamt!F$4:F$1000) -> 0 | G76: =LOOKUP(A76,Gesamt!A$4:A$1000,Gesamt!N$4:N$1000) -> 0 | H76: =LOOKUP(A76,Gesamt!A$4:A$1000,Gesamt!O$4:O$1000) -> 0 | I76: =LOOKUP(A76,Gesamt!A$4:A$1000,Gesamt!P$4:P$1000) -> 0 | J76: =LOOKUP(A76,Gesamt!A$4:A$1000,Gesamt!Q$4:Q$1000) -> 0 | K76: =LOOKUP(A76,Gesamt!A$4:A$1000,Gesamt!R$4:R$1000) -> 0 | L76: =LOOKUP(A76,Gesamt!A$4:A$1000,Gesamt!S$4:S$1000) -> 0 | M76: =LOOKUP(A76,Gesamt!A$4:A$1000,Gesamt!T$4:T$1000) -> 0 | N76: -1000 | O76: 0
A77: 169 | B77: =LOOKUP(A77,Gesamt!A$4:A$1000,Gesamt!B$4:B$1000) -> 0 | C77: =LOOKUP(A77,Gesamt!A$4:A$1000,Gesamt!C$4:C$1000) -> 0 | D77: =LOOKUP(A77,Gesamt!A$4:A$1000,Gesamt!D$4:D$1000) -> 0 | E77: =LOOKUP(A77,Gesamt!A$4:A$1000,Gesamt!E$4:E$1000) -> 0 | F77: =LOOKUP(A77,Gesamt!A$4:A$1000,Gesamt!F$4:F$1000) -> 0 | G77: =LOOKUP(A77,Gesamt!A$4:A$1000,Gesamt!N$4:N$1000) -> 0 | H77: =LOOKUP(A77,Gesamt!A$4:A$1000,Gesamt!O$4:O$1000) -> 0 | I77: =LOOKUP(A77,Gesamt!A$4:A$1000,Gesamt!P$4:P$1000) -> 0 | J77: =LOOKUP(A77,Gesamt!A$4:A$1000,Gesamt!Q$4:Q$1000) -> 0 | K77: =LOOKUP(A77,Gesamt!A$4:A$1000,Gesamt!R$4:R$1000) -> 0 | L77: =LOOKUP(A77,Gesamt!A$4:A$1000,Gesamt!S$4:S$1000) -> 0 | M77: =LOOKUP(A77,Gesamt!A$4:A$1000,Gesamt!T$4:T$1000) -> 0 | N77: -1000 | O77: 0
A78: 170 | B78: =LOOKUP(A78,Gesamt!A$4:A$1000,Gesamt!B$4:B$1000) -> 0 | C78: =LOOKUP(A78,Gesamt!A$4:A$1000,Gesamt!C$4:C$1000) -> 0 | D78: =LOOKUP(A78,Gesamt!A$4:A$1000,Gesamt!D$4:D$1000) -> 0 | E78: =LOOKUP(A78,Gesamt!A$4:A$1000,Gesamt!E$4:E$1000) -> 0 | F78: =LOOKUP(A78,Gesamt!A$4:A$1000,Gesamt!F$4:F$1000) -> 0 | G78: =LOOKUP(A78,Gesamt!A$4:A$1000,Gesamt!N$4:N$1000) -> 0 | H78: =LOOKUP(A78,Gesamt!A$4:A$1000,Gesamt!O$4:O$1000) -> 0 | I78: =LOOKUP(A78,Gesamt!A$4:A$1000,Gesamt!P$4:P$1000) -> 0 | J78: =LOOKUP(A78,Gesamt!A$4:A$1000,Gesamt!Q$4:Q$1000) -> 0 | K78: =LOOKUP(A78,Gesamt!A$4:A$1000,Gesamt!R$4:R$1000) -> 0 | L78: =LOOKUP(A78,Gesamt!A$4:A$1000,Gesamt!S$4:S$1000) -> 0 | M78: =LOOKUP(A78,Gesamt!A$4:A$1000,Gesamt!T$4:T$1000) -> 0 | N78: -1000 | O78: 0
A79: 171 | B79: =LOOKUP(A79,Gesamt!A$4:A$1000,Gesamt!B$4:B$1000) -> 0 | C79: =LOOKUP(A79,Gesamt!A$4:A$1000,Gesamt!C$4:C$1000) -> 0 | D79: =LOOKUP(A79,Gesamt!A$4:A$1000,Gesamt!D$4:D$1000) -> 0 | E79: =LOOKUP(A79,Gesamt!A$4:A$1000,Gesamt!E$4:E$1000) -> 0 | F79: =LOOKUP(A79,Gesamt!A$4:A$1000,Gesamt!F$4:F$1000) -> 0 | G79: =LOOKUP(A79,Gesamt!A$4:A$1000,Gesamt!N$4:N$1000) -> 0 | H79: =LOOKUP(A79,Gesamt!A$4:A$1000,Gesamt!O$4:O$1000) -> 0 | I79: =LOOKUP(A79,Gesamt!A$4:A$1000,Gesamt!P$4:P$1000) -> 0 | J79: =LOOKUP(A79,Gesamt!A$4:A$1000,Gesamt!Q$4:Q$1000) -> 0 | K79: =LOOKUP(A79,Gesamt!A$4:A$1000,Gesamt!R$4:R$1000) -> 0 | L79: =LOOKUP(A79,Gesamt!A$4:A$1000,Gesamt!S$4:S$1000) -> 0 | M79: =LOOKUP(A79,Gesamt!A$4:A$1000,Gesamt!T$4:T$1000) -> 0 | N79: -1000 | O79: 0
A80: 172 | B80: =LOOKUP(A80,Gesamt!A$4:A$1000,Gesamt!B$4:B$1000) -> 0 | C80: =LOOKUP(A80,Gesamt!A$4:A$1000,Gesamt!C$4:C$1000) -> 0 | D80: =LOOKUP(A80,Gesamt!A$4:A$1000,Gesamt!D$4:D$1000) -> 0 | E80: =LOOKUP(A80,Gesamt!A$4:A$1000,Gesamt!E$4:E$1000) -> 0 | F80: =LOOKUP(A80,Gesamt!A$4:A$1000,Gesamt!F$4:F$1000) -> 0 | G80: =LOOKUP(A80,Gesamt!A$4:A$1000,Gesamt!N$4:N$1000) -> 0 | H80: =LOOKUP(A80,Gesamt!A$4:A$1000,Gesamt!O$4:O$1000) -> 0 | I80: =LOOKUP(A80,Gesamt!A$4:A$1000,Gesamt!P$4:P$1000) -> 0 | J80: =LOOKUP(A80,Gesamt!A$4:A$1000,Gesamt!Q$4:Q$1000) -> 0 | K80: =LOOKUP(A80,Gesamt!A$4:A$1000,Gesamt!R$4:R$1000) -> 0 | L80: =LOOKUP(A80,Gesamt!A$4:A$1000,Gesamt!S$4:S$1000) -> 0 | M80: =LOOKUP(A80,Gesamt!A$4:A$1000,Gesamt!T$4:T$1000) -> 0 | N80: -1000 | O80: 0
A81: 173 | B81: =LOOKUP(A81,Gesamt!A$4:A$1000,Gesamt!B$4:B$1000) -> 0 | C81: =LOOKUP(A81,Gesamt!A$4:A$1000,Gesamt!C$4:C$1000) -> 0 | D81: =LOOKUP(A81,Gesamt!A$4:A$1000,Gesamt!D$4:D$1000) -> 0 | E81: =LOOKUP(A81,Gesamt!A$4:A$1000,Gesamt!E$4:E$1000) -> 0 | F81: =LOOKUP(A81,Gesamt!A$4:A$1000,Gesamt!F$4:F$1000) -> 0 | G81: =LOOKUP(A81,Gesamt!A$4:A$1000,Gesamt!N$4:N$1000) -> 0 | H81: =LOOKUP(A81,Gesamt!A$4:A$1000,Gesamt!O$4:O$1000) -> 0 | I81: =LOOKUP(A81,Gesamt!A$4:A$1000,Gesamt!P$4:P$1000) -> 0 | J81: =LOOKUP(A81,Gesamt!A$4:A$1000,Gesamt!Q$4:Q$1000) -> 0 | K81: =LOOKUP(A81,Gesamt!A$4:A$1000,Gesamt!R$4:R$1000) -> 0 | L81: =LOOKUP(A81,Gesamt!A$4:A$1000,Gesamt!S$4:S$1000) -> 0 | M81: =LOOKUP(A81,Gesamt!A$4:A$1000,Gesamt!T$4:T$1000) -> 0 | N81: -1000 | O81: 0
A82: 174 | B82: =LOOKUP(A82,Gesamt!A$4:A$1000,Gesamt!B$4:B$1000) -> 0 | C82: =LOOKUP(A82,Gesamt!A$4:A$1000,Gesamt!C$4:C$1000) -> 0 | D82: =LOOKUP(A82,Gesamt!A$4:A$1000,Gesamt!D$4:D$1000) -> 0 | E82: =LOOKUP(A82,Gesamt!A$4:A$1000,Gesamt!E$4:E$1000) -> 0 | F82: =LOOKUP(A82,Gesamt!A$4:A$1000,Gesamt!F$4:F$1000) -> 0 | G82: =LOOKUP(A82,Gesamt!A$4:A$1000,Gesamt!N$4:N$1000) -> 0 | H82: =LOOKUP(A82,Gesamt!A$4:A$1000,Gesamt!O$4:O$1000) -> 0 | I82: =LOOKUP(A82,Gesamt!A$4:A$1000,Gesamt!P$4:P$1000) -> 0 | J82: =LOOKUP(A82,Gesamt!A$4:A$1000,Gesamt!Q$4:Q$1000) -> 0 | K82: =LOOKUP(A82,Gesamt!A$4:A$1000,Gesamt!R$4:R$1000) -> 0 | L82: =LOOKUP(A82,Gesamt!A$4:A$1000,Gesamt!S$4:S$1000) -> 0 | M82: =LOOKUP(A82,Gesamt!A$4:A$1000,Gesamt!T$4:T$1000) -> 0 | N82: -1000 | O82: 0
A83: 175 | B83: =LOOKUP(A83,Gesamt!A$4:A$1000,Gesamt!B$4:B$1000) -> 0 | C83: =LOOKUP(A83,Gesamt!A$4:A$1000,Gesamt!C$4:C$1000) -> 0 | D83: =LOOKUP(A83,Gesamt!A$4:A$1000,Gesamt!D$4:D$1000) -> 0 | E83: =LOOKUP(A83,Gesamt!A$4:A$1000,Gesamt!E$4:E$1000) -> 0 | F83: =LOOKUP(A83,Gesamt!A$4:A$1000,Gesamt!F$4:F$1000) -> 0 | G83: =LOOKUP(A83,Gesamt!A$4:A$1000,Gesamt!N$4:N$1000) -> 0 | H83: =LOOKUP(A83,Gesamt!A$4:A$1000,Gesamt!O$4:O$1000) -> 0 | I83: =LOOKUP(A83,Gesamt!A$4:A$1000,Gesamt!P$4:P$1000) -> 0 | J83: =LOOKUP(A83,Gesamt!A$4:A$1000,Gesamt!Q$4:Q$1000) -> 0 | K83: =LOOKUP(A83,Gesamt!A$4:A$1000,Gesamt!R$4:R$1000) -> 0 | L83: =LOOKUP(A83,Gesamt!A$4:A$1000,Gesamt!S$4:S$1000) -> 0 | M83: =LOOKUP(A83,Gesamt!A$4:A$1000,Gesamt!T$4:T$1000) -> 0 | N83: -1000 | O83: 0
A84: 176 | B84: =LOOKUP(A84,Gesamt!A$4:A$1000,Gesamt!B$4:B$1000) -> 0 | C84: =LOOKUP(A84,Gesamt!A$4:A$1000,Gesamt!C$4:C$1000) -> 0 | D84: =LOOKUP(A84,Gesamt!A$4:A$1000,Gesamt!D$4:D$1000) -> 0 | E84: =LOOKUP(A84,Gesamt!A$4:A$1000,Gesamt!E$4:E$1000) -> 0 | F84: =LOOKUP(A84,Gesamt!A$4:A$1000,Gesamt!F$4:F$1000) -> 0 | G84: =LOOKUP(A84,Gesamt!A$4:A$1000,Gesamt!N$4:N$1000) -> 0 | H84: =LOOKUP(A84,Gesamt!A$4:A$1000,Gesamt!O$4:O$1000) -> 0 | I84: =LOOKUP(A84,Gesamt!A$4:A$1000,Gesamt!P$4:P$1000) -> 0 | J84: =LOOKUP(A84,Gesamt!A$4:A$1000,Gesamt!Q$4:Q$1000) -> 0 | K84: =LOOKUP(A84,Gesamt!A$4:A$1000,Gesamt!R$4:R$1000) -> 0 | L84: =LOOKUP(A84,Gesamt!A$4:A$1000,Gesamt!S$4:S$1000) -> 0 | M84: =LOOKUP(A84,Gesamt!A$4:A$1000,Gesamt!T$4:T$1000) -> 0 | N84: -1000 | O84: 0
A85: 177 | B85: =LOOKUP(A85,Gesamt!A$4:A$1000,Gesamt!B$4:B$1000) -> 0 | C85: =LOOKUP(A85,Gesamt!A$4:A$1000,Gesamt!C$4:C$1000) -> 0 | D85: =LOOKUP(A85,Gesamt!A$4:A$1000,Gesamt!D$4:D$1000) -> 0 | E85: =LOOKUP(A85,Gesamt!A$4:A$1000,Gesamt!E$4:E$1000) -> 0 | F85: =LOOKUP(A85,Gesamt!A$4:A$1000,Gesamt!F$4:F$1000) -> 0 | G85: =LOOKUP(A85,Gesamt!A$4:A$1000,Gesamt!N$4:N$1000) -> 0 | H85: =LOOKUP(A85,Gesamt!A$4:A$1000,Gesamt!O$4:O$1000) -> 0 | I85: =LOOKUP(A85,Gesamt!A$4:A$1000,Gesamt!P$4:P$1000) -> 0 | J85: =LOOKUP(A85,Gesamt!A$4:A$1000,Gesamt!Q$4:Q$1000) -> 0 | K85: =LOOKUP(A85,Gesamt!A$4:A$1000,Gesamt!R$4:R$1000) -> 0 | L85: =LOOKUP(A85,Gesamt!A$4:A$1000,Gesamt!S$4:S$1000) -> 0 | M85: =LOOKUP(A85,Gesamt!A$4:A$1000,Gesamt!T$4:T$1000) -> 0 | N85: -1000 | O85: 0
A86: 178 | B86: =LOOKUP(A86,Gesamt!A$4:A$1000,Gesamt!B$4:B$1000) -> 0 | C86: =LOOKUP(A86,Gesamt!A$4:A$1000,Gesamt!C$4:C$1000) -> 0 | D86: =LOOKUP(A86,Gesamt!A$4:A$1000,Gesamt!D$4:D$1000) -> 0 | E86: =LOOKUP(A86,Gesamt!A$4:A$1000,Gesamt!E$4:E$1000) -> 0 | F86: =LOOKUP(A86,Gesamt!A$4:A$1000,Gesamt!F$4:F$1000) -> 0 | G86: =LOOKUP(A86,Gesamt!A$4:A$1000,Gesamt!N$4:N$1000) -> 0 | H86: =LOOKUP(A86,Gesamt!A$4:A$1000,Gesamt!O$4:O$1000) -> 0 | I86: =LOOKUP(A86,Gesamt!A$4:A$1000,Gesamt!P$4:P$1000) -> 0 | J86: =LOOKUP(A86,Gesamt!A$4:A$1000,Gesamt!Q$4:Q$1000) -> 0 | K86: =LOOKUP(A86,Gesamt!A$4:A$1000,Gesamt!R$4:R$1000) -> 0 | L86: =LOOKUP(A86,Gesamt!A$4:A$1000,Gesamt!S$4:S$1000) -> 0 | M86: =LOOKUP(A86,Gesamt!A$4:A$1000,Gesamt!T$4:T$1000) -> 0 | N86: -1000 | O86: 0
A87: 179 | B87: =LOOKUP(A87,Gesamt!A$4:A$1000,Gesamt!B$4:B$1000) -> 0 | C87: =LOOKUP(A87,Gesamt!A$4:A$1000,Gesamt!C$4:C$1000) -> 0 | D87: =LOOKUP(A87,Gesamt!A$4:A$1000,Gesamt!D$4:D$1000) -> 0 | E87: =LOOKUP(A87,Gesamt!A$4:A$1000,Gesamt!E$4:E$1000) -> 0 | F87: =LOOKUP(A87,Gesamt!A$4:A$1000,Gesamt!F$4:F$1000) -> 0 | G87: =LOOKUP(A87,Gesamt!A$4:A$1000,Gesamt!N$4:N$1000) -> 0 | H87: =LOOKUP(A87,Gesamt!A$4:A$1000,Gesamt!O$4:O$1000) -> 0 | I87: =LOOKUP(A87,Gesamt!A$4:A$1000,Gesamt!P$4:P$1000) -> 0 | J87: =LOOKUP(A87,Gesamt!A$4:A$1000,Gesamt!Q$4:Q$1000) -> 0 | K87: =LOOKUP(A87,Gesamt!A$4:A$1000,Gesamt!R$4:R$1000) -> 0 | L87: =LOOKUP(A87,Gesamt!A$4:A$1000,Gesamt!S$4:S$1000) -> 0 | M87: =LOOKUP(A87,Gesamt!A$4:A$1000,Gesamt!T$4:T$1000) -> 0 | N87: -1000 | O87: 0
A88: 180 | B88: =LOOKUP(A88,Gesamt!A$4:A$1000,Gesamt!B$4:B$1000) -> 0 | C88: =LOOKUP(A88,Gesamt!A$4:A$1000,Gesamt!C$4:C$1000) -> 0 | D88: =LOOKUP(A88,Gesamt!A$4:A$1000,Gesamt!D$4:D$1000) -> 0 | E88: =LOOKUP(A88,Gesamt!A$4:A$1000,Gesamt!E$4:E$1000) -> 0 | F88: =LOOKUP(A88,Gesamt!A$4:A$1000,Gesamt!F$4:F$1000) -> 0 | G88: =LOOKUP(A88,Gesamt!A$4:A$1000,Gesamt!N$4:N$1000) -> 0 | H88: =LOOKUP(A88,Gesamt!A$4:A$1000,Gesamt!O$4:O$1000) -> 0 | I88: =LOOKUP(A88,Gesamt!A$4:A$1000,Gesamt!P$4:P$1000) -> 0 | J88: =LOOKUP(A88,Gesamt!A$4:A$1000,Gesamt!Q$4:Q$1000) -> 0 | K88: =LOOKUP(A88,Gesamt!A$4:A$1000,Gesamt!R$4:R$1000) -> 0 | L88: =LOOKUP(A88,Gesamt!A$4:A$1000,Gesamt!S$4:S$1000) -> 0 | M88: =LOOKUP(A88,Gesamt!A$4:A$1000,Gesamt!T$4:T$1000) -> 0 | N88: -1000 | O88: 0
A89: 181 | B89: =LOOKUP(A89,Gesamt!A$4:A$1000,Gesamt!B$4:B$1000) -> 0 | C89: =LOOKUP(A89,Gesamt!A$4:A$1000,Gesamt!C$4:C$1000) -> 0 | D89: =LOOKUP(A89,Gesamt!A$4:A$1000,Gesamt!D$4:D$1000) -> 0 | E89: =LOOKUP(A89,Gesamt!A$4:A$1000,Gesamt!E$4:E$1000) -> 0 | F89: =LOOKUP(A89,Gesamt!A$4:A$1000,Gesamt!F$4:F$1000) -> 0 | G89: =LOOKUP(A89,Gesamt!A$4:A$1000,Gesamt!N$4:N$1000) -> 0 | H89: =LOOKUP(A89,Gesamt!A$4:A$1000,Gesamt!O$4:O$1000) -> 0 | I89: =LOOKUP(A89,Gesamt!A$4:A$1000,Gesamt!P$4:P$1000) -> 0 | J89: =LOOKUP(A89,Gesamt!A$4:A$1000,Gesamt!Q$4:Q$1000) -> 0 | K89: =LOOKUP(A89,Gesamt!A$4:A$1000,Gesamt!R$4:R$1000) -> 0 | L89: =LOOKUP(A89,Gesamt!A$4:A$1000,Gesamt!S$4:S$1000) -> 0 | M89: =LOOKUP(A89,Gesamt!A$4:A$1000,Gesamt!T$4:T$1000) -> 0 | N89: -1000 | O89: 0
A90: 182 | B90: =LOOKUP(A90,Gesamt!A$4:A$1000,Gesamt!B$4:B$1000) -> 0 | C90: =LOOKUP(A90,Gesamt!A$4:A$1000,Gesamt!C$4:C$1000) -> 0 | D90: =LOOKUP(A90,Gesamt!A$4:A$1000,Gesamt!D$4:D$1000) -> 0 | E90: =LOOKUP(A90,Gesamt!A$4:A$1000,Gesamt!E$4:E$1000) -> 0 | F90: =LOOKUP(A90,Gesamt!A$4:A$1000,Gesamt!F$4:F$1000) -> 0 | G90: =LOOKUP(A90,Gesamt!A$4:A$1000,Gesamt!N$4:N$1000) -> 0 | H90: =LOOKUP(A90,Gesamt!A$4:A$1000,Gesamt!O$4:O$1000) -> 0 | I90: =LOOKUP(A90,Gesamt!A$4:A$1000,Gesamt!P$4:P$1000) -> 0 | J90: =LOOKUP(A90,Gesamt!A$4:A$1000,Gesamt!Q$4:Q$1000) -> 0 | K90: =LOOKUP(A90,Gesamt!A$4:A$1000,Gesamt!R$4:R$1000) -> 0 | L90: =LOOKUP(A90,Gesamt!A$4:A$1000,Gesamt!S$4:S$1000) -> 0 | M90: =LOOKUP(A90,Gesamt!A$4:A$1000,Gesamt!T$4:T$1000) -> 0 | N90: -1000 | O90: 0
A91: 183 | B91: =LOOKUP(A91,Gesamt!A$4:A$1000,Gesamt!B$4:B$1000) -> 0 | C91: =LOOKUP(A91,Gesamt!A$4:A$1000,Gesamt!C$4:C$1000) -> 0 | D91: =LOOKUP(A91,Gesamt!A$4:A$1000,Gesamt!D$4:D$1000) -> 0 | E91: =LOOKUP(A91,Gesamt!A$4:A$1000,Gesamt!E$4:E$1000) -> 0 | F91: =LOOKUP(A91,Gesamt!A$4:A$1000,Gesamt!F$4:F$1000) -> 0 | G91: =LOOKUP(A91,Gesamt!A$4:A$1000,Gesamt!N$4:N$1000) -> 0 | H91: =LOOKUP(A91,Gesamt!A$4:A$1000,Gesamt!O$4:O$1000) -> 0 | I91: =LOOKUP(A91,Gesamt!A$4:A$1000,Gesamt!P$4:P$1000) -> 0 | J91: =LOOKUP(A91,Gesamt!A$4:A$1000,Gesamt!Q$4:Q$1000) -> 0 | K91: =LOOKUP(A91,Gesamt!A$4:A$1000,Gesamt!R$4:R$1000) -> 0 | L91: =LOOKUP(A91,Gesamt!A$4:A$1000,Gesamt!S$4:S$1000) -> 0 | M91: =LOOKUP(A91,Gesamt!A$4:A$1000,Gesamt!T$4:T$1000) -> 0 | N91: -1000 | O91: 0
A92: 184 | B92: =LOOKUP(A92,Gesamt!A$4:A$1000,Gesamt!B$4:B$1000) -> 0 | C92: =LOOKUP(A92,Gesamt!A$4:A$1000,Gesamt!C$4:C$1000) -> 0 | D92: =LOOKUP(A92,Gesamt!A$4:A$1000,Gesamt!D$4:D$1000) -> 0 | E92: =LOOKUP(A92,Gesamt!A$4:A$1000,Gesamt!E$4:E$1000) -> 0 | F92: =LOOKUP(A92,Gesamt!A$4:A$1000,Gesamt!F$4:F$1000) -> 0 | G92: =LOOKUP(A92,Gesamt!A$4:A$1000,Gesamt!N$4:N$1000) -> 0 | H92: =LOOKUP(A92,Gesamt!A$4:A$1000,Gesamt!O$4:O$1000) -> 0 | I92: =LOOKUP(A92,Gesamt!A$4:A$1000,Gesamt!P$4:P$1000) -> 0 | J92: =LOOKUP(A92,Gesamt!A$4:A$1000,Gesamt!Q$4:Q$1000) -> 0 | K92: =LOOKUP(A92,Gesamt!A$4:A$1000,Gesamt!R$4:R$1000) -> 0 | L92: =LOOKUP(A92,Gesamt!A$4:A$1000,Gesamt!S$4:S$1000) -> 0 | M92: =LOOKUP(A92,Gesamt!A$4:A$1000,Gesamt!T$4:T$1000) -> 0 | N92: -1000 | O92: 0
A93: 185 | B93: =LOOKUP(A93,Gesamt!A$4:A$1000,Gesamt!B$4:B$1000) -> 0 | C93: =LOOKUP(A93,Gesamt!A$4:A$1000,Gesamt!C$4:C$1000) -> 0 | D93: =LOOKUP(A93,Gesamt!A$4:A$1000,Gesamt!D$4:D$1000) -> 0 | E93: =LOOKUP(A93,Gesamt!A$4:A$1000,Gesamt!E$4:E$1000) -> 0 | F93: =LOOKUP(A93,Gesamt!A$4:A$1000,Gesamt!F$4:F$1000) -> 0 | G93: =LOOKUP(A93,Gesamt!A$4:A$1000,Gesamt!N$4:N$1000) -> 0 | H93: =LOOKUP(A93,Gesamt!A$4:A$1000,Gesamt!O$4:O$1000) -> 0 | I93: =LOOKUP(A93,Gesamt!A$4:A$1000,Gesamt!P$4:P$1000) -> 0 | J93: =LOOKUP(A93,Gesamt!A$4:A$1000,Gesamt!Q$4:Q$1000) -> 0 | K93: =LOOKUP(A93,Gesamt!A$4:A$1000,Gesamt!R$4:R$1000) -> 0 | L93: =LOOKUP(A93,Gesamt!A$4:A$1000,Gesamt!S$4:S$1000) -> 0 | M93: =LOOKUP(A93,Gesamt!A$4:A$1000,Gesamt!T$4:T$1000) -> 0 | N93: -1000 | O93: 0
A94: 186 | B94: =LOOKUP(A94,Gesamt!A$4:A$1000,Gesamt!B$4:B$1000) -> 0 | C94: =LOOKUP(A94,Gesamt!A$4:A$1000,Gesamt!C$4:C$1000) -> 0 | D94: =LOOKUP(A94,Gesamt!A$4:A$1000,Gesamt!D$4:D$1000) -> 0 | E94: =LOOKUP(A94,Gesamt!A$4:A$1000,Gesamt!E$4:E$1000) -> 0 | F94: =LOOKUP(A94,Gesamt!A$4:A$1000,Gesamt!F$4:F$1000) -> 0 | G94: =LOOKUP(A94,Gesamt!A$4:A$1000,Gesamt!N$4:N$1000) -> 0 | H94: =LOOKUP(A94,Gesamt!A$4:A$1000,Gesamt!O$4:O$1000) -> 0 | I94: =LOOKUP(A94,Gesamt!A$4:A$1000,Gesamt!P$4:P$1000) -> 0 | J94: =LOOKUP(A94,Gesamt!A$4:A$1000,Gesamt!Q$4:Q$1000) -> 0 | K94: =LOOKUP(A94,Gesamt!A$4:A$1000,Gesamt!R$4:R$1000) -> 0 | L94: =LOOKUP(A94,Gesamt!A$4:A$1000,Gesamt!S$4:S$1000) -> 0 | M94: =LOOKUP(A94,Gesamt!A$4:A$1000,Gesamt!T$4:T$1000) -> 0 | N94: -1000 | O94: 0
A95: 187 | B95: =LOOKUP(A95,Gesamt!A$4:A$1000,Gesamt!B$4:B$1000) -> 0 | C95: =LOOKUP(A95,Gesamt!A$4:A$1000,Gesamt!C$4:C$1000) -> 0 | D95: =LOOKUP(A95,Gesamt!A$4:A$1000,Gesamt!D$4:D$1000) -> 0 | E95: =LOOKUP(A95,Gesamt!A$4:A$1000,Gesamt!E$4:E$1000) -> 0 | F95: =LOOKUP(A95,Gesamt!A$4:A$1000,Gesamt!F$4:F$1000) -> 0 | G95: =LOOKUP(A95,Gesamt!A$4:A$1000,Gesamt!N$4:N$1000) -> 0 | H95: =LOOKUP(A95,Gesamt!A$4:A$1000,Gesamt!O$4:O$1000) -> 0 | I95: =LOOKUP(A95,Gesamt!A$4:A$1000,Gesamt!P$4:P$1000) -> 0 | J95: =LOOKUP(A95,Gesamt!A$4:A$1000,Gesamt!Q$4:Q$1000) -> 0 | K95: =LOOKUP(A95,Gesamt!A$4:A$1000,Gesamt!R$4:R$1000) -> 0 | L95: =LOOKUP(A95,Gesamt!A$4:A$1000,Gesamt!S$4:S$1000) -> 0 | M95: =LOOKUP(A95,Gesamt!A$4:A$1000,Gesamt!T$4:T$1000) -> 0 | N95: -1000 | O95: 0
A96: 188 | B96: =LOOKUP(A96,Gesamt!A$4:A$1000,Gesamt!B$4:B$1000) -> 0 | C96: =LOOKUP(A96,Gesamt!A$4:A$1000,Gesamt!C$4:C$1000) -> 0 | D96: =LOOKUP(A96,Gesamt!A$4:A$1000,Gesamt!D$4:D$1000) -> 0 | E96: =LOOKUP(A96,Gesamt!A$4:A$1000,Gesamt!E$4:E$1000) -> 0 | F96: =LOOKUP(A96,Gesamt!A$4:A$1000,Gesamt!F$4:F$1000) -> 0 | G96: =LOOKUP(A96,Gesamt!A$4:A$1000,Gesamt!N$4:N$1000) -> 0 | H96: =LOOKUP(A96,Gesamt!A$4:A$1000,Gesamt!O$4:O$1000) -> 0 | I96: =LOOKUP(A96,Gesamt!A$4:A$1000,Gesamt!P$4:P$1000) -> 0 | J96: =LOOKUP(A96,Gesamt!A$4:A$1000,Gesamt!Q$4:Q$1000) -> 0 | K96: =LOOKUP(A96,Gesamt!A$4:A$1000,Gesamt!R$4:R$1000) -> 0 | L96: =LOOKUP(A96,Gesamt!A$4:A$1000,Gesamt!S$4:S$1000) -> 0 | M96: =LOOKUP(A96,Gesamt!A$4:A$1000,Gesamt!T$4:T$1000) -> 0 | N96: -1000 | O96: 0
A97: 189 | B97: =LOOKUP(A97,Gesamt!A$4:A$1000,Gesamt!B$4:B$1000) -> 0 | C97: =LOOKUP(A97,Gesamt!A$4:A$1000,Gesamt!C$4:C$1000) -> 0 | D97: =LOOKUP(A97,Gesamt!A$4:A$1000,Gesamt!D$4:D$1000) -> 0 | E97: =LOOKUP(A97,Gesamt!A$4:A$1000,Gesamt!E$4:E$1000) -> 0 | F97: =LOOKUP(A97,Gesamt!A$4:A$1000,Gesamt!F$4:F$1000) -> 0 | G97: =LOOKUP(A97,Gesamt!A$4:A$1000,Gesamt!N$4:N$1000) -> 0 | H97: =LOOKUP(A97,Gesamt!A$4:A$1000,Gesamt!O$4:O$1000) -> 0 | I97: =LOOKUP(A97,Gesamt!A$4:A$1000,Gesamt!P$4:P$1000) -> 0 | J97: =LOOKUP(A97,Gesamt!A$4:A$1000,Gesamt!Q$4:Q$1000) -> 0 | K97: =LOOKUP(A97,Gesamt!A$4:A$1000,Gesamt!R$4:R$1000) -> 0 | L97: =LOOKUP(A97,Gesamt!A$4:A$1000,Gesamt!S$4:S$1000) -> 0 | M97: =LOOKUP(A97,Gesamt!A$4:A$1000,Gesamt!T$4:T$1000) -> 0 | N97: -1000 | O97: 0
A98: 190 | B98: =LOOKUP(A98,Gesamt!A$4:A$1000,Gesamt!B$4:B$1000) -> 0 | C98: =LOOKUP(A98,Gesamt!A$4:A$1000,Gesamt!C$4:C$1000) -> 0 | D98: =LOOKUP(A98,Gesamt!A$4:A$1000,Gesamt!D$4:D$1000) -> 0 | E98: =LOOKUP(A98,Gesamt!A$4:A$1000,Gesamt!E$4:E$1000) -> 0 | F98: =LOOKUP(A98,Gesamt!A$4:A$1000,Gesamt!F$4:F$1000) -> 0 | G98: =LOOKUP(A98,Gesamt!A$4:A$1000,Gesamt!N$4:N$1000) -> 0 | H98: =LOOKUP(A98,Gesamt!A$4:A$1000,Gesamt!O$4:O$1000) -> 0 | I98: =LOOKUP(A98,Gesamt!A$4:A$1000,Gesamt!P$4:P$1000) -> 0 | J98: =LOOKUP(A98,Gesamt!A$4:A$1000,Gesamt!Q$4:Q$1000) -> 0 | K98: =LOOKUP(A98,Gesamt!A$4:A$1000,Gesamt!R$4:R$1000) -> 0 | L98: =LOOKUP(A98,Gesamt!A$4:A$1000,Gesamt!S$4:S$1000) -> 0 | M98: =LOOKUP(A98,Gesamt!A$4:A$1000,Gesamt!T$4:T$1000) -> 0 | N98: -1000 | O98: 0
A99: 191 | B99: =LOOKUP(A99,Gesamt!A$4:A$1000,Gesamt!B$4:B$1000) -> 0 | C99: =LOOKUP(A99,Gesamt!A$4:A$1000,Gesamt!C$4:C$1000) -> 0 | D99: =LOOKUP(A99,Gesamt!A$4:A$1000,Gesamt!D$4:D$1000) -> 0 | E99: =LOOKUP(A99,Gesamt!A$4:A$1000,Gesamt!E$4:E$1000) -> 0 | F99: =LOOKUP(A99,Gesamt!A$4:A$1000,Gesamt!F$4:F$1000) -> 0 | G99: =LOOKUP(A99,Gesamt!A$4:A$1000,Gesamt!N$4:N$1000) -> 0 | H99: =LOOKUP(A99,Gesamt!A$4:A$1000,Gesamt!O$4:O$1000) -> 0 | I99: =LOOKUP(A99,Gesamt!A$4:A$1000,Gesamt!P$4:P$1000) -> 0 | J99: =LOOKUP(A99,Gesamt!A$4:A$1000,Gesamt!Q$4:Q$1000) -> 0 | K99: =LOOKUP(A99,Gesamt!A$4:A$1000,Gesamt!R$4:R$1000) -> 0 | L99: =LOOKUP(A99,Gesamt!A$4:A$1000,Gesamt!S$4:S$1000) -> 0 | M99: =LOOKUP(A99,Gesamt!A$4:A$1000,Gesamt!T$4:T$1000) -> 0 | N99: -1000 | O99: 0
A100: 192 | B100: =LOOKUP(A100,Gesamt!A$4:A$1000,Gesamt!B$4:B$1000) -> 0 | C100: =LOOKUP(A100,Gesamt!A$4:A$1000,Gesamt!C$4:C$1000) -> 0 | D100: =LOOKUP(A100,Gesamt!A$4:A$1000,Gesamt!D$4:D$1000) -> 0 | E100: =LOOKUP(A100,Gesamt!A$4:A$1000,Gesamt!E$4:E$1000) -> 0 | F100: =LOOKUP(A100,Gesamt!A$4:A$1000,Gesamt!F$4:F$1000) -> 0 | G100: =LOOKUP(A100,Gesamt!A$4:A$1000,Gesamt!N$4:N$1000) -> 0 | H100: =LOOKUP(A100,Gesamt!A$4:A$1000,Gesamt!O$4:O$1000) -> 0 | I100: =LOOKUP(A100,Gesamt!A$4:A$1000,Gesamt!P$4:P$1000) -> 0 | J100: =LOOKUP(A100,Gesamt!A$4:A$1000,Gesamt!Q$4:Q$1000) -> 0 | K100: =LOOKUP(A100,Gesamt!A$4:A$1000,Gesamt!R$4:R$1000) -> 0 | L100: =LOOKUP(A100,Gesamt!A$4:A$1000,Gesamt!S$4:S$1000) -> 0 | M100: =LOOKUP(A100,Gesamt!A$4:A$1000,Gesamt!T$4:T$1000) -> 0 | N100: -1000 | O100: 0
A101: 193 | B101: =LOOKUP(A101,Gesamt!A$4:A$1000,Gesamt!B$4:B$1000) -> 0 | C101: =LOOKUP(A101,Gesamt!A$4:A$1000,Gesamt!C$4:C$1000) -> 0 | D101: =LOOKUP(A101,Gesamt!A$4:A$1000,Gesamt!D$4:D$1000) -> 0 | E101: =LOOKUP(A101,Gesamt!A$4:A$1000,Gesamt!E$4:E$1000) -> 0 | F101: =LOOKUP(A101,Gesamt!A$4:A$1000,Gesamt!F$4:F$1000) -> 0 | G101: =LOOKUP(A101,Gesamt!A$4:A$1000,Gesamt!N$4:N$1000) -> 0 | H101: =LOOKUP(A101,Gesamt!A$4:A$1000,Gesamt!O$4:O$1000) -> 0 | I101: =LOOKUP(A101,Gesamt!A$4:A$1000,Gesamt!P$4:P$1000) -> 0 | J101: =LOOKUP(A101,Gesamt!A$4:A$1000,Gesamt!Q$4:Q$1000) -> 0 | K101: =LOOKUP(A101,Gesamt!A$4:A$1000,Gesamt!R$4:R$1000) -> 0 | L101: =LOOKUP(A101,Gesamt!A$4:A$1000,Gesamt!S$4:S$1000) -> 0 | M101: =LOOKUP(A101,Gesamt!A$4:A$1000,Gesamt!T$4:T$1000) -> 0 | N101: -1000 | O101: 0
A102: 194 | B102: =LOOKUP(A102,Gesamt!A$4:A$1000,Gesamt!B$4:B$1000) -> 0 | C102: =LOOKUP(A102,Gesamt!A$4:A$1000,Gesamt!C$4:C$1000) -> 0 | D102: =LOOKUP(A102,Gesamt!A$4:A$1000,Gesamt!D$4:D$1000) -> 0 | E102: =LOOKUP(A102,Gesamt!A$4:A$1000,Gesamt!E$4:E$1000) -> 0 | F102: =LOOKUP(A102,Gesamt!A$4:A$1000,Gesamt!F$4:F$1000) -> 0 | G102: =LOOKUP(A102,Gesamt!A$4:A$1000,Gesamt!N$4:N$1000) -> 0 | H102: =LOOKUP(A102,Gesamt!A$4:A$1000,Gesamt!O$4:O$1000) -> 0 | I102: =LOOKUP(A102,Gesamt!A$4:A$1000,Gesamt!P$4:P$1000) -> 0 | J102: =LOOKUP(A102,Gesamt!A$4:A$1000,Gesamt!Q$4:Q$1000) -> 0 | K102: =LOOKUP(A102,Gesamt!A$4:A$1000,Gesamt!R$4:R$1000) -> 0 | L102: =LOOKUP(A102,Gesamt!A$4:A$1000,Gesamt!S$4:S$1000) -> 0 | M102: =LOOKUP(A102,Gesamt!A$4:A$1000,Gesamt!T$4:T$1000) -> 0 | N102: -1000 | O102: 0
A103: 195 | B103: =LOOKUP(A103,Gesamt!A$4:A$1000,Gesamt!B$4:B$1000) -> 0 | C103: =LOOKUP(A103,Gesamt!A$4:A$1000,Gesamt!C$4:C$1000) -> 0 | D103: =LOOKUP(A103,Gesamt!A$4:A$1000,Gesamt!D$4:D$1000) -> 0 | E103: =LOOKUP(A103,Gesamt!A$4:A$1000,Gesamt!E$4:E$1000) -> 0 | F103: =LOOKUP(A103,Gesamt!A$4:A$1000,Gesamt!F$4:F$1000) -> 0 | G103: =LOOKUP(A103,Gesamt!A$4:A$1000,Gesamt!N$4:N$1000) -> 0 | H103: =LOOKUP(A103,Gesamt!A$4:A$1000,Gesamt!O$4:O$1000) -> 0 | I103: =LOOKUP(A103,Gesamt!A$4:A$1000,Gesamt!P$4:P$1000) -> 0 | J103: =LOOKUP(A103,Gesamt!A$4:A$1000,Gesamt!Q$4:Q$1000) -> 0 | K103: =LOOKUP(A103,Gesamt!A$4:A$1000,Gesamt!R$4:R$1000) -> 0 | L103: =LOOKUP(A103,Gesamt!A$4:A$1000,Gesamt!S$4:S$1000) -> 0 | M103: =LOOKUP(A103,Gesamt!A$4:A$1000,Gesamt!T$4:T$1000) -> 0 | N103: -1000 | O103: 0
A104: 196 | B104: =LOOKUP(A104,Gesamt!A$4:A$1000,Gesamt!B$4:B$1000) -> 0 | C104: =LOOKUP(A104,Gesamt!A$4:A$1000,Gesamt!C$4:C$1000) -> 0 | D104: =LOOKUP(A104,Gesamt!A$4:A$1000,Gesamt!D$4:D$1000) -> 0 | E104: =LOOKUP(A104,Gesamt!A$4:A$1000,Gesamt!E$4:E$1000) -> 0 | F104: =LOOKUP(A104,Gesamt!A$4:A$1000,Gesamt!F$4:F$1000) -> 0 | G104: =LOOKUP(A104,Gesamt!A$4:A$1000,Gesamt!N$4:N$1000) -> 0 | H104: =LOOKUP(A104,Gesamt!A$4:A$1000,Gesamt!O$4:O$1000) -> 0 | I104: =LOOKUP(A104,Gesamt!A$4:A$1000,Gesamt!P$4:P$1000) -> 0 | J104: =LOOKUP(A104,Gesamt!A$4:A$1000,Gesamt!Q$4:Q$1000) -> 0 | K104: =LOOKUP(A104,Gesamt!A$4:A$1000,Gesamt!R$4:R$1000) -> 0 | L104: =LOOKUP(A104,Gesamt!A$4:A$1000,Gesamt!S$4:S$1000) -> 0 | M104: =LOOKUP(A104,Gesamt!A$4:A$1000,Gesamt!T$4:T$1000) -> 0 | N104: -1000 | O104: 0
A105: 197 | B105: =LOOKUP(A105,Gesamt!A$4:A$1000,Gesamt!B$4:B$1000) -> 0 | C105: =LOOKUP(A105,Gesamt!A$4:A$1000,Gesamt!C$4:C$1000) -> 0 | D105: =LOOKUP(A105,Gesamt!A$4:A$1000,Gesamt!D$4:D$1000) -> 0 | E105: =LOOKUP(A105,Gesamt!A$4:A$1000,Gesamt!E$4:E$1000) -> 0 | F105: =LOOKUP(A105,Gesamt!A$4:A$1000,Gesamt!F$4:F$1000) -> 0 | G105: =LOOKUP(A105,Gesamt!A$4:A$1000,Gesamt!N$4:N$1000) -> 0 | H105: =LOOKUP(A105,Gesamt!A$4:A$1000,Gesamt!O$4:O$1000) -> 0 | I105: =LOOKUP(A105,Gesamt!A$4:A$1000,Gesamt!P$4:P$1000) -> 0 | J105: =LOOKUP(A105,Gesamt!A$4:A$1000,Gesamt!Q$4:Q$1000) -> 0 | K105: =LOOKUP(A105,Gesamt!A$4:A$1000,Gesamt!R$4:R$1000) -> 0 | L105: =LOOKUP(A105,Gesamt!A$4:A$1000,Gesamt!S$4:S$1000) -> 0 | M105: =LOOKUP(A105,Gesamt!A$4:A$1000,Gesamt!T$4:T$1000) -> 0 | N105: =IF(M105>0,M105*-1,-1000) -> -1000 | O105: =IF(M105>0,RANK(N105,N:N),0) -> 0
A106: 198 | B106: =LOOKUP(A106,Gesamt!A$4:A$1000,Gesamt!B$4:B$1000) -> 0 | C106: =LOOKUP(A106,Gesamt!A$4:A$1000,Gesamt!C$4:C$1000) -> 0 | D106: =LOOKUP(A106,Gesamt!A$4:A$1000,Gesamt!D$4:D$1000) -> 0 | E106: =LOOKUP(A106,Gesamt!A$4:A$1000,Gesamt!E$4:E$1000) -> 0 | F106: =LOOKUP(A106,Gesamt!A$4:A$1000,Gesamt!F$4:F$1000) -> 0 | G106: =LOOKUP(A106,Gesamt!A$4:A$1000,Gesamt!N$4:N$1000) -> 0 | H106: =LOOKUP(A106,Gesamt!A$4:A$1000,Gesamt!O$4:O$1000) -> 0 | I106: =LOOKUP(A106,Gesamt!A$4:A$1000,Gesamt!P$4:P$1000) -> 0 | J106: =LOOKUP(A106,Gesamt!A$4:A$1000,Gesamt!Q$4:Q$1000) -> 0 | K106: =LOOKUP(A106,Gesamt!A$4:A$1000,Gesamt!R$4:R$1000) -> 0 | L106: =LOOKUP(A106,Gesamt!A$4:A$1000,Gesamt!S$4:S$1000) -> 0 | M106: =LOOKUP(A106,Gesamt!A$4:A$1000,Gesamt!T$4:T$1000) -> 0 | N106: -1000 | O106: 0
A107: 199 | B107: =LOOKUP(A107,Gesamt!A$4:A$1000,Gesamt!B$4:B$1000) -> 0 | C107: =LOOKUP(A107,Gesamt!A$4:A$1000,Gesamt!C$4:C$1000) -> 0 | D107: =LOOKUP(A107,Gesamt!A$4:A$1000,Gesamt!D$4:D$1000) -> 0 | E107: =LOOKUP(A107,Gesamt!A$4:A$1000,Gesamt!E$4:E$1000) -> 0 | F107: =LOOKUP(A107,Gesamt!A$4:A$1000,Gesamt!F$4:F$1000) -> 0 | G107: =LOOKUP(A107,Gesamt!A$4:A$1000,Gesamt!N$4:N$1000) -> 0 | H107: =LOOKUP(A107,Gesamt!A$4:A$1000,Gesamt!O$4:O$1000) -> 0 | I107: =LOOKUP(A107,Gesamt!A$4:A$1000,Gesamt!P$4:P$1000) -> 0 | J107: =LOOKUP(A107,Gesamt!A$4:A$1000,Gesamt!Q$4:Q$1000) -> 0 | K107: =LOOKUP(A107,Gesamt!A$4:A$1000,Gesamt!R$4:R$1000) -> 0 | L107: =LOOKUP(A107,Gesamt!A$4:A$1000,Gesamt!S$4:S$1000) -> 0 | M107: =LOOKUP(A107,Gesamt!A$4:A$1000,Gesamt!T$4:T$1000) -> 0 | N107: -1000 | O107: 0

Sheet Protokoll
A2: Lauf Nr | D2: Start Uhrzeit | G2: Lauf Nr | J2: Start Uhrzeit
A3: Bahn 1 | D3: Bahn 2 | G3: Bahn 1 | J3: Bahn 2
A4: Start Nummer | B4: Zeit | D4: Start Nummer | E4: Zeit | G4: Start Nummer | H4: Zeit | J4: Start Nummer | K4: Zeit
F5: 1
F6: 2
F7: 3
F8: 4
F9: 5
F10: 6
F11: 7
F12: 8
F13: 9
F14: 10
F15: 11
F16: 12
F17: 13
F18: 14
F19: 15
F20: 16
F21: 17
F22: 18
F23: 19
F24: 20
F25: 21
F26: 22
F27: 23
F28: 24
F29: 25
F30: 26
F31: 27
F32: 28
F33: 29
F34: 30
F35: 31
F36: 32
F37: 33
F38: 34
F39: 35

Sheet Überschriften
B1: Hier werden die Überschriften der automatischen Ergebnis-Listen definiert
C2: 09.06.2024 Derby in Mettingen
C3: für das Registerblatt "Ergebnis" | D3: für das Registerblatt "ErgebnisEndlauf"
B4: Liste 100 | C4: NRW-Qualifikation JUNIOR - Klasse | D4: Endlauf JUNIOR - Klasse
B5: Liste 200 | C5: TüöttenCup | D5: Endlauf Liste 200
B6: Liste 300 | C6: NRW-Qualifikation SENIOR - Klasse | D6: Endlauf SENIOR - Klasse
B7: Liste 400 | C7: Liste 400 | D7: Endlauf Liste 400
B8: Liste 500 | C8: NRW-Qualifikation Elite XL - Klasse | D8: Endlauf Elite XL - Klasse
B9: Liste 600 | C9: Liste 600 | D9: Endlauf Liste 600
B10: Liste 700 | C10: NRW-Qualifikation Open - Klasse | D10: Endlauf Elite XL ü18 - Klasse
B11: Liste 800 | C11: Ortsderby Abc | D11: Endlauf Liste 800
B12: Liste 900 | D12: Endlauf Open - Klasse

Sheet Versionen
B1: Franz Tenambergen Seifenkisten Mettingen franz.tenambergen@t-online.de 0160 472 89 33 bei Problemen oder Fragen gerne melden
A2: V9.1 | B2: 3 Täler Rennen Mettingen neu nur 1 ErgebnissBlatt für alle Klassen Ergebnisse werden über den AuswahlButton aus der Gesamtliste abgerufen
A3: V9.2 | B3: Sicherheitsüberprüfung ob bereits Zeiten für diesen Lauf eingetragen sind ggf. würden Daten überschrieben
A4: V9.3 | B4: Vorbereitung auf Rennen in Seppenrade Liste der 800 ist Ortsderby in Gleichmäßigkeitswertung
A5: V9.4 | B5: Vorbereitung auf Rennen in Mettingen 02.-04.06.2023
A6: V9.5 | B6: Vorbereitung auf Siegerurkunden Beiden Überschriften im Blatt "Ergebnis" a1 nach b1 verschoben
A7: V9.6 | B7: Vorbereitung auf Ortsderby Mettingen 2024

Sheet Hinweise
B2: Hinweise zur Benutzung dieser Tabellen mit einem ALGE-Timer
B5: Inbetriebnahme des ALGE-Timer
A7: 1 | B7: Timer mit dem Seriellen-Kabel an die COM1 Schnittstelle anschließen
A8: 2 | B8: Kabel der Lichtschranken anschließen
A9: 3 | B9: Kippschalter auf "C-timer" stellen
A10: 4 | B10: Kippschalter nach oben auf "programm + line test" drücken und halten
A11: 5 | B11: EIN/AUS-Schalter auf Rückseite einschalten, nach 1 sec Kippschalter lösen
A12: 6 | B12: eventuell mit der gelben Taste drücken bis "Pr.4" angezeigt wird
A13: 7 | B13: um den Timer auf 0:00:00 zustellen rote und gelbe Taste gleichzeitig drücken
A14: 8 | B14: vor jeder neuen Messung wird so der Timer auf 0:00:00 gestellt
A15: 9
A16: 10 | B16: jetzt wird überprüft ob die Anzeige auch richtig mitläuft
A17: 11 | B17: Taste "delay time" 4x drücken
A18: 12 | B18: Anzeige LF CH1-2 wenn zwischen LF und CH1-2 keine A steht dann
A19: 13 | B19: A einschalten durch Taster drücken auf "program+line test"
A20: 14 | B20: um den Timer auf 0:00:00 zustellen rote und gelbe Taste gleichzeitig drücken
A21: 15
A22: 16
A23: 17
A24: 18
A25: 19
A26: 20
